Organisation Name,Organisation Code,Unique Ref No,Effective Date,Directorate where expenditure incurred, Supplier Name ,Payment Date,Net Amount,Purpose of Spend,"Procurement Classification
(Higher Level)",Procurement Classification (Lower Level),CAPITAL / REVENUE
Walsall Council,http://opendatacommunities.org/id/metropolitan-district-council/walsall ,WC138-1,31.05.2022,CHILDRENS,247 CARS (WILLENHALL) LIMITED,24/05/2022,"1,678.00",6241-Hire of Vehicle with Driver,TRANSPORT,DIRECT TRANSPORT COSTS,REVENUE
Walsall Council,http://opendatacommunities.org/id/metropolitan-district-council/walsall ,WC138-2,31.05.2022,CHILDRENS,247 CARS (WILLENHALL) LIMITED,24/05/2022,740.00,6241-Hire of Vehicle with Driver,TRANSPORT,DIRECT TRANSPORT COSTS,REVENUE
Walsall Council,http://opendatacommunities.org/id/metropolitan-district-council/walsall ,WC138-3,31.05.2022,CHILDRENS,247 CARS (WILLENHALL) LIMITED,24/05/2022,740.00,6241-Hire of Vehicle with Driver,TRANSPORT,DIRECT TRANSPORT COSTS,REVENUE
Walsall Council,http://opendatacommunities.org/id/metropolitan-district-council/walsall ,WC138-4,31.05.2022,CHILDRENS,247 CARS (WILLENHALL) LIMITED,24/05/2022,740.00,6241-Hire of Vehicle with Driver,TRANSPORT,DIRECT TRANSPORT COSTS,REVENUE
Walsall Council,http://opendatacommunities.org/id/metropolitan-district-council/walsall ,WC138-5,31.05.2022,CHILDRENS,247 CARS (WILLENHALL) LIMITED,24/05/2022,740.00,6241-Hire of Vehicle with Driver,TRANSPORT,DIRECT TRANSPORT COSTS,REVENUE
Walsall Council,http://opendatacommunities.org/id/metropolitan-district-council/walsall ,WC138-6,31.05.2022,CHILDRENS,247 CARS (WILLENHALL) LIMITED,24/05/2022,665.00,6241-Hire of Vehicle with Driver,TRANSPORT,DIRECT TRANSPORT COSTS,REVENUE
Walsall Council,http://opendatacommunities.org/id/metropolitan-district-council/walsall ,WC138-7,31.05.2022,CHILDRENS,247 CARS (WILLENHALL) LIMITED,24/05/2022,649.80,6241-Hire of Vehicle with Driver,TRANSPORT,DIRECT TRANSPORT COSTS,REVENUE
Walsall Council,http://opendatacommunities.org/id/metropolitan-district-council/walsall ,WC138-8,31.05.2022,CHILDRENS,247 CARS (WILLENHALL) LIMITED,24/05/2022,665.00,6241-Hire of Vehicle with Driver,TRANSPORT,DIRECT TRANSPORT COSTS,REVENUE
Walsall Council,http://opendatacommunities.org/id/metropolitan-district-council/walsall ,WC138-9,31.05.2022,CHILDRENS,247 CARS (WILLENHALL) LIMITED,24/05/2022,"1,115.10",6241-Hire of Vehicle with Driver,TRANSPORT,DIRECT TRANSPORT COSTS,REVENUE
Walsall Council,http://opendatacommunities.org/id/metropolitan-district-council/walsall ,WC138-10,31.05.2022,CHILDRENS,247 CARS (WILLENHALL) LIMITED,24/05/2022,740.00,6241-Hire of Vehicle with Driver,TRANSPORT,DIRECT TRANSPORT COSTS,REVENUE
Walsall Council,http://opendatacommunities.org/id/metropolitan-district-council/walsall ,WC138-11,31.05.2022,CHILDRENS,247 CARS (WILLENHALL) LIMITED,24/05/2022,350.00,6241-Hire of Vehicle with Driver,TRANSPORT,DIRECT TRANSPORT COSTS,REVENUE
Walsall Council,http://opendatacommunities.org/id/metropolitan-district-council/walsall ,WC138-12,31.05.2022,CHILDRENS,247 CARS (WILLENHALL) LIMITED,24/05/2022,621.00,6241-Hire of Vehicle with Driver,TRANSPORT,DIRECT TRANSPORT COSTS,REVENUE
Walsall Council,http://opendatacommunities.org/id/metropolitan-district-council/walsall ,WC138-13,31.05.2022,CHILDRENS,247 CARS (WILLENHALL) LIMITED,24/05/2022,-730.80,6241-Hire of Vehicle with Driver,TRANSPORT,DIRECT TRANSPORT COSTS,REVENUE
Walsall Council,http://opendatacommunities.org/id/metropolitan-district-council/walsall ,WC138-14,31.05.2022,CHILDRENS,247 CARS (WILLENHALL) LIMITED,24/05/2022,"1,315.44",6241-Hire of Vehicle with Driver,TRANSPORT,DIRECT TRANSPORT COSTS,REVENUE
Walsall Council,http://opendatacommunities.org/id/metropolitan-district-council/walsall ,WC138-15,31.05.2022,CHILDRENS,247 CARS (WILLENHALL) LIMITED,24/05/2022,-600.00,6241-Hire of Vehicle with Driver,TRANSPORT,DIRECT TRANSPORT COSTS,REVENUE
Walsall Council,http://opendatacommunities.org/id/metropolitan-district-council/walsall ,WC138-16,31.05.2022,RESOURCES AND TRANSFORMATION,31ST SUTTON COLDFIELD WEST SCOUT GROUP BUILDING FUND,06/05/2022,485.00,6610-Hire of Room,SUPPLIES & SERVICES,SERVICES,REVENUE
Walsall Council,http://opendatacommunities.org/id/metropolitan-district-council/walsall ,WC138-17,31.05.2022,RESOURCES AND TRANSFORMATION,4 SIGHT EYECARE CENTRE 002,25/05/2022,-346.46,6625-Eye Tests,DIRECT EMPLOYEES,EMPLOYEE ALLOWANCES & EXPENSES,REVENUE
Walsall Council,http://opendatacommunities.org/id/metropolitan-district-council/walsall ,WC138-18,31.05.2022,RESOURCES AND TRANSFORMATION,4 SIGHT EYECARE CENTRE 002,25/05/2022,346.46,6625-Eye Tests,DIRECT EMPLOYEES,EMPLOYEE ALLOWANCES & EXPENSES,REVENUE
Walsall Council,http://opendatacommunities.org/id/metropolitan-district-council/walsall ,WC138-19,31.05.2022,ADULT SOCIAL CARE,5 CARE SERVICES LTD,05/05/2022,934.20,6541-Domiciliary Care,THIRD PARTY PAYMENTS,PRIVATE CONTRACTOR,REVENUE
Walsall Council,http://opendatacommunities.org/id/metropolitan-district-council/walsall ,WC138-20,31.05.2022,ADULT SOCIAL CARE,5 CARE SERVICES LTD,05/05/2022,"2,848.96",6541-Domiciliary Care,THIRD PARTY PAYMENTS,PRIVATE CONTRACTOR,REVENUE
Walsall Council,http://opendatacommunities.org/id/metropolitan-district-council/walsall ,WC138-21,31.05.2022,ADULT SOCIAL CARE,5 CARE SERVICES LTD,05/05/2022,406.84,6541-Domiciliary Care,THIRD PARTY PAYMENTS,PRIVATE CONTRACTOR,REVENUE
Walsall Council,http://opendatacommunities.org/id/metropolitan-district-council/walsall ,WC138-22,31.05.2022,ADULT SOCIAL CARE,5 CARE SERVICES LTD,05/05/2022,526.78,6541-Domiciliary Care,THIRD PARTY PAYMENTS,PRIVATE CONTRACTOR,REVENUE
Walsall Council,http://opendatacommunities.org/id/metropolitan-district-council/walsall ,WC138-23,31.05.2022,ADULT SOCIAL CARE,5 CARE SERVICES LTD,05/05/2022,"4,119.91",6541-Domiciliary Care,THIRD PARTY PAYMENTS,PRIVATE CONTRACTOR,REVENUE
Walsall Council,http://opendatacommunities.org/id/metropolitan-district-council/walsall ,WC138-24,31.05.2022,ADULT SOCIAL CARE,5 CARE SERVICES LTD,10/05/2022,442.40,6541-Domiciliary Care,THIRD PARTY PAYMENTS,PRIVATE CONTRACTOR,REVENUE
Walsall Council,http://opendatacommunities.org/id/metropolitan-district-council/walsall ,WC138-25,31.05.2022,ADULT SOCIAL CARE,5 CARE SERVICES LTD,10/05/2022,734.70,6541-Domiciliary Care,THIRD PARTY PAYMENTS,PRIVATE CONTRACTOR,REVENUE
Walsall Council,http://opendatacommunities.org/id/metropolitan-district-council/walsall ,WC138-26,31.05.2022,ADULT SOCIAL CARE,5 CARE SERVICES LTD,10/05/2022,316.00,6541-Domiciliary Care,THIRD PARTY PAYMENTS,PRIVATE CONTRACTOR,REVENUE
Walsall Council,http://opendatacommunities.org/id/metropolitan-district-council/walsall ,WC138-27,31.05.2022,ADULT SOCIAL CARE,5 CARE SERVICES LTD,10/05/2022,331.80,6541-Domiciliary Care,THIRD PARTY PAYMENTS,PRIVATE CONTRACTOR,REVENUE
Walsall Council,http://opendatacommunities.org/id/metropolitan-district-council/walsall ,WC138-28,31.05.2022,ADULT SOCIAL CARE,5 CARE SERVICES LTD,10/05/2022,497.70,6541-Domiciliary Care,THIRD PARTY PAYMENTS,PRIVATE CONTRACTOR,REVENUE
Walsall Council,http://opendatacommunities.org/id/metropolitan-district-council/walsall ,WC138-29,31.05.2022,ADULT SOCIAL CARE,5 CARE SERVICES LTD,10/05/2022,252.80,6541-Domiciliary Care,THIRD PARTY PAYMENTS,PRIVATE CONTRACTOR,REVENUE
Walsall Council,http://opendatacommunities.org/id/metropolitan-district-council/walsall ,WC138-30,31.05.2022,ADULT SOCIAL CARE,5 CARE SERVICES LTD,10/05/2022,497.70,6541-Domiciliary Care,THIRD PARTY PAYMENTS,PRIVATE CONTRACTOR,REVENUE
Walsall Council,http://opendatacommunities.org/id/metropolitan-district-council/walsall ,WC138-31,31.05.2022,ADULT SOCIAL CARE,5 CARE SERVICES LTD,10/05/2022,497.70,6541-Domiciliary Care,THIRD PARTY PAYMENTS,PRIVATE CONTRACTOR,REVENUE
Walsall Council,http://opendatacommunities.org/id/metropolitan-district-council/walsall ,WC138-32,31.05.2022,ADULT SOCIAL CARE,5 CARE SERVICES LTD,10/05/2022,"1,216.60",6541-Domiciliary Care,THIRD PARTY PAYMENTS,PRIVATE CONTRACTOR,REVENUE
Walsall Council,http://opendatacommunities.org/id/metropolitan-district-council/walsall ,WC138-33,31.05.2022,ADULT SOCIAL CARE,5 CARE SERVICES LTD,10/05/2022,568.80,6541-Domiciliary Care,THIRD PARTY PAYMENTS,PRIVATE CONTRACTOR,REVENUE
Walsall Council,http://opendatacommunities.org/id/metropolitan-district-council/walsall ,WC138-34,31.05.2022,ADULT SOCIAL CARE,5 CARE SERVICES LTD,10/05/2022,884.80,6541-Domiciliary Care,THIRD PARTY PAYMENTS,PRIVATE CONTRACTOR,REVENUE
Walsall Council,http://opendatacommunities.org/id/metropolitan-district-council/walsall ,WC138-35,31.05.2022,ADULT SOCIAL CARE,5 CARE SERVICES LTD,10/05/2022,296.25,6541-Domiciliary Care,THIRD PARTY PAYMENTS,PRIVATE CONTRACTOR,REVENUE
Walsall Council,http://opendatacommunities.org/id/metropolitan-district-council/walsall ,WC138-36,31.05.2022,ADULT SOCIAL CARE,5 CARE SERVICES LTD,10/05/2022,288.35,6541-Domiciliary Care,THIRD PARTY PAYMENTS,PRIVATE CONTRACTOR,REVENUE
Walsall Council,http://opendatacommunities.org/id/metropolitan-district-council/walsall ,WC138-37,31.05.2022,ADULT SOCIAL CARE,5 CARE SERVICES LTD,10/05/2022,"1,501.00",6541-Domiciliary Care,THIRD PARTY PAYMENTS,PRIVATE CONTRACTOR,REVENUE
Walsall Council,http://opendatacommunities.org/id/metropolitan-district-council/walsall ,WC138-38,31.05.2022,ADULT SOCIAL CARE,5 CARE SERVICES LTD,10/05/2022,331.80,6541-Domiciliary Care,THIRD PARTY PAYMENTS,PRIVATE CONTRACTOR,REVENUE
Walsall Council,http://opendatacommunities.org/id/metropolitan-district-council/walsall ,WC138-39,31.05.2022,ADULT SOCIAL CARE,5 CARE SERVICES LTD,10/05/2022,497.70,6541-Domiciliary Care,THIRD PARTY PAYMENTS,PRIVATE CONTRACTOR,REVENUE
Walsall Council,http://opendatacommunities.org/id/metropolitan-district-council/walsall ,WC138-40,31.05.2022,ADULT SOCIAL CARE,5 CARE SERVICES LTD,10/05/2022,489.80,6541-Domiciliary Care,THIRD PARTY PAYMENTS,PRIVATE CONTRACTOR,REVENUE
Walsall Council,http://opendatacommunities.org/id/metropolitan-district-council/walsall ,WC138-41,31.05.2022,ADULT SOCIAL CARE,5 CARE SERVICES LTD,10/05/2022,663.60,6541-Domiciliary Care,THIRD PARTY PAYMENTS,PRIVATE CONTRACTOR,REVENUE
Walsall Council,http://opendatacommunities.org/id/metropolitan-district-council/walsall ,WC138-42,31.05.2022,ADULT SOCIAL CARE,5 CARE SERVICES LTD,10/05/2022,331.80,6541-Domiciliary Care,THIRD PARTY PAYMENTS,PRIVATE CONTRACTOR,REVENUE
Walsall Council,http://opendatacommunities.org/id/metropolitan-district-council/walsall ,WC138-43,31.05.2022,ADULT SOCIAL CARE,5 CARE SERVICES LTD,10/05/2022,645.19,6541-Domiciliary Care,THIRD PARTY PAYMENTS,PRIVATE CONTRACTOR,REVENUE
Walsall Council,http://opendatacommunities.org/id/metropolitan-district-council/walsall ,WC138-44,31.05.2022,ADULT SOCIAL CARE,5 CARE SERVICES LTD,10/05/2022,395.00,6541-Domiciliary Care,THIRD PARTY PAYMENTS,PRIVATE CONTRACTOR,REVENUE
Walsall Council,http://opendatacommunities.org/id/metropolitan-district-council/walsall ,WC138-45,31.05.2022,ADULT SOCIAL CARE,5 CARE SERVICES LTD,10/05/2022,442.40,6541-Domiciliary Care,THIRD PARTY PAYMENTS,PRIVATE CONTRACTOR,REVENUE
Walsall Council,http://opendatacommunities.org/id/metropolitan-district-council/walsall ,WC138-46,31.05.2022,ADULT SOCIAL CARE,5 CARE SERVICES LTD,10/05/2022,442.40,6541-Domiciliary Care,THIRD PARTY PAYMENTS,PRIVATE CONTRACTOR,REVENUE
Walsall Council,http://opendatacommunities.org/id/metropolitan-district-council/walsall ,WC138-47,31.05.2022,ADULT SOCIAL CARE,5 CARE SERVICES LTD,10/05/2022,316.00,6541-Domiciliary Care,THIRD PARTY PAYMENTS,PRIVATE CONTRACTOR,REVENUE
Walsall Council,http://opendatacommunities.org/id/metropolitan-district-council/walsall ,WC138-48,31.05.2022,ADULT SOCIAL CARE,5 CARE SERVICES LTD,10/05/2022,331.80,6541-Domiciliary Care,THIRD PARTY PAYMENTS,PRIVATE CONTRACTOR,REVENUE
Walsall Council,http://opendatacommunities.org/id/metropolitan-district-council/walsall ,WC138-49,31.05.2022,ADULT SOCIAL CARE,5 CARE SERVICES LTD,10/05/2022,497.70,6541-Domiciliary Care,THIRD PARTY PAYMENTS,PRIVATE CONTRACTOR,REVENUE
Walsall Council,http://opendatacommunities.org/id/metropolitan-district-council/walsall ,WC138-50,31.05.2022,ADULT SOCIAL CARE,5 CARE SERVICES LTD,10/05/2022,252.80,6541-Domiciliary Care,THIRD PARTY PAYMENTS,PRIVATE CONTRACTOR,REVENUE
Walsall Council,http://opendatacommunities.org/id/metropolitan-district-council/walsall ,WC138-51,31.05.2022,ADULT SOCIAL CARE,5 CARE SERVICES LTD,10/05/2022,288.35,6541-Domiciliary Care,THIRD PARTY PAYMENTS,PRIVATE CONTRACTOR,REVENUE
Walsall Council,http://opendatacommunities.org/id/metropolitan-district-council/walsall ,WC138-52,31.05.2022,ADULT SOCIAL CARE,5 CARE SERVICES LTD,10/05/2022,497.70,6541-Domiciliary Care,THIRD PARTY PAYMENTS,PRIVATE CONTRACTOR,REVENUE
Walsall Council,http://opendatacommunities.org/id/metropolitan-district-council/walsall ,WC138-53,31.05.2022,ADULT SOCIAL CARE,5 CARE SERVICES LTD,10/05/2022,489.80,6541-Domiciliary Care,THIRD PARTY PAYMENTS,PRIVATE CONTRACTOR,REVENUE
Walsall Council,http://opendatacommunities.org/id/metropolitan-district-council/walsall ,WC138-54,31.05.2022,ADULT SOCIAL CARE,5 CARE SERVICES LTD,10/05/2022,"1,327.20",6541-Domiciliary Care,THIRD PARTY PAYMENTS,PRIVATE CONTRACTOR,REVENUE
Walsall Council,http://opendatacommunities.org/id/metropolitan-district-council/walsall ,WC138-55,31.05.2022,ADULT SOCIAL CARE,5 CARE SERVICES LTD,10/05/2022,331.80,6541-Domiciliary Care,THIRD PARTY PAYMENTS,PRIVATE CONTRACTOR,REVENUE
Walsall Council,http://opendatacommunities.org/id/metropolitan-district-council/walsall ,WC138-56,31.05.2022,ADULT SOCIAL CARE,5 CARE SERVICES LTD,10/05/2022,497.70,6541-Domiciliary Care,THIRD PARTY PAYMENTS,PRIVATE CONTRACTOR,REVENUE
Walsall Council,http://opendatacommunities.org/id/metropolitan-district-council/walsall ,WC138-57,31.05.2022,ADULT SOCIAL CARE,5 CARE SERVICES LTD,10/05/2022,663.60,6541-Domiciliary Care,THIRD PARTY PAYMENTS,PRIVATE CONTRACTOR,REVENUE
Walsall Council,http://opendatacommunities.org/id/metropolitan-district-council/walsall ,WC138-58,31.05.2022,ADULT SOCIAL CARE,5 CARE SERVICES LTD,10/05/2022,331.80,6541-Domiciliary Care,THIRD PARTY PAYMENTS,PRIVATE CONTRACTOR,REVENUE
Walsall Council,http://opendatacommunities.org/id/metropolitan-district-council/walsall ,WC138-59,31.05.2022,ADULT SOCIAL CARE,5 CARE SERVICES LTD,10/05/2022,645.19,6541-Domiciliary Care,THIRD PARTY PAYMENTS,PRIVATE CONTRACTOR,REVENUE
Walsall Council,http://opendatacommunities.org/id/metropolitan-district-council/walsall ,WC138-60,31.05.2022,ADULT SOCIAL CARE,5 CARE SERVICES LTD,10/05/2022,426.60,6541-Domiciliary Care,THIRD PARTY PAYMENTS,PRIVATE CONTRACTOR,REVENUE
Walsall Council,http://opendatacommunities.org/id/metropolitan-district-council/walsall ,WC138-61,31.05.2022,ADULT SOCIAL CARE,5 CARE SERVICES LTD,10/05/2022,"1,216.60",6541-Domiciliary Care,THIRD PARTY PAYMENTS,PRIVATE CONTRACTOR,REVENUE
Walsall Council,http://opendatacommunities.org/id/metropolitan-district-council/walsall ,WC138-62,31.05.2022,ADULT SOCIAL CARE,5 CARE SERVICES LTD,10/05/2022,568.80,6541-Domiciliary Care,THIRD PARTY PAYMENTS,PRIVATE CONTRACTOR,REVENUE
Walsall Council,http://opendatacommunities.org/id/metropolitan-district-council/walsall ,WC138-63,31.05.2022,ADULT SOCIAL CARE,5 CARE SERVICES LTD,10/05/2022,884.80,6541-Domiciliary Care,THIRD PARTY PAYMENTS,PRIVATE CONTRACTOR,REVENUE
Walsall Council,http://opendatacommunities.org/id/metropolitan-district-council/walsall ,WC138-64,31.05.2022,ADULT SOCIAL CARE,5 CARE SERVICES LTD,10/05/2022,734.70,6541-Domiciliary Care,THIRD PARTY PAYMENTS,PRIVATE CONTRACTOR,REVENUE
Walsall Council,http://opendatacommunities.org/id/metropolitan-district-council/walsall ,WC138-65,31.05.2022,ADULT SOCIAL CARE,5 CARE SERVICES LTD,10/05/2022,252.80,6541-Domiciliary Care,THIRD PARTY PAYMENTS,PRIVATE CONTRACTOR,REVENUE
Walsall Council,http://opendatacommunities.org/id/metropolitan-district-council/walsall ,WC138-66,31.05.2022,ADULT SOCIAL CARE,5 CARE SERVICES LTD,10/05/2022,497.70,6541-Domiciliary Care,THIRD PARTY PAYMENTS,PRIVATE CONTRACTOR,REVENUE
Walsall Council,http://opendatacommunities.org/id/metropolitan-district-council/walsall ,WC138-67,31.05.2022,ADULT SOCIAL CARE,5 CARE SERVICES LTD,10/05/2022,296.25,6541-Domiciliary Care,THIRD PARTY PAYMENTS,PRIVATE CONTRACTOR,REVENUE
Walsall Council,http://opendatacommunities.org/id/metropolitan-district-council/walsall ,WC138-68,31.05.2022,ADULT SOCIAL CARE,5 CARE SERVICES LTD,23/05/2022,442.40,6541-Domiciliary Care,THIRD PARTY PAYMENTS,PRIVATE CONTRACTOR,REVENUE
Walsall Council,http://opendatacommunities.org/id/metropolitan-district-council/walsall ,WC138-69,31.05.2022,ADULT SOCIAL CARE,5 CARE SERVICES LTD,23/05/2022,288.35,6541-Domiciliary Care,THIRD PARTY PAYMENTS,PRIVATE CONTRACTOR,REVENUE
Walsall Council,http://opendatacommunities.org/id/metropolitan-district-council/walsall ,WC138-70,31.05.2022,ADULT SOCIAL CARE,5 CARE SERVICES LTD,23/05/2022,497.70,6541-Domiciliary Care,THIRD PARTY PAYMENTS,PRIVATE CONTRACTOR,REVENUE
Walsall Council,http://opendatacommunities.org/id/metropolitan-district-council/walsall ,WC138-71,31.05.2022,ADULT SOCIAL CARE,5 CARE SERVICES LTD,23/05/2022,316.00,6541-Domiciliary Care,THIRD PARTY PAYMENTS,PRIVATE CONTRACTOR,REVENUE
Walsall Council,http://opendatacommunities.org/id/metropolitan-district-council/walsall ,WC138-72,31.05.2022,ADULT SOCIAL CARE,5 CARE SERVICES LTD,23/05/2022,331.80,6541-Domiciliary Care,THIRD PARTY PAYMENTS,PRIVATE CONTRACTOR,REVENUE
Walsall Council,http://opendatacommunities.org/id/metropolitan-district-council/walsall ,WC138-73,31.05.2022,ADULT SOCIAL CARE,5 CARE SERVICES LTD,23/05/2022,497.70,6541-Domiciliary Care,THIRD PARTY PAYMENTS,PRIVATE CONTRACTOR,REVENUE
Walsall Council,http://opendatacommunities.org/id/metropolitan-district-council/walsall ,WC138-74,31.05.2022,ADULT SOCIAL CARE,5 CARE SERVICES LTD,23/05/2022,489.80,6541-Domiciliary Care,THIRD PARTY PAYMENTS,PRIVATE CONTRACTOR,REVENUE
Walsall Council,http://opendatacommunities.org/id/metropolitan-district-council/walsall ,WC138-75,31.05.2022,ADULT SOCIAL CARE,5 CARE SERVICES LTD,23/05/2022,252.80,6541-Domiciliary Care,THIRD PARTY PAYMENTS,PRIVATE CONTRACTOR,REVENUE
Walsall Council,http://opendatacommunities.org/id/metropolitan-district-council/walsall ,WC138-76,31.05.2022,ADULT SOCIAL CARE,5 CARE SERVICES LTD,23/05/2022,497.70,6541-Domiciliary Care,THIRD PARTY PAYMENTS,PRIVATE CONTRACTOR,REVENUE
Walsall Council,http://opendatacommunities.org/id/metropolitan-district-council/walsall ,WC138-77,31.05.2022,ADULT SOCIAL CARE,5 CARE SERVICES LTD,23/05/2022,"1,216.60",6541-Domiciliary Care,THIRD PARTY PAYMENTS,PRIVATE CONTRACTOR,REVENUE
Walsall Council,http://opendatacommunities.org/id/metropolitan-district-council/walsall ,WC138-78,31.05.2022,ADULT SOCIAL CARE,5 CARE SERVICES LTD,23/05/2022,568.80,6541-Domiciliary Care,THIRD PARTY PAYMENTS,PRIVATE CONTRACTOR,REVENUE
Walsall Council,http://opendatacommunities.org/id/metropolitan-district-council/walsall ,WC138-79,31.05.2022,ADULT SOCIAL CARE,5 CARE SERVICES LTD,23/05/2022,347.60,6541-Domiciliary Care,THIRD PARTY PAYMENTS,PRIVATE CONTRACTOR,REVENUE
Walsall Council,http://opendatacommunities.org/id/metropolitan-district-council/walsall ,WC138-80,31.05.2022,ADULT SOCIAL CARE,5 CARE SERVICES LTD,23/05/2022,884.80,6541-Domiciliary Care,THIRD PARTY PAYMENTS,PRIVATE CONTRACTOR,REVENUE
Walsall Council,http://opendatacommunities.org/id/metropolitan-district-council/walsall ,WC138-81,31.05.2022,ADULT SOCIAL CARE,5 CARE SERVICES LTD,23/05/2022,296.25,6541-Domiciliary Care,THIRD PARTY PAYMENTS,PRIVATE CONTRACTOR,REVENUE
Walsall Council,http://opendatacommunities.org/id/metropolitan-district-council/walsall ,WC138-82,31.05.2022,ADULT SOCIAL CARE,5 CARE SERVICES LTD,23/05/2022,"1,256.10",6541-Domiciliary Care,THIRD PARTY PAYMENTS,PRIVATE CONTRACTOR,REVENUE
Walsall Council,http://opendatacommunities.org/id/metropolitan-district-council/walsall ,WC138-83,31.05.2022,ADULT SOCIAL CARE,5 CARE SERVICES LTD,23/05/2022,521.40,6541-Domiciliary Care,THIRD PARTY PAYMENTS,PRIVATE CONTRACTOR,REVENUE
Walsall Council,http://opendatacommunities.org/id/metropolitan-district-council/walsall ,WC138-84,31.05.2022,ADULT SOCIAL CARE,5 CARE SERVICES LTD,23/05/2022,734.70,6541-Domiciliary Care,THIRD PARTY PAYMENTS,PRIVATE CONTRACTOR,REVENUE
Walsall Council,http://opendatacommunities.org/id/metropolitan-district-council/walsall ,WC138-85,31.05.2022,ADULT SOCIAL CARE,5 CARE SERVICES LTD,23/05/2022,252.80,6541-Domiciliary Care,THIRD PARTY PAYMENTS,PRIVATE CONTRACTOR,REVENUE
Walsall Council,http://opendatacommunities.org/id/metropolitan-district-council/walsall ,WC138-86,31.05.2022,ADULT SOCIAL CARE,5 CARE SERVICES LTD,23/05/2022,-283.37,6541-Domiciliary Care,THIRD PARTY PAYMENTS,PRIVATE CONTRACTOR,REVENUE
Walsall Council,http://opendatacommunities.org/id/metropolitan-district-council/walsall ,WC138-87,31.05.2022,ADULT SOCIAL CARE,5 CARE SERVICES LTD,23/05/2022,497.70,6541-Domiciliary Care,THIRD PARTY PAYMENTS,PRIVATE CONTRACTOR,REVENUE
Walsall Council,http://opendatacommunities.org/id/metropolitan-district-council/walsall ,WC138-88,31.05.2022,ADULT SOCIAL CARE,5 CARE SERVICES LTD,23/05/2022,"1,137.60",6541-Domiciliary Care,THIRD PARTY PAYMENTS,PRIVATE CONTRACTOR,REVENUE
Walsall Council,http://opendatacommunities.org/id/metropolitan-district-council/walsall ,WC138-89,31.05.2022,ADULT SOCIAL CARE,5 CARE SERVICES LTD,23/05/2022,331.80,6541-Domiciliary Care,THIRD PARTY PAYMENTS,PRIVATE CONTRACTOR,REVENUE
Walsall Council,http://opendatacommunities.org/id/metropolitan-district-council/walsall ,WC138-90,31.05.2022,ADULT SOCIAL CARE,5 CARE SERVICES LTD,23/05/2022,711.00,6541-Domiciliary Care,THIRD PARTY PAYMENTS,PRIVATE CONTRACTOR,REVENUE
Walsall Council,http://opendatacommunities.org/id/metropolitan-district-council/walsall ,WC138-91,31.05.2022,ADULT SOCIAL CARE,5 CARE SERVICES LTD,23/05/2022,331.80,6541-Domiciliary Care,THIRD PARTY PAYMENTS,PRIVATE CONTRACTOR,REVENUE
Walsall Council,http://opendatacommunities.org/id/metropolitan-district-council/walsall ,WC138-92,31.05.2022,ADULT SOCIAL CARE,5 CARE SERVICES LTD,23/05/2022,645.19,6541-Domiciliary Care,THIRD PARTY PAYMENTS,PRIVATE CONTRACTOR,REVENUE
Walsall Council,http://opendatacommunities.org/id/metropolitan-district-council/walsall ,WC138-93,31.05.2022,ADULT SOCIAL CARE,5 CARE SERVICES LTD,23/05/2022,308.10,6541-Domiciliary Care,THIRD PARTY PAYMENTS,PRIVATE CONTRACTOR,REVENUE
Walsall Council,http://opendatacommunities.org/id/metropolitan-district-council/walsall ,WC138-94,31.05.2022,ADULT SOCIAL CARE,5 CARE SERVICES LTD,23/05/2022,-568.80,6541-Domiciliary Care,THIRD PARTY PAYMENTS,PRIVATE CONTRACTOR,REVENUE
Walsall Council,http://opendatacommunities.org/id/metropolitan-district-council/walsall ,WC138-95,31.05.2022,ADULT SOCIAL CARE,5 CARE SERVICES LTD,23/05/2022,734.70,6541-Domiciliary Care,THIRD PARTY PAYMENTS,PRIVATE CONTRACTOR,REVENUE
Walsall Council,http://opendatacommunities.org/id/metropolitan-district-council/walsall ,WC138-96,31.05.2022,ADULT SOCIAL CARE,5 CARE SERVICES LTD,23/05/2022,252.80,6541-Domiciliary Care,THIRD PARTY PAYMENTS,PRIVATE CONTRACTOR,REVENUE
Walsall Council,http://opendatacommunities.org/id/metropolitan-district-council/walsall ,WC138-97,31.05.2022,ADULT SOCIAL CARE,5 CARE SERVICES LTD,23/05/2022,"1,216.60",6541-Domiciliary Care,THIRD PARTY PAYMENTS,PRIVATE CONTRACTOR,REVENUE
Walsall Council,http://opendatacommunities.org/id/metropolitan-district-council/walsall ,WC138-98,31.05.2022,ADULT SOCIAL CARE,5 CARE SERVICES LTD,23/05/2022,568.80,6541-Domiciliary Care,THIRD PARTY PAYMENTS,PRIVATE CONTRACTOR,REVENUE
Walsall Council,http://opendatacommunities.org/id/metropolitan-district-council/walsall ,WC138-99,31.05.2022,ADULT SOCIAL CARE,5 CARE SERVICES LTD,23/05/2022,497.70,6541-Domiciliary Care,THIRD PARTY PAYMENTS,PRIVATE CONTRACTOR,REVENUE
Walsall Council,http://opendatacommunities.org/id/metropolitan-district-council/walsall ,WC138-100,31.05.2022,ADULT SOCIAL CARE,5 CARE SERVICES LTD,23/05/2022,442.40,6541-Domiciliary Care,THIRD PARTY PAYMENTS,PRIVATE CONTRACTOR,REVENUE
Walsall Council,http://opendatacommunities.org/id/metropolitan-district-council/walsall ,WC138-101,31.05.2022,ADULT SOCIAL CARE,5 CARE SERVICES LTD,23/05/2022,288.35,6541-Domiciliary Care,THIRD PARTY PAYMENTS,PRIVATE CONTRACTOR,REVENUE
Walsall Council,http://opendatacommunities.org/id/metropolitan-district-council/walsall ,WC138-102,31.05.2022,ADULT SOCIAL CARE,5 CARE SERVICES LTD,23/05/2022,497.70,6541-Domiciliary Care,THIRD PARTY PAYMENTS,PRIVATE CONTRACTOR,REVENUE
Walsall Council,http://opendatacommunities.org/id/metropolitan-district-council/walsall ,WC138-103,31.05.2022,ADULT SOCIAL CARE,5 CARE SERVICES LTD,23/05/2022,"1,516.80",6541-Domiciliary Care,THIRD PARTY PAYMENTS,PRIVATE CONTRACTOR,REVENUE
Walsall Council,http://opendatacommunities.org/id/metropolitan-district-council/walsall ,WC138-104,31.05.2022,ADULT SOCIAL CARE,5 CARE SERVICES LTD,23/05/2022,331.80,6541-Domiciliary Care,THIRD PARTY PAYMENTS,PRIVATE CONTRACTOR,REVENUE
Walsall Council,http://opendatacommunities.org/id/metropolitan-district-council/walsall ,WC138-105,31.05.2022,ADULT SOCIAL CARE,5 CARE SERVICES LTD,23/05/2022,884.80,6541-Domiciliary Care,THIRD PARTY PAYMENTS,PRIVATE CONTRACTOR,REVENUE
Walsall Council,http://opendatacommunities.org/id/metropolitan-district-council/walsall ,WC138-106,31.05.2022,ADULT SOCIAL CARE,5 CARE SERVICES LTD,23/05/2022,584.60,6541-Domiciliary Care,THIRD PARTY PAYMENTS,PRIVATE CONTRACTOR,REVENUE
Walsall Council,http://opendatacommunities.org/id/metropolitan-district-council/walsall ,WC138-107,31.05.2022,ADULT SOCIAL CARE,5 CARE SERVICES LTD,23/05/2022,296.25,6541-Domiciliary Care,THIRD PARTY PAYMENTS,PRIVATE CONTRACTOR,REVENUE
Walsall Council,http://opendatacommunities.org/id/metropolitan-district-council/walsall ,WC138-108,31.05.2022,ADULT SOCIAL CARE,5 CARE SERVICES LTD,23/05/2022,663.60,6541-Domiciliary Care,THIRD PARTY PAYMENTS,PRIVATE CONTRACTOR,REVENUE
Walsall Council,http://opendatacommunities.org/id/metropolitan-district-council/walsall ,WC138-109,31.05.2022,ADULT SOCIAL CARE,5 CARE SERVICES LTD,23/05/2022,331.80,6541-Domiciliary Care,THIRD PARTY PAYMENTS,PRIVATE CONTRACTOR,REVENUE
Walsall Council,http://opendatacommunities.org/id/metropolitan-district-council/walsall ,WC138-110,31.05.2022,ADULT SOCIAL CARE,5 CARE SERVICES LTD,23/05/2022,645.19,6541-Domiciliary Care,THIRD PARTY PAYMENTS,PRIVATE CONTRACTOR,REVENUE
Walsall Council,http://opendatacommunities.org/id/metropolitan-district-council/walsall ,WC138-111,31.05.2022,ADULT SOCIAL CARE,5 CARE SERVICES LTD,23/05/2022,489.80,6541-Domiciliary Care,THIRD PARTY PAYMENTS,PRIVATE CONTRACTOR,REVENUE
Walsall Council,http://opendatacommunities.org/id/metropolitan-district-council/walsall ,WC138-112,31.05.2022,ADULT SOCIAL CARE,5 CARE SERVICES LTD,23/05/2022,529.30,6541-Domiciliary Care,THIRD PARTY PAYMENTS,PRIVATE CONTRACTOR,REVENUE
Walsall Council,http://opendatacommunities.org/id/metropolitan-district-council/walsall ,WC138-113,31.05.2022,ADULT SOCIAL CARE,5 CARE SERVICES LTD,23/05/2022,497.70,6541-Domiciliary Care,THIRD PARTY PAYMENTS,PRIVATE CONTRACTOR,REVENUE
Walsall Council,http://opendatacommunities.org/id/metropolitan-district-council/walsall ,WC138-114,31.05.2022,ADULT SOCIAL CARE,5 CARE SERVICES LTD,23/05/2022,387.10,6541-Domiciliary Care,THIRD PARTY PAYMENTS,PRIVATE CONTRACTOR,REVENUE
Walsall Council,http://opendatacommunities.org/id/metropolitan-district-council/walsall ,WC138-115,31.05.2022,ADULT SOCIAL CARE,5 CARE SERVICES LTD,23/05/2022,316.00,6541-Domiciliary Care,THIRD PARTY PAYMENTS,PRIVATE CONTRACTOR,REVENUE
Walsall Council,http://opendatacommunities.org/id/metropolitan-district-council/walsall ,WC138-116,31.05.2022,ADULT SOCIAL CARE,5 CARE SERVICES LTD,23/05/2022,331.80,6541-Domiciliary Care,THIRD PARTY PAYMENTS,PRIVATE CONTRACTOR,REVENUE
Walsall Council,http://opendatacommunities.org/id/metropolitan-district-council/walsall ,WC138-117,31.05.2022,ADULT SOCIAL CARE,5 CARE SERVICES LTD,23/05/2022,497.70,6541-Domiciliary Care,THIRD PARTY PAYMENTS,PRIVATE CONTRACTOR,REVENUE
Walsall Council,http://opendatacommunities.org/id/metropolitan-district-council/walsall ,WC138-118,31.05.2022,ADULT SOCIAL CARE,5 CARE SERVICES LTD,23/05/2022,639.90,6541-Domiciliary Care,THIRD PARTY PAYMENTS,PRIVATE CONTRACTOR,REVENUE
Walsall Council,http://opendatacommunities.org/id/metropolitan-district-council/walsall ,WC138-119,31.05.2022,CHILDRENS,5 CARE SERVICES LTD,09/05/2022,255.20,6220-Professional Fees & Services,SUPPLIES & SERVICES,SERVICES,REVENUE
Walsall Council,http://opendatacommunities.org/id/metropolitan-district-council/walsall ,WC138-120,31.05.2022,"ECONOMY, ENVIRONMENT & COMMUNITIES",A & A SERVICES WEST MIDLANDS,30/05/2022,500.00,6430-Grants to Other Orgs,SUPPLIES & SERVICES,GRANTS (EXP) & SUBSCRIPTIONS,REVENUE
Walsall Council,http://opendatacommunities.org/id/metropolitan-district-council/walsall ,WC138-121,31.05.2022,RESOURCES AND TRANSFORMATION,A D T FIRE AND SECURITY PLC,18/05/2022,"1,454.98",6310-Repair & Maintenance of Furniture & Equipment,SUPPLIES & SERVICES,EQUIPMENT FURNITURE & MATERIALS,REVENUE
Walsall Council,http://opendatacommunities.org/id/metropolitan-district-council/walsall ,WC138-122,31.05.2022,"ECONOMY, ENVIRONMENT & COMMUNITIES",A F BLAKEMORE & SON LTD,05/05/2022,"1,152.46",6413-Food & Drink Supplies,SUPPLIES & SERVICES,CATERING,REVENUE
Walsall Council,http://opendatacommunities.org/id/metropolitan-district-council/walsall ,WC138-123,31.05.2022,"ECONOMY, ENVIRONMENT & COMMUNITIES",A F BLAKEMORE & SON LTD,05/05/2022,288.58,6413-Food & Drink Supplies,SUPPLIES & SERVICES,CATERING,REVENUE
Walsall Council,http://opendatacommunities.org/id/metropolitan-district-council/walsall ,WC138-124,31.05.2022,"ECONOMY, ENVIRONMENT & COMMUNITIES",A F BLAKEMORE & SON LTD,05/05/2022,524.99,6413-Food & Drink Supplies,SUPPLIES & SERVICES,CATERING,REVENUE
Walsall Council,http://opendatacommunities.org/id/metropolitan-district-council/walsall ,WC138-125,31.05.2022,"ECONOMY, ENVIRONMENT & COMMUNITIES",A F BLAKEMORE & SON LTD,05/05/2022,388.77,6413-Food & Drink Supplies,SUPPLIES & SERVICES,CATERING,REVENUE
Walsall Council,http://opendatacommunities.org/id/metropolitan-district-council/walsall ,WC138-126,31.05.2022,"ECONOMY, ENVIRONMENT & COMMUNITIES",A F BLAKEMORE & SON LTD,05/05/2022,361.41,6413-Food & Drink Supplies,SUPPLIES & SERVICES,CATERING,REVENUE
Walsall Council,http://opendatacommunities.org/id/metropolitan-district-council/walsall ,WC138-127,31.05.2022,"ECONOMY, ENVIRONMENT & COMMUNITIES",A F BLAKEMORE & SON LTD,05/05/2022,953.57,6413-Food & Drink Supplies,SUPPLIES & SERVICES,CATERING,REVENUE
Walsall Council,http://opendatacommunities.org/id/metropolitan-district-council/walsall ,WC138-128,31.05.2022,"ECONOMY, ENVIRONMENT & COMMUNITIES",A F BLAKEMORE & SON LTD,05/05/2022,502.81,6413-Food & Drink Supplies,SUPPLIES & SERVICES,CATERING,REVENUE
Walsall Council,http://opendatacommunities.org/id/metropolitan-district-council/walsall ,WC138-129,31.05.2022,"ECONOMY, ENVIRONMENT & COMMUNITIES",A F BLAKEMORE & SON LTD,13/05/2022,337.32,6413-Food & Drink Supplies,SUPPLIES & SERVICES,CATERING,REVENUE
Walsall Council,http://opendatacommunities.org/id/metropolitan-district-council/walsall ,WC138-130,31.05.2022,"ECONOMY, ENVIRONMENT & COMMUNITIES",A F BLAKEMORE & SON LTD,13/05/2022,309.51,6413-Food & Drink Supplies,SUPPLIES & SERVICES,CATERING,REVENUE
Walsall Council,http://opendatacommunities.org/id/metropolitan-district-council/walsall ,WC138-131,31.05.2022,"ECONOMY, ENVIRONMENT & COMMUNITIES",A F BLAKEMORE & SON LTD,20/05/2022,286.12,6413-Catering & Refreshments,SUPPLIES & SERVICES,CATERING,REVENUE
Walsall Council,http://opendatacommunities.org/id/metropolitan-district-council/walsall ,WC138-132,31.05.2022,"ECONOMY, ENVIRONMENT & COMMUNITIES",A F BLAKEMORE & SON LTD,20/05/2022,"1,177.91",6413-Catering & Refreshments,SUPPLIES & SERVICES,CATERING,REVENUE
Walsall Council,http://opendatacommunities.org/id/metropolitan-district-council/walsall ,WC138-133,31.05.2022,CHILDRENS,A1 WALSALL RADIO CARS,24/05/2022,362.00,6241-Hire of Vehicle with Driver,TRANSPORT,DIRECT TRANSPORT COSTS,REVENUE
Walsall Council,http://opendatacommunities.org/id/metropolitan-district-council/walsall ,WC138-134,31.05.2022,CHILDRENS,A1 WALSALL RADIO CARS,24/05/2022,"1,100.00",6241-Hire of Vehicle with Driver,TRANSPORT,DIRECT TRANSPORT COSTS,REVENUE
Walsall Council,http://opendatacommunities.org/id/metropolitan-district-council/walsall ,WC138-135,31.05.2022,RESOURCES AND TRANSFORMATION,AAINA COMMUNITY HUB,06/05/2022,360.00,6610-Hire of Room,SUPPLIES & SERVICES,SERVICES,REVENUE
Walsall Council,http://opendatacommunities.org/id/metropolitan-district-council/walsall ,WC138-136,31.05.2022,"ECONOMY, ENVIRONMENT & COMMUNITIES",AAINA COMMUNITY HUB,20/05/2022,698.75,6313-Grants to Other Orgs,SUPPLIES & SERVICES,GRANTS (EXP) & SUBSCRIPTIONS,REVENUE
Walsall Council,http://opendatacommunities.org/id/metropolitan-district-council/walsall ,WC138-137,31.05.2022,"ECONOMY, ENVIRONMENT & COMMUNITIES",AAINA COMMUNITY HUB,20/05/2022,944.47,6313-Grants to Other Orgs,SUPPLIES & SERVICES,GRANTS (EXP) & SUBSCRIPTIONS,REVENUE
Walsall Council,http://opendatacommunities.org/id/metropolitan-district-council/walsall ,WC138-138,31.05.2022,"ECONOMY, ENVIRONMENT & COMMUNITIES",AAINA COMMUNITY HUB,16/05/2022,849.78,6313-Grants to Other Orgs,SUPPLIES & SERVICES,GRANTS (EXP) & SUBSCRIPTIONS,REVENUE
Walsall Council,http://opendatacommunities.org/id/metropolitan-district-council/walsall ,WC138-139,31.05.2022,CHILDRENS,ABACUS FOSTERING LTD,16/05/2022,"3,165.71",6223-Independent Foster Care-Oth Agency Provision,THIRD PARTY PAYMENTS,PRIVATE CONTRACTOR,REVENUE
Walsall Council,http://opendatacommunities.org/id/metropolitan-district-council/walsall ,WC138-140,31.05.2022,ADULT SOCIAL CARE,ABBEY COURT NURSING & RESIDEN,10/05/2022,"2,083.24",6541-Residential,THIRD PARTY PAYMENTS,PRIVATE CONTRACTOR,REVENUE
Walsall Council,http://opendatacommunities.org/id/metropolitan-district-council/walsall ,WC138-141,31.05.2022,ADULT SOCIAL CARE,ABBEY COURT NURSING & RESIDEN,10/05/2022,"2,592.30",6541-Residential EMI,THIRD PARTY PAYMENTS,PRIVATE CONTRACTOR,REVENUE
Walsall Council,http://opendatacommunities.org/id/metropolitan-district-council/walsall ,WC138-142,31.05.2022,ADULT SOCIAL CARE,ABBEY COURT NURSING & RESIDEN,10/05/2022,"2,352.30",6541-Residential EMI,THIRD PARTY PAYMENTS,PRIVATE CONTRACTOR,REVENUE
Walsall Council,http://opendatacommunities.org/id/metropolitan-district-council/walsall ,WC138-143,31.05.2022,ADULT SOCIAL CARE,ABBEY HEALTHCARE HOMES LTD,10/05/2022,"2,418.20",6541-Residential,THIRD PARTY PAYMENTS,PRIVATE CONTRACTOR,REVENUE
Walsall Council,http://opendatacommunities.org/id/metropolitan-district-council/walsall ,WC138-144,31.05.2022,ADULT SOCIAL CARE,ABBEY HEALTHCARE HOMES LTD,10/05/2022,"3,162.30",6541-Residential,THIRD PARTY PAYMENTS,PRIVATE CONTRACTOR,REVENUE
Walsall Council,http://opendatacommunities.org/id/metropolitan-district-council/walsall ,WC138-145,31.05.2022,ADULT SOCIAL CARE,ABBEY HEALTHCARE HOMES LTD,10/05/2022,"3,162.30",6541-Residential,THIRD PARTY PAYMENTS,PRIVATE CONTRACTOR,REVENUE
Walsall Council,http://opendatacommunities.org/id/metropolitan-district-council/walsall ,WC138-146,31.05.2022,ADULT SOCIAL CARE,ABBEY HEALTHCARE HOMES LTD,10/05/2022,"3,583.91",6541-Residential,THIRD PARTY PAYMENTS,PRIVATE CONTRACTOR,REVENUE
Walsall Council,http://opendatacommunities.org/id/metropolitan-district-council/walsall ,WC138-147,31.05.2022,CHILDRENS,ABC DAY NURSERY (WILLENHALL) LIMITED,30/05/2022,"9,033.38",1184-Other-Grants to Other Orgs,SUPPLIES & SERVICES,GRANTS (EXP) & SUBSCRIPTIONS,REVENUE
Walsall Council,http://opendatacommunities.org/id/metropolitan-district-council/walsall ,WC138-148,31.05.2022,CHILDRENS,ABC DAY NURSERY (WILLENHALL) LIMITED,30/05/2022,"10,405.20",1184-Other-Grants to Other Orgs,SUPPLIES & SERVICES,GRANTS (EXP) & SUBSCRIPTIONS,REVENUE
Walsall Council,http://opendatacommunities.org/id/metropolitan-district-council/walsall ,WC138-149,31.05.2022,ADULT SOCIAL CARE,REDACTED,05/05/2022,"2,163.84",6541-Direct Payment,THIRD PARTY PAYMENTS,PRIVATE CONTRACTOR,REVENUE
Walsall Council,http://opendatacommunities.org/id/metropolitan-district-council/walsall ,WC138-150,31.05.2022,"ECONOMY, ENVIRONMENT & COMMUNITIES",REDACTED,27/05/2022,"2,000.00",6430-Grants to Other Orgs,SUPPLIES & SERVICES,GRANTS (EXP) & SUBSCRIPTIONS,REVENUE
Walsall Council,http://opendatacommunities.org/id/metropolitan-district-council/walsall ,WC138-151,31.05.2022,ADULT SOCIAL CARE,ABILITY HEALTHCARE LTD,05/05/2022,328.70,6541-Domiciliary Care,THIRD PARTY PAYMENTS,PRIVATE CONTRACTOR,REVENUE
Walsall Council,http://opendatacommunities.org/id/metropolitan-district-council/walsall ,WC138-152,31.05.2022,ADULT SOCIAL CARE,ABILITY HEALTHCARE LTD,05/05/2022,"2,191.75",6541-Domiciliary Care,THIRD PARTY PAYMENTS,PRIVATE CONTRACTOR,REVENUE
Walsall Council,http://opendatacommunities.org/id/metropolitan-district-council/walsall ,WC138-153,31.05.2022,ADULT SOCIAL CARE,ABILITY HEALTHCARE LTD,05/05/2022,"1,629.20",6541-Domiciliary Care,THIRD PARTY PAYMENTS,PRIVATE CONTRACTOR,REVENUE
Walsall Council,http://opendatacommunities.org/id/metropolitan-district-council/walsall ,WC138-154,31.05.2022,ADULT SOCIAL CARE,ABILITY HEALTHCARE LTD,05/05/2022,"1,753.76",6541-Domiciliary Care,THIRD PARTY PAYMENTS,PRIVATE CONTRACTOR,REVENUE
Walsall Council,http://opendatacommunities.org/id/metropolitan-district-council/walsall ,WC138-155,31.05.2022,ADULT SOCIAL CARE,ABILITY HEALTHCARE LTD,05/05/2022,878.61,6541-Domiciliary Care,THIRD PARTY PAYMENTS,PRIVATE CONTRACTOR,REVENUE
Walsall Council,http://opendatacommunities.org/id/metropolitan-district-council/walsall ,WC138-156,31.05.2022,ADULT SOCIAL CARE,ABILITY HEALTHCARE LTD,05/05/2022,596.44,6541-Domiciliary Care,THIRD PARTY PAYMENTS,PRIVATE CONTRACTOR,REVENUE
Walsall Council,http://opendatacommunities.org/id/metropolitan-district-council/walsall ,WC138-157,31.05.2022,ADULT SOCIAL CARE,ABILITY HEALTHCARE LTD,05/05/2022,892.56,6541-Domiciliary Care,THIRD PARTY PAYMENTS,PRIVATE CONTRACTOR,REVENUE
Walsall Council,http://opendatacommunities.org/id/metropolitan-district-council/walsall ,WC138-158,31.05.2022,ADULT SOCIAL CARE,ABILITY HEALTHCARE LTD,05/05/2022,986.36,6541-Domiciliary Care,THIRD PARTY PAYMENTS,PRIVATE CONTRACTOR,REVENUE
Walsall Council,http://opendatacommunities.org/id/metropolitan-district-council/walsall ,WC138-159,31.05.2022,ADULT SOCIAL CARE,ABILITY HEALTHCARE LTD,05/05/2022,"1,566.80",6541-Domiciliary Care,THIRD PARTY PAYMENTS,PRIVATE CONTRACTOR,REVENUE
Walsall Council,http://opendatacommunities.org/id/metropolitan-district-council/walsall ,WC138-160,31.05.2022,ADULT SOCIAL CARE,ABILITY HEALTHCARE LTD,05/05/2022,873.42,6541-Domiciliary Care,THIRD PARTY PAYMENTS,PRIVATE CONTRACTOR,REVENUE
Walsall Council,http://opendatacommunities.org/id/metropolitan-district-council/walsall ,WC138-161,31.05.2022,ADULT SOCIAL CARE,ABILITY HEALTHCARE LTD,05/05/2022,365.34,6541-Domiciliary Care,THIRD PARTY PAYMENTS,PRIVATE CONTRACTOR,REVENUE
Walsall Council,http://opendatacommunities.org/id/metropolitan-district-council/walsall ,WC138-162,31.05.2022,ADULT SOCIAL CARE,ABILITY HEALTHCARE LTD,05/05/2022,355.50,6541-Domiciliary Care,THIRD PARTY PAYMENTS,PRIVATE CONTRACTOR,REVENUE
Walsall Council,http://opendatacommunities.org/id/metropolitan-district-council/walsall ,WC138-163,31.05.2022,ADULT SOCIAL CARE,ABILITY HEALTHCARE LTD,05/05/2022,819.58,6541-Domiciliary Care,THIRD PARTY PAYMENTS,PRIVATE CONTRACTOR,REVENUE
Walsall Council,http://opendatacommunities.org/id/metropolitan-district-council/walsall ,WC138-164,31.05.2022,ADULT SOCIAL CARE,ABILITY HEALTHCARE LTD,05/05/2022,"2,261.68",6541-Domiciliary Care,THIRD PARTY PAYMENTS,PRIVATE CONTRACTOR,REVENUE
Walsall Council,http://opendatacommunities.org/id/metropolitan-district-council/walsall ,WC138-165,31.05.2022,ADULT SOCIAL CARE,ABILITY HEALTHCARE LTD,05/05/2022,"1,440.48",6541-Domiciliary Care,THIRD PARTY PAYMENTS,PRIVATE CONTRACTOR,REVENUE
Walsall Council,http://opendatacommunities.org/id/metropolitan-district-council/walsall ,WC138-166,31.05.2022,ADULT SOCIAL CARE,ABILITY HEALTHCARE LTD,05/05/2022,"1,743.61",6541-Domiciliary Care,THIRD PARTY PAYMENTS,PRIVATE CONTRACTOR,REVENUE
Walsall Council,http://opendatacommunities.org/id/metropolitan-district-council/walsall ,WC138-167,31.05.2022,ADULT SOCIAL CARE,ABILITY HEALTHCARE LTD,05/05/2022,"1,255.20",6541-Domiciliary Care,THIRD PARTY PAYMENTS,PRIVATE CONTRACTOR,REVENUE
Walsall Council,http://opendatacommunities.org/id/metropolitan-district-council/walsall ,WC138-168,31.05.2022,ADULT SOCIAL CARE,ABILITY HEALTHCARE LTD,05/05/2022,"1,972.71",6541-Domiciliary Care,THIRD PARTY PAYMENTS,PRIVATE CONTRACTOR,REVENUE
Walsall Council,http://opendatacommunities.org/id/metropolitan-district-council/walsall ,WC138-169,31.05.2022,ADULT SOCIAL CARE,ABILITY HEALTHCARE LTD,05/05/2022,"1,972.71",6541-Domiciliary Care,THIRD PARTY PAYMENTS,PRIVATE CONTRACTOR,REVENUE
Walsall Council,http://opendatacommunities.org/id/metropolitan-district-council/walsall ,WC138-170,31.05.2022,ADULT SOCIAL CARE,ABILITY HEALTHCARE LTD,05/05/2022,"1,442.16",6541-Domiciliary Care,THIRD PARTY PAYMENTS,PRIVATE CONTRACTOR,REVENUE
Walsall Council,http://opendatacommunities.org/id/metropolitan-district-council/walsall ,WC138-171,31.05.2022,ADULT SOCIAL CARE,ABILITY HEALTHCARE LTD,05/05/2022,"1,370.72",6541-Domiciliary Care,THIRD PARTY PAYMENTS,PRIVATE CONTRACTOR,REVENUE
Walsall Council,http://opendatacommunities.org/id/metropolitan-district-council/walsall ,WC138-172,31.05.2022,ADULT SOCIAL CARE,ABILITY HEALTHCARE LTD,05/05/2022,350.42,6541-Domiciliary Care,THIRD PARTY PAYMENTS,PRIVATE CONTRACTOR,REVENUE
Walsall Council,http://opendatacommunities.org/id/metropolitan-district-council/walsall ,WC138-173,31.05.2022,ADULT SOCIAL CARE,ABILITY HEALTHCARE LTD,05/05/2022,"1,753.76",6541-Domiciliary Care,THIRD PARTY PAYMENTS,PRIVATE CONTRACTOR,REVENUE
Walsall Council,http://opendatacommunities.org/id/metropolitan-district-council/walsall ,WC138-174,31.05.2022,ADULT SOCIAL CARE,ABILITY HEALTHCARE LTD,05/05/2022,577.58,6541-Domiciliary Care,THIRD PARTY PAYMENTS,PRIVATE CONTRACTOR,REVENUE
Walsall Council,http://opendatacommunities.org/id/metropolitan-district-council/walsall ,WC138-175,31.05.2022,ADULT SOCIAL CARE,ABILITY HEALTHCARE LTD,05/05/2022,"1,622.24",6541-Domiciliary Care,THIRD PARTY PAYMENTS,PRIVATE CONTRACTOR,REVENUE
Walsall Council,http://opendatacommunities.org/id/metropolitan-district-council/walsall ,WC138-176,31.05.2022,ADULT SOCIAL CARE,ABILITY HEALTHCARE LTD,05/05/2022,"1,109.79",6541-Domiciliary Care,THIRD PARTY PAYMENTS,PRIVATE CONTRACTOR,REVENUE
Walsall Council,http://opendatacommunities.org/id/metropolitan-district-council/walsall ,WC138-177,31.05.2022,ADULT SOCIAL CARE,ABILITY HEALTHCARE LTD,05/05/2022,"1,120.22",6541-Domiciliary Care,THIRD PARTY PAYMENTS,PRIVATE CONTRACTOR,REVENUE
Walsall Council,http://opendatacommunities.org/id/metropolitan-district-council/walsall ,WC138-178,31.05.2022,ADULT SOCIAL CARE,ABILITY HEALTHCARE LTD,05/05/2022,"2,708.05",6541-Domiciliary Care,THIRD PARTY PAYMENTS,PRIVATE CONTRACTOR,REVENUE
Walsall Council,http://opendatacommunities.org/id/metropolitan-district-council/walsall ,WC138-179,31.05.2022,ADULT SOCIAL CARE,ABILITY HEALTHCARE LTD,05/05/2022,"1,453.56",6541-Domiciliary Care,THIRD PARTY PAYMENTS,PRIVATE CONTRACTOR,REVENUE
Walsall Council,http://opendatacommunities.org/id/metropolitan-district-council/walsall ,WC138-180,31.05.2022,ADULT SOCIAL CARE,ABILITY HEALTHCARE LTD,05/05/2022,379.26,6541-Domiciliary Care,THIRD PARTY PAYMENTS,PRIVATE CONTRACTOR,REVENUE
Walsall Council,http://opendatacommunities.org/id/metropolitan-district-council/walsall ,WC138-181,31.05.2022,ADULT SOCIAL CARE,ABILITY HEALTHCARE LTD,05/05/2022,"1,753.76",6541-Domiciliary Care,THIRD PARTY PAYMENTS,PRIVATE CONTRACTOR,REVENUE
Walsall Council,http://opendatacommunities.org/id/metropolitan-district-council/walsall ,WC138-182,31.05.2022,ADULT SOCIAL CARE,ABILITY HEALTHCARE LTD,05/05/2022,"1,368.75",6541-Domiciliary Care,THIRD PARTY PAYMENTS,PRIVATE CONTRACTOR,REVENUE
Walsall Council,http://opendatacommunities.org/id/metropolitan-district-council/walsall ,WC138-183,31.05.2022,ADULT SOCIAL CARE,ABILITY HEALTHCARE LTD,05/05/2022,889.68,6541-Domiciliary Care,THIRD PARTY PAYMENTS,PRIVATE CONTRACTOR,REVENUE
Walsall Council,http://opendatacommunities.org/id/metropolitan-district-council/walsall ,WC138-184,31.05.2022,ADULT SOCIAL CARE,ABILITY HEALTHCARE LTD,05/05/2022,612.96,6541-Domiciliary Care,THIRD PARTY PAYMENTS,PRIVATE CONTRACTOR,REVENUE
Walsall Council,http://opendatacommunities.org/id/metropolitan-district-council/walsall ,WC138-185,31.05.2022,ADULT SOCIAL CARE,ABILITY HEALTHCARE LTD,05/05/2022,391.65,6541-Domiciliary Care,THIRD PARTY PAYMENTS,PRIVATE CONTRACTOR,REVENUE
Walsall Council,http://opendatacommunities.org/id/metropolitan-district-council/walsall ,WC138-186,31.05.2022,ADULT SOCIAL CARE,ABILITY HEALTHCARE LTD,05/05/2022,454.25,6541-Domiciliary Care,THIRD PARTY PAYMENTS,PRIVATE CONTRACTOR,REVENUE
Walsall Council,http://opendatacommunities.org/id/metropolitan-district-council/walsall ,WC138-187,31.05.2022,"ECONOMY, ENVIRONMENT & COMMUNITIES",ABLE INVESTIGATIONS & ENFORCEMENTS LTD,03/05/2022,"1,320.00",6440-Professional Fees & Services,SUPPLIES & SERVICES,SERVICES,REVENUE
Walsall Council,http://opendatacommunities.org/id/metropolitan-district-council/walsall ,WC138-188,31.05.2022,"ECONOMY, ENVIRONMENT & COMMUNITIES",ABLE INVESTIGATIONS & ENFORCEMENTS LTD,18/05/2022,760.00,6440-Professional Fees & Services,SUPPLIES & SERVICES,SERVICES,REVENUE
Walsall Council,http://opendatacommunities.org/id/metropolitan-district-council/walsall ,WC138-189,31.05.2022,CHILDRENS,ABLEWELL CARS,24/05/2022,790.40,6241-Hire of Vehicle with Driver,TRANSPORT,DIRECT TRANSPORT COSTS,REVENUE
Walsall Council,http://opendatacommunities.org/id/metropolitan-district-council/walsall ,WC138-190,31.05.2022,CHILDRENS,ABLEWELL CARS,24/05/2022,457.92,6241-Hire of Vehicle with Driver,TRANSPORT,DIRECT TRANSPORT COSTS,REVENUE
Walsall Council,http://opendatacommunities.org/id/metropolitan-district-council/walsall ,WC138-191,31.05.2022,CHILDRENS,ABLEWELL CARS,24/05/2022,595.62,6241-Hire of Vehicle with Driver,TRANSPORT,DIRECT TRANSPORT COSTS,REVENUE
Walsall Council,http://opendatacommunities.org/id/metropolitan-district-council/walsall ,WC138-192,31.05.2022,CHILDRENS,ABLEWELL CARS,24/05/2022,748.80,6241-Hire of Vehicle with Driver,TRANSPORT,DIRECT TRANSPORT COSTS,REVENUE
Walsall Council,http://opendatacommunities.org/id/metropolitan-district-council/walsall ,WC138-193,31.05.2022,CHILDRENS,ABLEWELL CARS,24/05/2022,405.00,6241-Hire of Vehicle with Driver,TRANSPORT,DIRECT TRANSPORT COSTS,REVENUE
Walsall Council,http://opendatacommunities.org/id/metropolitan-district-council/walsall ,WC138-194,31.05.2022,CHILDRENS,ABLEWELL CARS,24/05/2022,"1,168.00",6241-Hire of Vehicle with Driver,TRANSPORT,DIRECT TRANSPORT COSTS,REVENUE
Walsall Council,http://opendatacommunities.org/id/metropolitan-district-council/walsall ,WC138-195,31.05.2022,CHILDRENS,ABS TAXIS (ALDRIDGE),24/05/2022,816.30,6241-Hire of Vehicle with Driver,TRANSPORT,DIRECT TRANSPORT COSTS,REVENUE
Walsall Council,http://opendatacommunities.org/id/metropolitan-district-council/walsall ,WC138-196,31.05.2022,CHILDRENS,ABS TAXIS (ALDRIDGE),24/05/2022,754.20,6241-Hire of Vehicle with Driver,TRANSPORT,DIRECT TRANSPORT COSTS,REVENUE
Walsall Council,http://opendatacommunities.org/id/metropolitan-district-council/walsall ,WC138-197,31.05.2022,CHILDRENS,ABS TAXIS (ALDRIDGE),24/05/2022,888.30,6241-Hire of Vehicle with Driver,TRANSPORT,DIRECT TRANSPORT COSTS,REVENUE
Walsall Council,http://opendatacommunities.org/id/metropolitan-district-council/walsall ,WC138-198,31.05.2022,CHILDRENS,ABU BAKR NURSERY,30/05/2022,"9,830.44",1184-Other-Grants to Other Orgs,SUPPLIES & SERVICES,GRANTS (EXP) & SUBSCRIPTIONS,REVENUE
Walsall Council,http://opendatacommunities.org/id/metropolitan-district-council/walsall ,WC138-199,31.05.2022,CHILDRENS,ABU BAKR NURSERY,30/05/2022,"10,857.60",1184-Other-Grants to Other Orgs,SUPPLIES & SERVICES,GRANTS (EXP) & SUBSCRIPTIONS,REVENUE
Walsall Council,http://opendatacommunities.org/id/metropolitan-district-council/walsall ,WC138-200,31.05.2022,CHILDRENS CAPITAL,AC GLAZING LTD,20/05/2022,"8,166.00",7155-Site Works Contractors,CAPITAL,"NEW CONSTRUCTION,CONVERSION & RENOVATION",CAPITAL
Walsall Council,http://opendatacommunities.org/id/metropolitan-district-council/walsall ,WC138-201,31.05.2022,CHILDRENS CAPITAL,AC GLAZING LTD,20/05/2022,"1,750.00",7155-Site Works Contractors,CAPITAL,"NEW CONSTRUCTION,CONVERSION & RENOVATION",CAPITAL
Walsall Council,http://opendatacommunities.org/id/metropolitan-district-council/walsall ,WC138-202,31.05.2022,"ECONOMY, ENVIRONMENT & COMMUNITIES",AC OPTICS LTD,03/05/2022,996.82,6313-Grants to Other Orgs,SUPPLIES & SERVICES,GRANTS (EXP) & SUBSCRIPTIONS,REVENUE
Walsall Council,http://opendatacommunities.org/id/metropolitan-district-council/walsall ,WC138-203,31.05.2022,"ECONOMY, ENVIRONMENT & COMMUNITIES",AC OPTICS LTD,31/05/2022,"1,042.64",6313-Grants to Other Orgs,SUPPLIES & SERVICES,GRANTS (EXP) & SUBSCRIPTIONS,REVENUE
Walsall Council,http://opendatacommunities.org/id/metropolitan-district-council/walsall ,WC138-204,31.05.2022,"ECONOMY, ENVIRONMENT & COMMUNITIES",AC OPTICS LTD,03/05/2022,710.64,6313-Grants to Other Orgs,SUPPLIES & SERVICES,GRANTS (EXP) & SUBSCRIPTIONS,REVENUE
Walsall Council,http://opendatacommunities.org/id/metropolitan-district-council/walsall ,WC138-205,31.05.2022,"ECONOMY, ENVIRONMENT & COMMUNITIES",AC OPTICS LTD,31/05/2022,621.53,6313-Grants to Other Orgs,SUPPLIES & SERVICES,GRANTS (EXP) & SUBSCRIPTIONS,REVENUE
Walsall Council,http://opendatacommunities.org/id/metropolitan-district-council/walsall ,WC138-206,31.05.2022,CHILDRENS,ACCALIA CARE SERVICES LTD,16/05/2022,"15,683.44",6223-External Residential Care-Oth Agency Provision,THIRD PARTY PAYMENTS,PRIVATE CONTRACTOR,REVENUE
Walsall Council,http://opendatacommunities.org/id/metropolitan-district-council/walsall ,WC138-207,31.05.2022,CHILDRENS,ACCESS UK LTD ,17/05/2022,"1,200.00",6240-Fees & Licences,SUPPLIES & SERVICES,SERVICES,REVENUE
Walsall Council,http://opendatacommunities.org/id/metropolitan-district-council/walsall ,WC138-208,31.05.2022,CHILDRENS,ACCOMPANIED CARE,30/05/2022,710.62,6223-Accommodation and Related Costs-Assistance to S/S Clients,TRANSFER PAYMENTS,ADULT SOCIAL SERVICES CLIENT,REVENUE
Walsall Council,http://opendatacommunities.org/id/metropolitan-district-council/walsall ,WC138-209,31.05.2022,ADULT SOCIAL CARE,ACCOMPLISH GROUP LTD,10/05/2022,"7,900.28",6541-Residential,THIRD PARTY PAYMENTS,PRIVATE CONTRACTOR,REVENUE
Walsall Council,http://opendatacommunities.org/id/metropolitan-district-council/walsall ,WC138-210,31.05.2022,ADULT SOCIAL CARE,ACCORD HOUSING ASSOCIATION LIMITED - HOBS MEADOW,10/05/2022,"4,706.24",6541-Residential,THIRD PARTY PAYMENTS,PRIVATE CONTRACTOR,REVENUE
Walsall Council,http://opendatacommunities.org/id/metropolitan-district-council/walsall ,WC138-211,31.05.2022,ADULT SOCIAL CARE,ACCORD HOUSING ASSOCIATION LIMITED - HOBS MEADOW,10/05/2022,"4,749.10",6541-Residential,THIRD PARTY PAYMENTS,PRIVATE CONTRACTOR,REVENUE
Walsall Council,http://opendatacommunities.org/id/metropolitan-district-council/walsall ,WC138-212,31.05.2022,ADULT SOCIAL CARE,ACCORD HOUSING ASSOCIATION LIMITED - HOBS MEADOW,10/05/2022,"4,749.10",6541-Residential,THIRD PARTY PAYMENTS,PRIVATE CONTRACTOR,REVENUE
Walsall Council,http://opendatacommunities.org/id/metropolitan-district-council/walsall ,WC138-213,31.05.2022,ADULT SOCIAL CARE,ACCORD HOUSING ASSOCIATION LIMITED - HOBS MEADOW,10/05/2022,"4,749.10",6541-Residential,THIRD PARTY PAYMENTS,PRIVATE CONTRACTOR,REVENUE
Walsall Council,http://opendatacommunities.org/id/metropolitan-district-council/walsall ,WC138-214,31.05.2022,CHILDRENS,ACE CARS & MINIBUSES LTD,24/05/2022,"1,088.80",6241-Hire of Vehicle with Driver,TRANSPORT,DIRECT TRANSPORT COSTS,REVENUE
Walsall Council,http://opendatacommunities.org/id/metropolitan-district-council/walsall ,WC138-215,31.05.2022,CHILDRENS,ACE CARS & MINIBUSES LTD,24/05/2022,"1,224.90",6241-Hire of Vehicle with Driver,TRANSPORT,DIRECT TRANSPORT COSTS,REVENUE
Walsall Council,http://opendatacommunities.org/id/metropolitan-district-council/walsall ,WC138-216,31.05.2022,CHILDRENS,ACE CARS & MINIBUSES LTD,24/05/2022,"1,224.90",6241-Hire of Vehicle with Driver,TRANSPORT,DIRECT TRANSPORT COSTS,REVENUE
Walsall Council,http://opendatacommunities.org/id/metropolitan-district-council/walsall ,WC138-217,31.05.2022,CHILDRENS,ACE CARS & MINIBUSES LTD,24/05/2022,944.00,6241-Hire of Vehicle with Driver,TRANSPORT,DIRECT TRANSPORT COSTS,REVENUE
Walsall Council,http://opendatacommunities.org/id/metropolitan-district-council/walsall ,WC138-218,31.05.2022,CHILDRENS,ACE CARS & MINIBUSES LTD,24/05/2022,"1,076.16",6241-Hire of Vehicle with Driver,TRANSPORT,DIRECT TRANSPORT COSTS,REVENUE
Walsall Council,http://opendatacommunities.org/id/metropolitan-district-council/walsall ,WC138-219,31.05.2022,CHILDRENS,ACE CARS & MINIBUSES LTD,24/05/2022,"1,000.64",6241-Hire of Vehicle with Driver,TRANSPORT,DIRECT TRANSPORT COSTS,REVENUE
Walsall Council,http://opendatacommunities.org/id/metropolitan-district-council/walsall ,WC138-220,31.05.2022,CHILDRENS,ACE CARS & MINIBUSES LTD,24/05/2022,944.00,6241-Hire of Vehicle with Driver,TRANSPORT,DIRECT TRANSPORT COSTS,REVENUE
Walsall Council,http://opendatacommunities.org/id/metropolitan-district-council/walsall ,WC138-221,31.05.2022,CHILDRENS,ACE CARS & MINIBUSES LTD,24/05/2022,912.00,6241-Hire of Vehicle with Driver,TRANSPORT,DIRECT TRANSPORT COSTS,REVENUE
Walsall Council,http://opendatacommunities.org/id/metropolitan-district-council/walsall ,WC138-222,31.05.2022,CHILDRENS,ACE CARS & MINIBUSES LTD,24/05/2022,956.00,6241-Hire of Vehicle with Driver,TRANSPORT,DIRECT TRANSPORT COSTS,REVENUE
Walsall Council,http://opendatacommunities.org/id/metropolitan-district-council/walsall ,WC138-223,31.05.2022,CHILDRENS,ACE CARS & MINIBUSES LTD,24/05/2022,856.00,6241-Hire of Vehicle with Driver,TRANSPORT,DIRECT TRANSPORT COSTS,REVENUE
Walsall Council,http://opendatacommunities.org/id/metropolitan-district-council/walsall ,WC138-224,31.05.2022,CHILDRENS,ACE CARS & MINIBUSES LTD,24/05/2022,856.00,6241-Hire of Vehicle with Driver,TRANSPORT,DIRECT TRANSPORT COSTS,REVENUE
Walsall Council,http://opendatacommunities.org/id/metropolitan-district-council/walsall ,WC138-225,31.05.2022,CHILDRENS,ACE CARS & MINIBUSES LTD,24/05/2022,912.00,6241-Hire of Vehicle with Driver,TRANSPORT,DIRECT TRANSPORT COSTS,REVENUE
Walsall Council,http://opendatacommunities.org/id/metropolitan-district-council/walsall ,WC138-226,31.05.2022,CHILDRENS,ACE CARS & MINIBUSES LTD,24/05/2022,956.00,6241-Hire of Vehicle with Driver,TRANSPORT,DIRECT TRANSPORT COSTS,REVENUE
Walsall Council,http://opendatacommunities.org/id/metropolitan-district-council/walsall ,WC138-227,31.05.2022,CHILDRENS,ACE CARS & MINIBUSES LTD,24/05/2022,912.00,6241-Hire of Vehicle with Driver,TRANSPORT,DIRECT TRANSPORT COSTS,REVENUE
Walsall Council,http://opendatacommunities.org/id/metropolitan-district-council/walsall ,WC138-228,31.05.2022,CHILDRENS,ACE CARS & MINIBUSES LTD,24/05/2022,944.00,6241-Hire of Vehicle with Driver,TRANSPORT,DIRECT TRANSPORT COSTS,REVENUE
Walsall Council,http://opendatacommunities.org/id/metropolitan-district-council/walsall ,WC138-229,31.05.2022,CHILDRENS,ACE CARS & MINIBUSES LTD,24/05/2022,912.00,6241-Hire of Vehicle with Driver,TRANSPORT,DIRECT TRANSPORT COSTS,REVENUE
Walsall Council,http://opendatacommunities.org/id/metropolitan-district-council/walsall ,WC138-230,31.05.2022,CHILDRENS,ACE CARS & MINIBUSES LTD,24/05/2022,856.00,6241-Hire of Vehicle with Driver,TRANSPORT,DIRECT TRANSPORT COSTS,REVENUE
Walsall Council,http://opendatacommunities.org/id/metropolitan-district-council/walsall ,WC138-231,31.05.2022,CHILDRENS,ACE CARS & MINIBUSES LTD,24/05/2022,856.00,6241-Hire of Vehicle with Driver,TRANSPORT,DIRECT TRANSPORT COSTS,REVENUE
Walsall Council,http://opendatacommunities.org/id/metropolitan-district-council/walsall ,WC138-232,31.05.2022,CHILDRENS,ACE CARS & MINIBUSES LTD,24/05/2022,"1,274.00",6241-Hire of Vehicle with Driver,TRANSPORT,DIRECT TRANSPORT COSTS,REVENUE
Walsall Council,http://opendatacommunities.org/id/metropolitan-district-council/walsall ,WC138-233,31.05.2022,CHILDRENS,ACE CARS & MINIBUSES LTD,24/05/2022,956.00,6241-Hire of Vehicle with Driver,TRANSPORT,DIRECT TRANSPORT COSTS,REVENUE
Walsall Council,http://opendatacommunities.org/id/metropolitan-district-council/walsall ,WC138-234,31.05.2022,CHILDRENS,ACE CARS & MINIBUSES LTD,24/05/2022,956.00,6241-Hire of Vehicle with Driver,TRANSPORT,DIRECT TRANSPORT COSTS,REVENUE
Walsall Council,http://opendatacommunities.org/id/metropolitan-district-council/walsall ,WC138-235,31.05.2022,CHILDRENS,ACE CARS & MINIBUSES LTD,24/05/2022,956.00,6241-Hire of Vehicle with Driver,TRANSPORT,DIRECT TRANSPORT COSTS,REVENUE
Walsall Council,http://opendatacommunities.org/id/metropolitan-district-council/walsall ,WC138-236,31.05.2022,CHILDRENS,ACE CARS & MINIBUSES LTD,24/05/2022,"1,224.90",6241-Hire of Vehicle with Driver,TRANSPORT,DIRECT TRANSPORT COSTS,REVENUE
Walsall Council,http://opendatacommunities.org/id/metropolitan-district-council/walsall ,WC138-237,31.05.2022,CHILDRENS,ACE CARS & MINIBUSES LTD,24/05/2022,"1,224.90",6241-Hire of Vehicle with Driver,TRANSPORT,DIRECT TRANSPORT COSTS,REVENUE
Walsall Council,http://opendatacommunities.org/id/metropolitan-district-council/walsall ,WC138-238,31.05.2022,CHILDRENS,ACE CARS & MINIBUSES LTD,24/05/2022,"1,812.00",6241-Hire of Vehicle with Driver,TRANSPORT,DIRECT TRANSPORT COSTS,REVENUE
Walsall Council,http://opendatacommunities.org/id/metropolitan-district-council/walsall ,WC138-239,31.05.2022,CHILDRENS,ACE CARS & MINIBUSES LTD,24/05/2022,856.00,6241-Hire of Vehicle with Driver,TRANSPORT,DIRECT TRANSPORT COSTS,REVENUE
Walsall Council,http://opendatacommunities.org/id/metropolitan-district-council/walsall ,WC138-240,31.05.2022,CHILDRENS,ACE CARS & MINIBUSES LTD,24/05/2022,963.00,6241-Hire of Vehicle with Driver,TRANSPORT,DIRECT TRANSPORT COSTS,REVENUE
Walsall Council,http://opendatacommunities.org/id/metropolitan-district-council/walsall ,WC138-241,31.05.2022,CHILDRENS,ACE CARS & MINIBUSES LTD,24/05/2022,944.00,6241-Hire of Vehicle with Driver,TRANSPORT,DIRECT TRANSPORT COSTS,REVENUE
Walsall Council,http://opendatacommunities.org/id/metropolitan-district-council/walsall ,WC138-242,31.05.2022,CHILDRENS,ACE CARS & MINIBUSES LTD,24/05/2022,956.00,6241-Hire of Vehicle with Driver,TRANSPORT,DIRECT TRANSPORT COSTS,REVENUE
Walsall Council,http://opendatacommunities.org/id/metropolitan-district-council/walsall ,WC138-243,31.05.2022,CHILDRENS,ACE CARS & MINIBUSES LTD,24/05/2022,"1,224.90",6241-Hire of Vehicle with Driver,TRANSPORT,DIRECT TRANSPORT COSTS,REVENUE
Walsall Council,http://opendatacommunities.org/id/metropolitan-district-council/walsall ,WC138-244,31.05.2022,CHILDRENS,ACE CARS & MINIBUSES LTD,24/05/2022,"1,224.90",6241-Hire of Vehicle with Driver,TRANSPORT,DIRECT TRANSPORT COSTS,REVENUE
Walsall Council,http://opendatacommunities.org/id/metropolitan-district-council/walsall ,WC138-245,31.05.2022,CHILDRENS,ACE CARS & MINIBUSES LTD,24/05/2022,856.00,6241-Hire of Vehicle with Driver,TRANSPORT,DIRECT TRANSPORT COSTS,REVENUE
Walsall Council,http://opendatacommunities.org/id/metropolitan-district-council/walsall ,WC138-246,31.05.2022,CHILDRENS,ACE CARS & MINIBUSES LTD,24/05/2022,944.00,6241-Hire of Vehicle with Driver,TRANSPORT,DIRECT TRANSPORT COSTS,REVENUE
Walsall Council,http://opendatacommunities.org/id/metropolitan-district-council/walsall ,WC138-247,31.05.2022,CHILDRENS,ACE CARS & MINIBUSES LTD,24/05/2022,856.00,6241-Hire of Vehicle with Driver,TRANSPORT,DIRECT TRANSPORT COSTS,REVENUE
Walsall Council,http://opendatacommunities.org/id/metropolitan-district-council/walsall ,WC138-248,31.05.2022,CHILDRENS,ACE CARS & MINIBUSES LTD,24/05/2022,"1,699.20",6241-Hire of Vehicle with Driver,TRANSPORT,DIRECT TRANSPORT COSTS,REVENUE
Walsall Council,http://opendatacommunities.org/id/metropolitan-district-council/walsall ,WC138-249,31.05.2022,CHILDRENS,ACE CARS & MINIBUSES LTD,24/05/2022,856.00,6241-Hire of Vehicle with Driver,TRANSPORT,DIRECT TRANSPORT COSTS,REVENUE
Walsall Council,http://opendatacommunities.org/id/metropolitan-district-council/walsall ,WC138-250,31.05.2022,CHILDRENS,ACE CARS & MINIBUSES LTD,24/05/2022,"1,224.90",6241-Hire of Vehicle with Driver,TRANSPORT,DIRECT TRANSPORT COSTS,REVENUE
Walsall Council,http://opendatacommunities.org/id/metropolitan-district-council/walsall ,WC138-251,31.05.2022,CHILDRENS,ACE COACHING LIMITED,05/05/2022,404.00,6213-Professional Fees & Services,SUPPLIES & SERVICES,SERVICES,REVENUE
Walsall Council,http://opendatacommunities.org/id/metropolitan-district-council/walsall ,WC138-252,31.05.2022,ADULT SOCIAL CARE,ACEPAY LTD (COTTAGE NUR HOME),10/05/2022,"1,564.76",6541-Nursing,THIRD PARTY PAYMENTS,PRIVATE CONTRACTOR,REVENUE
Walsall Council,http://opendatacommunities.org/id/metropolitan-district-council/walsall ,WC138-253,31.05.2022,ADULT SOCIAL CARE,ACEPAY LTD (COTTAGE NUR HOME),10/05/2022,"2,441.99",6541-Nursing,THIRD PARTY PAYMENTS,PRIVATE CONTRACTOR,REVENUE
Walsall Council,http://opendatacommunities.org/id/metropolitan-district-council/walsall ,WC138-254,31.05.2022,ADULT SOCIAL CARE,ACEPAY LTD (COTTAGE NUR HOME),10/05/2022,"2,441.99",6541-Nursing,THIRD PARTY PAYMENTS,PRIVATE CONTRACTOR,REVENUE
Walsall Council,http://opendatacommunities.org/id/metropolitan-district-council/walsall ,WC138-255,31.05.2022,ADULT SOCIAL CARE,ACEPAY LTD (COTTAGE NUR HOME),10/05/2022,"2,441.99",6541-Nursing,THIRD PARTY PAYMENTS,PRIVATE CONTRACTOR,REVENUE
Walsall Council,http://opendatacommunities.org/id/metropolitan-district-council/walsall ,WC138-256,31.05.2022,ADULT SOCIAL CARE,ACEPAY LTD (COTTAGE NUR HOME),10/05/2022,"2,641.99",6541-Nursing,THIRD PARTY PAYMENTS,PRIVATE CONTRACTOR,REVENUE
Walsall Council,http://opendatacommunities.org/id/metropolitan-district-council/walsall ,WC138-257,31.05.2022,ADULT SOCIAL CARE,ACEPAY LTD (COTTAGE NUR HOME),10/05/2022,"2,352.30",6541-Residential EMI,THIRD PARTY PAYMENTS,PRIVATE CONTRACTOR,REVENUE
Walsall Council,http://opendatacommunities.org/id/metropolitan-district-council/walsall ,WC138-258,31.05.2022,ADULT SOCIAL CARE,ACEPAY LTD (COTTAGE NUR HOME),10/05/2022,"2,441.99",6541-Nursing,THIRD PARTY PAYMENTS,PRIVATE CONTRACTOR,REVENUE
Walsall Council,http://opendatacommunities.org/id/metropolitan-district-council/walsall ,WC138-259,31.05.2022,ADULT SOCIAL CARE,ACEPAY LTD (COTTAGE NUR HOME),10/05/2022,"2,874.13",6541-Nursing,THIRD PARTY PAYMENTS,PRIVATE CONTRACTOR,REVENUE
Walsall Council,http://opendatacommunities.org/id/metropolitan-district-council/walsall ,WC138-260,31.05.2022,ADULT SOCIAL CARE,ACEPAY LTD (COTTAGE NUR HOME),10/05/2022,748.36,6541-Residential,THIRD PARTY PAYMENTS,PRIVATE CONTRACTOR,REVENUE
Walsall Council,http://opendatacommunities.org/id/metropolitan-district-council/walsall ,WC138-261,31.05.2022,ADULT SOCIAL CARE,ACEPAY LTD (COTTAGE NUR HOME),10/05/2022,"1,400.87",6541-Residential & Nursing Care Placements,THIRD PARTY PAYMENTS,PRIVATE CONTRACTOR,REVENUE
Walsall Council,http://opendatacommunities.org/id/metropolitan-district-council/walsall ,WC138-262,31.05.2022,ADULT SOCIAL CARE,ACEPAY LTD (COTTAGE NUR HOME),10/05/2022,253.50,6541-Residential EMI,THIRD PARTY PAYMENTS,PRIVATE CONTRACTOR,REVENUE
Walsall Council,http://opendatacommunities.org/id/metropolitan-district-council/walsall ,WC138-263,31.05.2022,ADULT SOCIAL CARE,ACEPAY LTD (COTTAGE NUR HOME),10/05/2022,"2,747.75",6541-Nursing EMI,THIRD PARTY PAYMENTS,PRIVATE CONTRACTOR,REVENUE
Walsall Council,http://opendatacommunities.org/id/metropolitan-district-council/walsall ,WC138-264,31.05.2022,ADULT SOCIAL CARE,ACEPAY LTD (COTTAGE NUR HOME),10/05/2022,"2,352.30",6541-Residential EMI,THIRD PARTY PAYMENTS,PRIVATE CONTRACTOR,REVENUE
Walsall Council,http://opendatacommunities.org/id/metropolitan-district-council/walsall ,WC138-265,31.05.2022,ADULT SOCIAL CARE,ACEPAY LTD (COTTAGE NUR HOME),10/05/2022,898.03,6541-Residential,THIRD PARTY PAYMENTS,PRIVATE CONTRACTOR,REVENUE
Walsall Council,http://opendatacommunities.org/id/metropolitan-district-council/walsall ,WC138-266,31.05.2022,ADULT SOCIAL CARE,ACEPAY LTD (COTTAGE NUR HOME),10/05/2022,"2,441.99",6541-Nursing,THIRD PARTY PAYMENTS,PRIVATE CONTRACTOR,REVENUE
Walsall Council,http://opendatacommunities.org/id/metropolitan-district-council/walsall ,WC138-267,31.05.2022,ADULT SOCIAL CARE,ACEPAY LTD (COTTAGE NUR HOME),10/05/2022,"2,441.99",6541-Nursing,THIRD PARTY PAYMENTS,PRIVATE CONTRACTOR,REVENUE
Walsall Council,http://opendatacommunities.org/id/metropolitan-district-council/walsall ,WC138-268,31.05.2022,ADULT SOCIAL CARE,ACEPAY LTD (COTTAGE NUR HOME),10/05/2022,"2,747.75",6541-Nursing EMI,THIRD PARTY PAYMENTS,PRIVATE CONTRACTOR,REVENUE
Walsall Council,http://opendatacommunities.org/id/metropolitan-district-council/walsall ,WC138-269,31.05.2022,ADULT SOCIAL CARE,ACEPAY LTD (COTTAGE NUR HOME),10/05/2022,"2,747.75",6541-Nursing EMI,THIRD PARTY PAYMENTS,PRIVATE CONTRACTOR,REVENUE
Walsall Council,http://opendatacommunities.org/id/metropolitan-district-council/walsall ,WC138-270,31.05.2022,ADULT SOCIAL CARE,ACEPAY LTD (COTTAGE NUR HOME),10/05/2022,"2,441.99",6541-Nursing,THIRD PARTY PAYMENTS,PRIVATE CONTRACTOR,REVENUE
Walsall Council,http://opendatacommunities.org/id/metropolitan-district-council/walsall ,WC138-271,31.05.2022,ADULT SOCIAL CARE,ACEPAY LTD (COTTAGE NUR HOME),10/05/2022,"1,052.67",6541-Nursing,THIRD PARTY PAYMENTS,PRIVATE CONTRACTOR,REVENUE
Walsall Council,http://opendatacommunities.org/id/metropolitan-district-council/walsall ,WC138-272,31.05.2022,ADULT SOCIAL CARE,ACEPAY LTD (COTTAGE NUR HOME),05/05/2022,"1,165.54",6541-Residential EMI,THIRD PARTY PAYMENTS,PRIVATE CONTRACTOR,REVENUE
Walsall Council,http://opendatacommunities.org/id/metropolitan-district-council/walsall ,WC138-273,31.05.2022,CHILDRENS,ACIRE CARE LTD,10/05/2022,"5,689.26",6223-Accommodation and Related Costs-Assistance to S/S Clients,TRANSFER PAYMENTS,ADULT SOCIAL SERVICES CLIENT,REVENUE
Walsall Council,http://opendatacommunities.org/id/metropolitan-district-council/walsall ,WC138-274,31.05.2022,CHILDRENS,ACORN CARE & EDUCATION LTD (SALES),03/05/2022,"14,456.67",1220-Top Up Funding -Grants to Schools,SUPPLIES & SERVICES,GRANTS (EXP) & SUBSCRIPTIONS,REVENUE
Walsall Council,http://opendatacommunities.org/id/metropolitan-district-council/walsall ,WC138-275,31.05.2022,CHILDRENS,ACORN CARE & EDUCATION LTD (SALES),16/05/2022,"13,962.28",6223-External Residential Care-Oth Agency Provision,THIRD PARTY PAYMENTS,PRIVATE CONTRACTOR,REVENUE
Walsall Council,http://opendatacommunities.org/id/metropolitan-district-council/walsall ,WC138-276,31.05.2022,CHILDRENS,ACORN CARE & EDUCATION LTD (SALES),06/05/2022,"32,355.07",1220-Professional Fees & Services,SUPPLIES & SERVICES,SERVICES,REVENUE
Walsall Council,http://opendatacommunities.org/id/metropolitan-district-council/walsall ,WC138-277,31.05.2022,CHILDRENS,ACORN CARE & EDUCATION LTD (SALES),06/05/2022,"31,824.66",1220-Professional Fees & Services,SUPPLIES & SERVICES,SERVICES,REVENUE
Walsall Council,http://opendatacommunities.org/id/metropolitan-district-council/walsall ,WC138-278,31.05.2022,CHILDRENS,ACORN CARE & EDUCATION LTD (SALES),03/05/2022,"6,306.18",1220-Professional Fees & Services,SUPPLIES & SERVICES,SERVICES,REVENUE
Walsall Council,http://opendatacommunities.org/id/metropolitan-district-council/walsall ,WC138-279,31.05.2022,CHILDRENS,ACORN CARE & EDUCATION LTD (SALES),09/05/2022,"2,975.34",1220-Professional Fees & Services,SUPPLIES & SERVICES,SERVICES,REVENUE
Walsall Council,http://opendatacommunities.org/id/metropolitan-district-council/walsall ,WC138-280,31.05.2022,CHILDRENS,ACORN CARE & EDUCATION LTD (SALES),09/05/2022,"30,497.26",1220-Professional Fees & Services,SUPPLIES & SERVICES,SERVICES,REVENUE
Walsall Council,http://opendatacommunities.org/id/metropolitan-district-council/walsall ,WC138-281,31.05.2022,CHILDRENS,ACORN CARE & EDUCATION LTD (SALES),11/05/2022,"-3,182.47",1220-Professional Fees & Services,SUPPLIES & SERVICES,SERVICES,REVENUE
Walsall Council,http://opendatacommunities.org/id/metropolitan-district-council/walsall ,WC138-282,31.05.2022,CHILDRENS,ACORN FOSTERING SERVICES LTD,16/05/2022,"3,219.43",6223-Independent Foster Care-Oth Agency Provision,THIRD PARTY PAYMENTS,PRIVATE CONTRACTOR,REVENUE
Walsall Council,http://opendatacommunities.org/id/metropolitan-district-council/walsall ,WC138-283,31.05.2022,CHILDRENS,ACORNS CHILDRENS HOSPICE TRUST,03/05/2022,"1,700.00",6220-Professional Fees & Services,SUPPLIES & SERVICES,SERVICES,REVENUE
Walsall Council,http://opendatacommunities.org/id/metropolitan-district-council/walsall ,WC138-284,31.05.2022,CHILDRENS,ACPAS LIMITED,10/05/2022,"1,019.93",6222-Professional Fees & Services,SUPPLIES & SERVICES,SERVICES,REVENUE
Walsall Council,http://opendatacommunities.org/id/metropolitan-district-council/walsall ,WC138-285,31.05.2022,CHILDRENS,ACPAS LIMITED,10/05/2022,253.80,6220-School Only Payments - Catering,THIRD PARTY PAYMENTS,INDEPENDENT UNIT WITHIN COUNCIL,REVENUE
Walsall Council,http://opendatacommunities.org/id/metropolitan-district-council/walsall ,WC138-286,31.05.2022,CHILDRENS,ACTI FIT (MIDLANDS) LIMITED,05/05/2022,"1,720.00",6213-Professional Fees & Services,SUPPLIES & SERVICES,SERVICES,REVENUE
Walsall Council,http://opendatacommunities.org/id/metropolitan-district-council/walsall ,WC138-287,31.05.2022,CHILDRENS,ACTIVE CARE SOLUTIONS LTD,16/05/2022,"3,441.03",6223-Independent Foster Care-Oth Agency Provision,THIRD PARTY PAYMENTS,PRIVATE CONTRACTOR,REVENUE
Walsall Council,http://opendatacommunities.org/id/metropolitan-district-council/walsall ,WC138-288,31.05.2022,"ECONOMY, ENVIRONMENT & COMMUNITIES",ACTIVE GYM LIMITED,27/05/2022,"3,562.50",6413-Fees & Licences,SUPPLIES & SERVICES,SERVICES,REVENUE
Walsall Council,http://opendatacommunities.org/id/metropolitan-district-council/walsall ,WC138-289,31.05.2022,CHILDRENS,ACTIVE GYM LIMITED,05/05/2022,616.00,6213-Professional Fees & Services,SUPPLIES & SERVICES,SERVICES,REVENUE
Walsall Council,http://opendatacommunities.org/id/metropolitan-district-council/walsall ,WC138-290,31.05.2022,CHILDRENS,REDACTED,04/05/2022,363.24,6223-Residents Orders,TRANSFER PAYMENTS,CHILDREN SOCIAL SERVICES CLIENT,REVENUE
Walsall Council,http://opendatacommunities.org/id/metropolitan-district-council/walsall ,WC138-291,31.05.2022,ADULT SOCIAL CARE,REDACTED,05/05/2022,"2,083.20",6541-Direct Payment,THIRD PARTY PAYMENTS,PRIVATE CONTRACTOR,REVENUE
Walsall Council,http://opendatacommunities.org/id/metropolitan-district-council/walsall ,WC138-292,31.05.2022,ADULT SOCIAL CARE,ADVANCE HEALTH CARE (UK) LTD,05/05/2022,"2,118.48",6541-Domiciliary Care,THIRD PARTY PAYMENTS,PRIVATE CONTRACTOR,REVENUE
Walsall Council,http://opendatacommunities.org/id/metropolitan-district-council/walsall ,WC138-293,31.05.2022,ADULT SOCIAL CARE,ADVANCE HEALTH CARE (UK) LTD,05/05/2022,"2,561.80",6541-Domiciliary Care,THIRD PARTY PAYMENTS,PRIVATE CONTRACTOR,REVENUE
Walsall Council,http://opendatacommunities.org/id/metropolitan-district-council/walsall ,WC138-294,31.05.2022,ADULT SOCIAL CARE,ADVANCE HEALTH CARE (UK) LTD,05/05/2022,"1,033.50",6541-Domiciliary Care,THIRD PARTY PAYMENTS,PRIVATE CONTRACTOR,REVENUE
Walsall Council,http://opendatacommunities.org/id/metropolitan-district-council/walsall ,WC138-295,31.05.2022,ADULT SOCIAL CARE,ADVANCE HEALTH CARE (UK) LTD,05/05/2022,913.30,6541-Domiciliary Care,THIRD PARTY PAYMENTS,PRIVATE CONTRACTOR,REVENUE
Walsall Council,http://opendatacommunities.org/id/metropolitan-district-council/walsall ,WC138-296,31.05.2022,ADULT SOCIAL CARE,ADVANCE HEALTH CARE (UK) LTD,05/05/2022,"1,017.67",6541-Domiciliary Care,THIRD PARTY PAYMENTS,PRIVATE CONTRACTOR,REVENUE
Walsall Council,http://opendatacommunities.org/id/metropolitan-district-council/walsall ,WC138-297,31.05.2022,ADULT SOCIAL CARE,ADVANCE HEALTH CARE (UK) LTD,05/05/2022,767.10,6541-Domiciliary Care,THIRD PARTY PAYMENTS,PRIVATE CONTRACTOR,REVENUE
Walsall Council,http://opendatacommunities.org/id/metropolitan-district-council/walsall ,WC138-298,31.05.2022,ADULT SOCIAL CARE,ADVANCE HEALTH CARE (UK) LTD,05/05/2022,803.70,6541-Domiciliary Care,THIRD PARTY PAYMENTS,PRIVATE CONTRACTOR,REVENUE
Walsall Council,http://opendatacommunities.org/id/metropolitan-district-council/walsall ,WC138-299,31.05.2022,ADULT SOCIAL CARE,ADVANCE HEALTH CARE (UK) LTD,05/05/2022,730.68,6541-Domiciliary Care,THIRD PARTY PAYMENTS,PRIVATE CONTRACTOR,REVENUE
Walsall Council,http://opendatacommunities.org/id/metropolitan-district-council/walsall ,WC138-300,31.05.2022,ADULT SOCIAL CARE,ADVANCE HEALTH CARE (UK) LTD,05/05/2022,"1,803.12",6541-Domiciliary Care,THIRD PARTY PAYMENTS,PRIVATE CONTRACTOR,REVENUE
Walsall Council,http://opendatacommunities.org/id/metropolitan-district-council/walsall ,WC138-301,31.05.2022,ADULT SOCIAL CARE,ADVANCE HEALTH CARE (UK) LTD,05/05/2022,829.84,6541-Domiciliary Care,THIRD PARTY PAYMENTS,PRIVATE CONTRACTOR,REVENUE
Walsall Council,http://opendatacommunities.org/id/metropolitan-district-council/walsall ,WC138-302,31.05.2022,ADULT SOCIAL CARE,ADVANCE HEALTH CARE (UK) LTD,05/05/2022,474.86,6541-Domiciliary Care,THIRD PARTY PAYMENTS,PRIVATE CONTRACTOR,REVENUE
Walsall Council,http://opendatacommunities.org/id/metropolitan-district-council/walsall ,WC138-303,31.05.2022,ADULT SOCIAL CARE,ADVANCE HEALTH CARE (UK) LTD,05/05/2022,803.78,6541-Domiciliary Care,THIRD PARTY PAYMENTS,PRIVATE CONTRACTOR,REVENUE
Walsall Council,http://opendatacommunities.org/id/metropolitan-district-council/walsall ,WC138-304,31.05.2022,ADULT SOCIAL CARE,ADVANCE HEALTH CARE (UK) LTD,05/05/2022,725.24,6541-Domiciliary Care,THIRD PARTY PAYMENTS,PRIVATE CONTRACTOR,REVENUE
Walsall Council,http://opendatacommunities.org/id/metropolitan-district-council/walsall ,WC138-305,31.05.2022,ADULT SOCIAL CARE,ADVANCE HEALTH CARE (UK) LTD,05/05/2022,648.58,6541-Domiciliary Care,THIRD PARTY PAYMENTS,PRIVATE CONTRACTOR,REVENUE
Walsall Council,http://opendatacommunities.org/id/metropolitan-district-council/walsall ,WC138-306,31.05.2022,ADULT SOCIAL CARE,ADVANCE HEALTH CARE (UK) LTD,05/05/2022,435.96,6541-Domiciliary Care,THIRD PARTY PAYMENTS,PRIVATE CONTRACTOR,REVENUE
Walsall Council,http://opendatacommunities.org/id/metropolitan-district-council/walsall ,WC138-307,31.05.2022,ADULT SOCIAL CARE,ADVANCE HEALTH CARE (UK) LTD,05/05/2022,324.40,6541-Domiciliary Care,THIRD PARTY PAYMENTS,PRIVATE CONTRACTOR,REVENUE
Walsall Council,http://opendatacommunities.org/id/metropolitan-district-council/walsall ,WC138-308,31.05.2022,ADULT SOCIAL CARE,ADVANCE HEALTH CARE (UK) LTD,05/05/2022,952.35,6541-Domiciliary Care,THIRD PARTY PAYMENTS,PRIVATE CONTRACTOR,REVENUE
Walsall Council,http://opendatacommunities.org/id/metropolitan-district-council/walsall ,WC138-309,31.05.2022,ADULT SOCIAL CARE,ADVANCE HEALTH CARE (UK) LTD,05/05/2022,"1,815.55",6541-Domiciliary Care,THIRD PARTY PAYMENTS,PRIVATE CONTRACTOR,REVENUE
Walsall Council,http://opendatacommunities.org/id/metropolitan-district-council/walsall ,WC138-310,31.05.2022,ADULT SOCIAL CARE,ADVANCE HEALTH CARE (UK) LTD,05/05/2022,568.80,6541-Domiciliary Care,THIRD PARTY PAYMENTS,PRIVATE CONTRACTOR,REVENUE
Walsall Council,http://opendatacommunities.org/id/metropolitan-district-council/walsall ,WC138-311,31.05.2022,ADULT SOCIAL CARE,ADVANCE HEALTH CARE (UK) LTD,10/05/2022,845.30,6541-Domiciliary Care,THIRD PARTY PAYMENTS,PRIVATE CONTRACTOR,REVENUE
Walsall Council,http://opendatacommunities.org/id/metropolitan-district-council/walsall ,WC138-312,31.05.2022,ADULT SOCIAL CARE,ADVANCE HEALTH CARE (UK) LTD,10/05/2022,531.98,6541-Domiciliary Care,THIRD PARTY PAYMENTS,PRIVATE CONTRACTOR,REVENUE
Walsall Council,http://opendatacommunities.org/id/metropolitan-district-council/walsall ,WC138-313,31.05.2022,ADULT SOCIAL CARE,ADVANCE HEALTH CARE (UK) LTD,10/05/2022,497.70,6541-Domiciliary Care,THIRD PARTY PAYMENTS,PRIVATE CONTRACTOR,REVENUE
Walsall Council,http://opendatacommunities.org/id/metropolitan-district-council/walsall ,WC138-314,31.05.2022,ADULT SOCIAL CARE,ADVANCE HEALTH CARE (UK) LTD,10/05/2022,497.70,6541-Domiciliary Care,THIRD PARTY PAYMENTS,PRIVATE CONTRACTOR,REVENUE
Walsall Council,http://opendatacommunities.org/id/metropolitan-district-council/walsall ,WC138-315,31.05.2022,ADULT SOCIAL CARE,ADVANCE HEALTH CARE (UK) LTD,10/05/2022,497.70,6541-Domiciliary Care,THIRD PARTY PAYMENTS,PRIVATE CONTRACTOR,REVENUE
Walsall Council,http://opendatacommunities.org/id/metropolitan-district-council/walsall ,WC138-316,31.05.2022,ADULT SOCIAL CARE,ADVANCE HEALTH CARE (UK) LTD,10/05/2022,387.10,6541-Domiciliary Care,THIRD PARTY PAYMENTS,PRIVATE CONTRACTOR,REVENUE
Walsall Council,http://opendatacommunities.org/id/metropolitan-district-council/walsall ,WC138-317,31.05.2022,ADULT SOCIAL CARE,ADVANCE HEALTH CARE (UK) LTD,10/05/2022,497.70,6541-Domiciliary Care,THIRD PARTY PAYMENTS,PRIVATE CONTRACTOR,REVENUE
Walsall Council,http://opendatacommunities.org/id/metropolitan-district-council/walsall ,WC138-318,31.05.2022,ADULT SOCIAL CARE,ADVANCE HEALTH CARE (UK) LTD,10/05/2022,460.88,6541-Domiciliary Care,THIRD PARTY PAYMENTS,PRIVATE CONTRACTOR,REVENUE
Walsall Council,http://opendatacommunities.org/id/metropolitan-district-council/walsall ,WC138-319,31.05.2022,ADULT SOCIAL CARE,ADVANCE HEALTH CARE (UK) LTD,10/05/2022,553.00,6541-Domiciliary Care,THIRD PARTY PAYMENTS,PRIVATE CONTRACTOR,REVENUE
Walsall Council,http://opendatacommunities.org/id/metropolitan-district-council/walsall ,WC138-320,31.05.2022,ADULT SOCIAL CARE,ADVANCE HEALTH CARE (UK) LTD,10/05/2022,553.00,6541-Domiciliary Care,THIRD PARTY PAYMENTS,PRIVATE CONTRACTOR,REVENUE
Walsall Council,http://opendatacommunities.org/id/metropolitan-district-council/walsall ,WC138-321,31.05.2022,ADULT SOCIAL CARE,ADVANCE HEALTH CARE (UK) LTD,10/05/2022,490.40,6541-Domiciliary Care,THIRD PARTY PAYMENTS,PRIVATE CONTRACTOR,REVENUE
Walsall Council,http://opendatacommunities.org/id/metropolitan-district-council/walsall ,WC138-322,31.05.2022,ADULT SOCIAL CARE,ADVANCE HEALTH CARE (UK) LTD,10/05/2022,-284.40,6541-Domiciliary Care,THIRD PARTY PAYMENTS,PRIVATE CONTRACTOR,REVENUE
Walsall Council,http://opendatacommunities.org/id/metropolitan-district-council/walsall ,WC138-323,31.05.2022,ADULT SOCIAL CARE,ADVANCE HEALTH CARE (UK) LTD,10/05/2022,576.70,6541-Domiciliary Care,THIRD PARTY PAYMENTS,PRIVATE CONTRACTOR,REVENUE
Walsall Council,http://opendatacommunities.org/id/metropolitan-district-council/walsall ,WC138-324,31.05.2022,ADULT SOCIAL CARE,ADVANCE HEALTH CARE (UK) LTD,10/05/2022,497.70,6541-Domiciliary Care,THIRD PARTY PAYMENTS,PRIVATE CONTRACTOR,REVENUE
Walsall Council,http://opendatacommunities.org/id/metropolitan-district-council/walsall ,WC138-325,31.05.2022,ADULT SOCIAL CARE,ADVANCE HEALTH CARE (UK) LTD,10/05/2022,497.70,6541-Domiciliary Care,THIRD PARTY PAYMENTS,PRIVATE CONTRACTOR,REVENUE
Walsall Council,http://opendatacommunities.org/id/metropolitan-district-council/walsall ,WC138-326,31.05.2022,ADULT SOCIAL CARE,ADVANCE HEALTH CARE (UK) LTD,10/05/2022,497.70,6541-Domiciliary Care,THIRD PARTY PAYMENTS,PRIVATE CONTRACTOR,REVENUE
Walsall Council,http://opendatacommunities.org/id/metropolitan-district-council/walsall ,WC138-327,31.05.2022,ADULT SOCIAL CARE,ADVANCE HEALTH CARE (UK) LTD,10/05/2022,368.76,6541-Domiciliary Care,THIRD PARTY PAYMENTS,PRIVATE CONTRACTOR,REVENUE
Walsall Council,http://opendatacommunities.org/id/metropolitan-district-council/walsall ,WC138-328,31.05.2022,ADULT SOCIAL CARE,ADVANCE HEALTH CARE (UK) LTD,10/05/2022,331.80,6541-Domiciliary Care,THIRD PARTY PAYMENTS,PRIVATE CONTRACTOR,REVENUE
Walsall Council,http://opendatacommunities.org/id/metropolitan-district-council/walsall ,WC138-329,31.05.2022,ADULT SOCIAL CARE,ADVANCE HEALTH CARE (UK) LTD,10/05/2022,331.94,6541-Domiciliary Care,THIRD PARTY PAYMENTS,PRIVATE CONTRACTOR,REVENUE
Walsall Council,http://opendatacommunities.org/id/metropolitan-district-council/walsall ,WC138-330,31.05.2022,ADULT SOCIAL CARE,ADVANCE HEALTH CARE (UK) LTD,10/05/2022,497.70,6541-Domiciliary Care,THIRD PARTY PAYMENTS,PRIVATE CONTRACTOR,REVENUE
Walsall Council,http://opendatacommunities.org/id/metropolitan-district-council/walsall ,WC138-331,31.05.2022,ADULT SOCIAL CARE,ADVANCE HEALTH CARE (UK) LTD,10/05/2022,442.40,6541-Domiciliary Care,THIRD PARTY PAYMENTS,PRIVATE CONTRACTOR,REVENUE
Walsall Council,http://opendatacommunities.org/id/metropolitan-district-council/walsall ,WC138-332,31.05.2022,ADULT SOCIAL CARE,ADVANCE HEALTH CARE (UK) LTD,10/05/2022,497.70,6541-Domiciliary Care,THIRD PARTY PAYMENTS,PRIVATE CONTRACTOR,REVENUE
Walsall Council,http://opendatacommunities.org/id/metropolitan-district-council/walsall ,WC138-333,31.05.2022,ADULT SOCIAL CARE,ADVANCE HEALTH CARE (UK) LTD,10/05/2022,-457.53,6541-Domiciliary Care,THIRD PARTY PAYMENTS,PRIVATE CONTRACTOR,REVENUE
Walsall Council,http://opendatacommunities.org/id/metropolitan-district-council/walsall ,WC138-334,31.05.2022,ADULT SOCIAL CARE,ADVANCE HEALTH CARE (UK) LTD,10/05/2022,331.94,6541-Domiciliary Care,THIRD PARTY PAYMENTS,PRIVATE CONTRACTOR,REVENUE
Walsall Council,http://opendatacommunities.org/id/metropolitan-district-council/walsall ,WC138-335,31.05.2022,ADULT SOCIAL CARE,ADVANCE HEALTH CARE (UK) LTD,10/05/2022,884.80,6541-Domiciliary Care,THIRD PARTY PAYMENTS,PRIVATE CONTRACTOR,REVENUE
Walsall Council,http://opendatacommunities.org/id/metropolitan-district-council/walsall ,WC138-336,31.05.2022,ADULT SOCIAL CARE,ADVANCE HEALTH CARE (UK) LTD,10/05/2022,497.70,6541-Domiciliary Care,THIRD PARTY PAYMENTS,PRIVATE CONTRACTOR,REVENUE
Walsall Council,http://opendatacommunities.org/id/metropolitan-district-council/walsall ,WC138-337,31.05.2022,ADULT SOCIAL CARE,ADVANCE HEALTH CARE (UK) LTD,10/05/2022,460.88,6541-Domiciliary Care,THIRD PARTY PAYMENTS,PRIVATE CONTRACTOR,REVENUE
Walsall Council,http://opendatacommunities.org/id/metropolitan-district-council/walsall ,WC138-338,31.05.2022,ADULT SOCIAL CARE,ADVANCE HEALTH CARE (UK) LTD,10/05/2022,497.70,6541-Domiciliary Care,THIRD PARTY PAYMENTS,PRIVATE CONTRACTOR,REVENUE
Walsall Council,http://opendatacommunities.org/id/metropolitan-district-council/walsall ,WC138-339,31.05.2022,ADULT SOCIAL CARE,ADVANCE HEALTH CARE (UK) LTD,10/05/2022,497.70,6541-Domiciliary Care,THIRD PARTY PAYMENTS,PRIVATE CONTRACTOR,REVENUE
Walsall Council,http://opendatacommunities.org/id/metropolitan-district-council/walsall ,WC138-340,31.05.2022,ADULT SOCIAL CARE,ADVANCE HEALTH CARE (UK) LTD,10/05/2022,553.00,6541-Domiciliary Care,THIRD PARTY PAYMENTS,PRIVATE CONTRACTOR,REVENUE
Walsall Council,http://opendatacommunities.org/id/metropolitan-district-council/walsall ,WC138-341,31.05.2022,ADULT SOCIAL CARE,ADVANCE HEALTH CARE (UK) LTD,10/05/2022,513.50,6541-Domiciliary Care,THIRD PARTY PAYMENTS,PRIVATE CONTRACTOR,REVENUE
Walsall Council,http://opendatacommunities.org/id/metropolitan-district-council/walsall ,WC138-342,31.05.2022,ADULT SOCIAL CARE,ADVANCE HEALTH CARE (UK) LTD,10/05/2022,497.70,6541-Domiciliary Care,THIRD PARTY PAYMENTS,PRIVATE CONTRACTOR,REVENUE
Walsall Council,http://opendatacommunities.org/id/metropolitan-district-council/walsall ,WC138-343,31.05.2022,ADULT SOCIAL CARE,ADVANCE HEALTH CARE (UK) LTD,10/05/2022,769.62,6541-Domiciliary Care,THIRD PARTY PAYMENTS,PRIVATE CONTRACTOR,REVENUE
Walsall Council,http://opendatacommunities.org/id/metropolitan-district-council/walsall ,WC138-344,31.05.2022,ADULT SOCIAL CARE,ADVANCE HEALTH CARE (UK) LTD,10/05/2022,497.70,6541-Domiciliary Care,THIRD PARTY PAYMENTS,PRIVATE CONTRACTOR,REVENUE
Walsall Council,http://opendatacommunities.org/id/metropolitan-district-council/walsall ,WC138-345,31.05.2022,ADULT SOCIAL CARE,ADVANCE HEALTH CARE (UK) LTD,10/05/2022,331.80,6541-Domiciliary Care,THIRD PARTY PAYMENTS,PRIVATE CONTRACTOR,REVENUE
Walsall Council,http://opendatacommunities.org/id/metropolitan-district-council/walsall ,WC138-346,31.05.2022,ADULT SOCIAL CARE,ADVANCE HEALTH CARE (UK) LTD,10/05/2022,845.30,6541-Domiciliary Care,THIRD PARTY PAYMENTS,PRIVATE CONTRACTOR,REVENUE
Walsall Council,http://opendatacommunities.org/id/metropolitan-district-council/walsall ,WC138-347,31.05.2022,ADULT SOCIAL CARE,ADVANCE HEALTH CARE (UK) LTD,10/05/2022,531.98,6541-Domiciliary Care,THIRD PARTY PAYMENTS,PRIVATE CONTRACTOR,REVENUE
Walsall Council,http://opendatacommunities.org/id/metropolitan-district-council/walsall ,WC138-348,31.05.2022,ADULT SOCIAL CARE,ADVANCE HEALTH CARE (UK) LTD,10/05/2022,497.70,6541-Domiciliary Care,THIRD PARTY PAYMENTS,PRIVATE CONTRACTOR,REVENUE
Walsall Council,http://opendatacommunities.org/id/metropolitan-district-council/walsall ,WC138-349,31.05.2022,ADULT SOCIAL CARE,ADVANCE HEALTH CARE (UK) LTD,10/05/2022,387.10,6541-Domiciliary Care,THIRD PARTY PAYMENTS,PRIVATE CONTRACTOR,REVENUE
Walsall Council,http://opendatacommunities.org/id/metropolitan-district-council/walsall ,WC138-350,31.05.2022,ADULT SOCIAL CARE,ADVANCE HEALTH CARE (UK) LTD,10/05/2022,497.70,6541-Domiciliary Care,THIRD PARTY PAYMENTS,PRIVATE CONTRACTOR,REVENUE
Walsall Council,http://opendatacommunities.org/id/metropolitan-district-council/walsall ,WC138-351,31.05.2022,ADULT SOCIAL CARE,ADVANCE HEALTH CARE (UK) LTD,10/05/2022,460.88,6541-Domiciliary Care,THIRD PARTY PAYMENTS,PRIVATE CONTRACTOR,REVENUE
Walsall Council,http://opendatacommunities.org/id/metropolitan-district-council/walsall ,WC138-352,31.05.2022,ADULT SOCIAL CARE,ADVANCE HEALTH CARE (UK) LTD,10/05/2022,442.40,6541-Domiciliary Care,THIRD PARTY PAYMENTS,PRIVATE CONTRACTOR,REVENUE
Walsall Council,http://opendatacommunities.org/id/metropolitan-district-council/walsall ,WC138-353,31.05.2022,ADULT SOCIAL CARE,ADVANCE HEALTH CARE (UK) LTD,10/05/2022,331.94,6541-Domiciliary Care,THIRD PARTY PAYMENTS,PRIVATE CONTRACTOR,REVENUE
Walsall Council,http://opendatacommunities.org/id/metropolitan-district-council/walsall ,WC138-354,31.05.2022,ADULT SOCIAL CARE,ADVANCE HEALTH CARE (UK) LTD,10/05/2022,460.88,6541-Domiciliary Care,THIRD PARTY PAYMENTS,PRIVATE CONTRACTOR,REVENUE
Walsall Council,http://opendatacommunities.org/id/metropolitan-district-council/walsall ,WC138-355,31.05.2022,ADULT SOCIAL CARE,ADVANCE HEALTH CARE (UK) LTD,10/05/2022,497.70,6541-Domiciliary Care,THIRD PARTY PAYMENTS,PRIVATE CONTRACTOR,REVENUE
Walsall Council,http://opendatacommunities.org/id/metropolitan-district-council/walsall ,WC138-356,31.05.2022,ADULT SOCIAL CARE,ADVANCE HEALTH CARE (UK) LTD,10/05/2022,884.80,6541-Domiciliary Care,THIRD PARTY PAYMENTS,PRIVATE CONTRACTOR,REVENUE
Walsall Council,http://opendatacommunities.org/id/metropolitan-district-council/walsall ,WC138-357,31.05.2022,ADULT SOCIAL CARE,ADVANCE HEALTH CARE (UK) LTD,10/05/2022,497.70,6541-Domiciliary Care,THIRD PARTY PAYMENTS,PRIVATE CONTRACTOR,REVENUE
Walsall Council,http://opendatacommunities.org/id/metropolitan-district-council/walsall ,WC138-358,31.05.2022,ADULT SOCIAL CARE,ADVANCE HEALTH CARE (UK) LTD,10/05/2022,497.70,6541-Domiciliary Care,THIRD PARTY PAYMENTS,PRIVATE CONTRACTOR,REVENUE
Walsall Council,http://opendatacommunities.org/id/metropolitan-district-council/walsall ,WC138-359,31.05.2022,ADULT SOCIAL CARE,ADVANCE HEALTH CARE (UK) LTD,10/05/2022,553.00,6541-Domiciliary Care,THIRD PARTY PAYMENTS,PRIVATE CONTRACTOR,REVENUE
Walsall Council,http://opendatacommunities.org/id/metropolitan-district-council/walsall ,WC138-360,31.05.2022,ADULT SOCIAL CARE,ADVANCE HEALTH CARE (UK) LTD,10/05/2022,513.50,6541-Domiciliary Care,THIRD PARTY PAYMENTS,PRIVATE CONTRACTOR,REVENUE
Walsall Council,http://opendatacommunities.org/id/metropolitan-district-council/walsall ,WC138-361,31.05.2022,ADULT SOCIAL CARE,ADVANCE HEALTH CARE (UK) LTD,10/05/2022,497.70,6541-Domiciliary Care,THIRD PARTY PAYMENTS,PRIVATE CONTRACTOR,REVENUE
Walsall Council,http://opendatacommunities.org/id/metropolitan-district-council/walsall ,WC138-362,31.05.2022,ADULT SOCIAL CARE,ADVANCE HEALTH CARE (UK) LTD,10/05/2022,576.70,6541-Domiciliary Care,THIRD PARTY PAYMENTS,PRIVATE CONTRACTOR,REVENUE
Walsall Council,http://opendatacommunities.org/id/metropolitan-district-council/walsall ,WC138-363,31.05.2022,ADULT SOCIAL CARE,ADVANCE HEALTH CARE (UK) LTD,10/05/2022,497.70,6541-Domiciliary Care,THIRD PARTY PAYMENTS,PRIVATE CONTRACTOR,REVENUE
Walsall Council,http://opendatacommunities.org/id/metropolitan-district-council/walsall ,WC138-364,31.05.2022,ADULT SOCIAL CARE,ADVANCE HEALTH CARE (UK) LTD,10/05/2022,497.70,6541-Domiciliary Care,THIRD PARTY PAYMENTS,PRIVATE CONTRACTOR,REVENUE
Walsall Council,http://opendatacommunities.org/id/metropolitan-district-council/walsall ,WC138-365,31.05.2022,ADULT SOCIAL CARE,ADVANCE HEALTH CARE (UK) LTD,10/05/2022,497.70,6541-Domiciliary Care,THIRD PARTY PAYMENTS,PRIVATE CONTRACTOR,REVENUE
Walsall Council,http://opendatacommunities.org/id/metropolitan-district-council/walsall ,WC138-366,31.05.2022,ADULT SOCIAL CARE,ADVANCE HEALTH CARE (UK) LTD,10/05/2022,368.76,6541-Domiciliary Care,THIRD PARTY PAYMENTS,PRIVATE CONTRACTOR,REVENUE
Walsall Council,http://opendatacommunities.org/id/metropolitan-district-council/walsall ,WC138-367,31.05.2022,ADULT SOCIAL CARE,ADVANCE HEALTH CARE (UK) LTD,10/05/2022,497.70,6541-Domiciliary Care,THIRD PARTY PAYMENTS,PRIVATE CONTRACTOR,REVENUE
Walsall Council,http://opendatacommunities.org/id/metropolitan-district-council/walsall ,WC138-368,31.05.2022,ADULT SOCIAL CARE,ADVANCE HEALTH CARE (UK) LTD,10/05/2022,331.80,6541-Domiciliary Care,THIRD PARTY PAYMENTS,PRIVATE CONTRACTOR,REVENUE
Walsall Council,http://opendatacommunities.org/id/metropolitan-district-council/walsall ,WC138-369,31.05.2022,ADULT SOCIAL CARE,ADVANCE HEALTH CARE (UK) LTD,10/05/2022,331.80,6541-Domiciliary Care,THIRD PARTY PAYMENTS,PRIVATE CONTRACTOR,REVENUE
Walsall Council,http://opendatacommunities.org/id/metropolitan-district-council/walsall ,WC138-370,31.05.2022,ADULT SOCIAL CARE,ADVANCE HEALTH CARE (UK) LTD,10/05/2022,331.94,6541-Domiciliary Care,THIRD PARTY PAYMENTS,PRIVATE CONTRACTOR,REVENUE
Walsall Council,http://opendatacommunities.org/id/metropolitan-district-council/walsall ,WC138-371,31.05.2022,ADULT SOCIAL CARE,ADVANCE HEALTH CARE (UK) LTD,10/05/2022,497.70,6541-Domiciliary Care,THIRD PARTY PAYMENTS,PRIVATE CONTRACTOR,REVENUE
Walsall Council,http://opendatacommunities.org/id/metropolitan-district-council/walsall ,WC138-372,31.05.2022,ADULT SOCIAL CARE,ADVANCE HEALTH CARE (UK) LTD,10/05/2022,497.70,6541-Domiciliary Care,THIRD PARTY PAYMENTS,PRIVATE CONTRACTOR,REVENUE
Walsall Council,http://opendatacommunities.org/id/metropolitan-district-council/walsall ,WC138-373,31.05.2022,ADULT SOCIAL CARE,ADVANCE HEALTH CARE (UK) LTD,10/05/2022,497.70,6541-Domiciliary Care,THIRD PARTY PAYMENTS,PRIVATE CONTRACTOR,REVENUE
Walsall Council,http://opendatacommunities.org/id/metropolitan-district-council/walsall ,WC138-374,31.05.2022,ADULT SOCIAL CARE,ADVANCE HEALTH CARE (UK) LTD,10/05/2022,497.70,6541-Domiciliary Care,THIRD PARTY PAYMENTS,PRIVATE CONTRACTOR,REVENUE
Walsall Council,http://opendatacommunities.org/id/metropolitan-district-council/walsall ,WC138-375,31.05.2022,ADULT SOCIAL CARE,ADVANCE HEALTH CARE (UK) LTD,10/05/2022,553.00,6541-Domiciliary Care,THIRD PARTY PAYMENTS,PRIVATE CONTRACTOR,REVENUE
Walsall Council,http://opendatacommunities.org/id/metropolitan-district-council/walsall ,WC138-376,31.05.2022,ADULT SOCIAL CARE,ADVANCE HEALTH CARE (UK) LTD,10/05/2022,553.00,6541-Domiciliary Care,THIRD PARTY PAYMENTS,PRIVATE CONTRACTOR,REVENUE
Walsall Council,http://opendatacommunities.org/id/metropolitan-district-council/walsall ,WC138-377,31.05.2022,ADULT SOCIAL CARE,ADVANCE HEALTH CARE (UK) LTD,10/05/2022,490.40,6541-Domiciliary Care,THIRD PARTY PAYMENTS,PRIVATE CONTRACTOR,REVENUE
Walsall Council,http://opendatacommunities.org/id/metropolitan-district-council/walsall ,WC138-378,31.05.2022,ADULT SOCIAL CARE,ADVANCE HEALTH CARE (UK) LTD,23/05/2022,845.30,6541-Domiciliary Care,THIRD PARTY PAYMENTS,PRIVATE CONTRACTOR,REVENUE
Walsall Council,http://opendatacommunities.org/id/metropolitan-district-council/walsall ,WC138-379,31.05.2022,ADULT SOCIAL CARE,ADVANCE HEALTH CARE (UK) LTD,23/05/2022,531.98,6541-Domiciliary Care,THIRD PARTY PAYMENTS,PRIVATE CONTRACTOR,REVENUE
Walsall Council,http://opendatacommunities.org/id/metropolitan-district-council/walsall ,WC138-380,31.05.2022,ADULT SOCIAL CARE,ADVANCE HEALTH CARE (UK) LTD,23/05/2022,497.70,6541-Domiciliary Care,THIRD PARTY PAYMENTS,PRIVATE CONTRACTOR,REVENUE
Walsall Council,http://opendatacommunities.org/id/metropolitan-district-council/walsall ,WC138-381,31.05.2022,ADULT SOCIAL CARE,ADVANCE HEALTH CARE (UK) LTD,23/05/2022,442.40,6541-Domiciliary Care,THIRD PARTY PAYMENTS,PRIVATE CONTRACTOR,REVENUE
Walsall Council,http://opendatacommunities.org/id/metropolitan-district-council/walsall ,WC138-382,31.05.2022,ADULT SOCIAL CARE,ADVANCE HEALTH CARE (UK) LTD,23/05/2022,331.94,6541-Domiciliary Care,THIRD PARTY PAYMENTS,PRIVATE CONTRACTOR,REVENUE
Walsall Council,http://opendatacommunities.org/id/metropolitan-district-council/walsall ,WC138-383,31.05.2022,ADULT SOCIAL CARE,ADVANCE HEALTH CARE (UK) LTD,23/05/2022,387.10,6541-Domiciliary Care,THIRD PARTY PAYMENTS,PRIVATE CONTRACTOR,REVENUE
Walsall Council,http://opendatacommunities.org/id/metropolitan-district-council/walsall ,WC138-384,31.05.2022,ADULT SOCIAL CARE,ADVANCE HEALTH CARE (UK) LTD,23/05/2022,497.70,6541-Domiciliary Care,THIRD PARTY PAYMENTS,PRIVATE CONTRACTOR,REVENUE
Walsall Council,http://opendatacommunities.org/id/metropolitan-district-council/walsall ,WC138-385,31.05.2022,ADULT SOCIAL CARE,ADVANCE HEALTH CARE (UK) LTD,23/05/2022,460.88,6541-Domiciliary Care,THIRD PARTY PAYMENTS,PRIVATE CONTRACTOR,REVENUE
Walsall Council,http://opendatacommunities.org/id/metropolitan-district-council/walsall ,WC138-386,31.05.2022,ADULT SOCIAL CARE,ADVANCE HEALTH CARE (UK) LTD,23/05/2022,460.88,6541-Domiciliary Care,THIRD PARTY PAYMENTS,PRIVATE CONTRACTOR,REVENUE
Walsall Council,http://opendatacommunities.org/id/metropolitan-district-council/walsall ,WC138-387,31.05.2022,ADULT SOCIAL CARE,ADVANCE HEALTH CARE (UK) LTD,23/05/2022,497.70,6541-Domiciliary Care,THIRD PARTY PAYMENTS,PRIVATE CONTRACTOR,REVENUE
Walsall Council,http://opendatacommunities.org/id/metropolitan-district-council/walsall ,WC138-388,31.05.2022,ADULT SOCIAL CARE,ADVANCE HEALTH CARE (UK) LTD,23/05/2022,576.70,6541-Domiciliary Care,THIRD PARTY PAYMENTS,PRIVATE CONTRACTOR,REVENUE
Walsall Council,http://opendatacommunities.org/id/metropolitan-district-council/walsall ,WC138-389,31.05.2022,ADULT SOCIAL CARE,ADVANCE HEALTH CARE (UK) LTD,23/05/2022,497.70,6541-Domiciliary Care,THIRD PARTY PAYMENTS,PRIVATE CONTRACTOR,REVENUE
Walsall Council,http://opendatacommunities.org/id/metropolitan-district-council/walsall ,WC138-390,31.05.2022,ADULT SOCIAL CARE,ADVANCE HEALTH CARE (UK) LTD,23/05/2022,497.70,6541-Domiciliary Care,THIRD PARTY PAYMENTS,PRIVATE CONTRACTOR,REVENUE
Walsall Council,http://opendatacommunities.org/id/metropolitan-district-council/walsall ,WC138-391,31.05.2022,ADULT SOCIAL CARE,ADVANCE HEALTH CARE (UK) LTD,23/05/2022,497.70,6541-Domiciliary Care,THIRD PARTY PAYMENTS,PRIVATE CONTRACTOR,REVENUE
Walsall Council,http://opendatacommunities.org/id/metropolitan-district-council/walsall ,WC138-392,31.05.2022,ADULT SOCIAL CARE,ADVANCE HEALTH CARE (UK) LTD,23/05/2022,368.76,6541-Domiciliary Care,THIRD PARTY PAYMENTS,PRIVATE CONTRACTOR,REVENUE
Walsall Council,http://opendatacommunities.org/id/metropolitan-district-council/walsall ,WC138-393,31.05.2022,ADULT SOCIAL CARE,ADVANCE HEALTH CARE (UK) LTD,23/05/2022,331.80,6541-Domiciliary Care,THIRD PARTY PAYMENTS,PRIVATE CONTRACTOR,REVENUE
Walsall Council,http://opendatacommunities.org/id/metropolitan-district-council/walsall ,WC138-394,31.05.2022,ADULT SOCIAL CARE,ADVANCE HEALTH CARE (UK) LTD,23/05/2022,331.94,6541-Domiciliary Care,THIRD PARTY PAYMENTS,PRIVATE CONTRACTOR,REVENUE
Walsall Council,http://opendatacommunities.org/id/metropolitan-district-council/walsall ,WC138-395,31.05.2022,ADULT SOCIAL CARE,ADVANCE HEALTH CARE (UK) LTD,23/05/2022,497.70,6541-Domiciliary Care,THIRD PARTY PAYMENTS,PRIVATE CONTRACTOR,REVENUE
Walsall Council,http://opendatacommunities.org/id/metropolitan-district-council/walsall ,WC138-396,31.05.2022,ADULT SOCIAL CARE,ADVANCE HEALTH CARE (UK) LTD,23/05/2022,371.30,6541-Domiciliary Care,THIRD PARTY PAYMENTS,PRIVATE CONTRACTOR,REVENUE
Walsall Council,http://opendatacommunities.org/id/metropolitan-district-council/walsall ,WC138-397,31.05.2022,ADULT SOCIAL CARE,ADVANCE HEALTH CARE (UK) LTD,23/05/2022,497.70,6541-Domiciliary Care,THIRD PARTY PAYMENTS,PRIVATE CONTRACTOR,REVENUE
Walsall Council,http://opendatacommunities.org/id/metropolitan-district-council/walsall ,WC138-398,31.05.2022,ADULT SOCIAL CARE,ADVANCE HEALTH CARE (UK) LTD,23/05/2022,497.70,6541-Domiciliary Care,THIRD PARTY PAYMENTS,PRIVATE CONTRACTOR,REVENUE
Walsall Council,http://opendatacommunities.org/id/metropolitan-district-council/walsall ,WC138-399,31.05.2022,ADULT SOCIAL CARE,ADVANCE HEALTH CARE (UK) LTD,23/05/2022,553.00,6541-Domiciliary Care,THIRD PARTY PAYMENTS,PRIVATE CONTRACTOR,REVENUE
Walsall Council,http://opendatacommunities.org/id/metropolitan-district-council/walsall ,WC138-400,31.05.2022,ADULT SOCIAL CARE,ADVANCE HEALTH CARE (UK) LTD,23/05/2022,490.40,6541-Domiciliary Care,THIRD PARTY PAYMENTS,PRIVATE CONTRACTOR,REVENUE
Walsall Council,http://opendatacommunities.org/id/metropolitan-district-council/walsall ,WC138-401,31.05.2022,ADULT SOCIAL CARE,ADVANCE HEALTH CARE (UK) LTD,23/05/2022,884.80,6541-Domiciliary Care,THIRD PARTY PAYMENTS,PRIVATE CONTRACTOR,REVENUE
Walsall Council,http://opendatacommunities.org/id/metropolitan-district-council/walsall ,WC138-402,31.05.2022,ADULT SOCIAL CARE,ADVANCE HEALTH CARE (UK) LTD,23/05/2022,497.70,6541-Domiciliary Care,THIRD PARTY PAYMENTS,PRIVATE CONTRACTOR,REVENUE
Walsall Council,http://opendatacommunities.org/id/metropolitan-district-council/walsall ,WC138-403,31.05.2022,ADULT SOCIAL CARE,ADVANCE HEALTH CARE (UK) LTD,23/05/2022,497.70,6541-Domiciliary Care,THIRD PARTY PAYMENTS,PRIVATE CONTRACTOR,REVENUE
Walsall Council,http://opendatacommunities.org/id/metropolitan-district-council/walsall ,WC138-404,31.05.2022,ADULT SOCIAL CARE,ADVANCE HEALTH CARE (UK) LTD,23/05/2022,497.70,6541-Domiciliary Care,THIRD PARTY PAYMENTS,PRIVATE CONTRACTOR,REVENUE
Walsall Council,http://opendatacommunities.org/id/metropolitan-district-council/walsall ,WC138-405,31.05.2022,ADULT SOCIAL CARE,ADVANCE HEALTH CARE (UK) LTD,23/05/2022,553.00,6541-Domiciliary Care,THIRD PARTY PAYMENTS,PRIVATE CONTRACTOR,REVENUE
Walsall Council,http://opendatacommunities.org/id/metropolitan-district-council/walsall ,WC138-406,31.05.2022,ADULT SOCIAL CARE,ADVANCE HEALTH CARE (UK) LTD,23/05/2022,513.50,6541-Domiciliary Care,THIRD PARTY PAYMENTS,PRIVATE CONTRACTOR,REVENUE
Walsall Council,http://opendatacommunities.org/id/metropolitan-district-council/walsall ,WC138-407,31.05.2022,ADULT SOCIAL CARE,ADVANCE HEALTH CARE (UK) LTD,23/05/2022,497.70,6541-Domiciliary Care,THIRD PARTY PAYMENTS,PRIVATE CONTRACTOR,REVENUE
Walsall Council,http://opendatacommunities.org/id/metropolitan-district-council/walsall ,WC138-408,31.05.2022,ADULT SOCIAL CARE,ADVANCE HEALTH CARE (UK) LTD,23/05/2022,-268.64,6541-Domiciliary Care,THIRD PARTY PAYMENTS,PRIVATE CONTRACTOR,REVENUE
Walsall Council,http://opendatacommunities.org/id/metropolitan-district-council/walsall ,WC138-409,31.05.2022,ADULT SOCIAL CARE,ADVANCE HEALTH CARE (UK) LTD,23/05/2022,331.80,6541-Domiciliary Care,THIRD PARTY PAYMENTS,PRIVATE CONTRACTOR,REVENUE
Walsall Council,http://opendatacommunities.org/id/metropolitan-district-council/walsall ,WC138-410,31.05.2022,ADULT SOCIAL CARE,ADVANCE HEALTH CARE (UK) LTD,23/05/2022,497.70,6541-Domiciliary Care,THIRD PARTY PAYMENTS,PRIVATE CONTRACTOR,REVENUE
Walsall Council,http://opendatacommunities.org/id/metropolitan-district-council/walsall ,WC138-411,31.05.2022,ADULT SOCIAL CARE,ADVANCE HEALTH CARE (UK) LTD,23/05/2022,497.70,6541-Domiciliary Care,THIRD PARTY PAYMENTS,PRIVATE CONTRACTOR,REVENUE
Walsall Council,http://opendatacommunities.org/id/metropolitan-district-council/walsall ,WC138-412,31.05.2022,ADULT SOCIAL CARE,ADVANCE HEALTH CARE (UK) LTD,23/05/2022,497.70,6541-Domiciliary Care,THIRD PARTY PAYMENTS,PRIVATE CONTRACTOR,REVENUE
Walsall Council,http://opendatacommunities.org/id/metropolitan-district-council/walsall ,WC138-413,31.05.2022,ADULT SOCIAL CARE,ADVANCE HEALTH CARE (UK) LTD,23/05/2022,576.70,6541-Domiciliary Care,THIRD PARTY PAYMENTS,PRIVATE CONTRACTOR,REVENUE
Walsall Council,http://opendatacommunities.org/id/metropolitan-district-council/walsall ,WC138-414,31.05.2022,ADULT SOCIAL CARE,ADVANCE HEALTH CARE (UK) LTD,23/05/2022,497.70,6541-Domiciliary Care,THIRD PARTY PAYMENTS,PRIVATE CONTRACTOR,REVENUE
Walsall Council,http://opendatacommunities.org/id/metropolitan-district-council/walsall ,WC138-415,31.05.2022,ADULT SOCIAL CARE,ADVANCE HEALTH CARE (UK) LTD,23/05/2022,497.70,6541-Domiciliary Care,THIRD PARTY PAYMENTS,PRIVATE CONTRACTOR,REVENUE
Walsall Council,http://opendatacommunities.org/id/metropolitan-district-council/walsall ,WC138-416,31.05.2022,ADULT SOCIAL CARE,ADVANCE HEALTH CARE (UK) LTD,23/05/2022,497.70,6541-Domiciliary Care,THIRD PARTY PAYMENTS,PRIVATE CONTRACTOR,REVENUE
Walsall Council,http://opendatacommunities.org/id/metropolitan-district-council/walsall ,WC138-417,31.05.2022,ADULT SOCIAL CARE,ADVANCE HEALTH CARE (UK) LTD,23/05/2022,368.76,6541-Domiciliary Care,THIRD PARTY PAYMENTS,PRIVATE CONTRACTOR,REVENUE
Walsall Council,http://opendatacommunities.org/id/metropolitan-district-council/walsall ,WC138-418,31.05.2022,ADULT SOCIAL CARE,ADVANCE HEALTH CARE (UK) LTD,23/05/2022,845.30,6541-Domiciliary Care,THIRD PARTY PAYMENTS,PRIVATE CONTRACTOR,REVENUE
Walsall Council,http://opendatacommunities.org/id/metropolitan-district-council/walsall ,WC138-419,31.05.2022,ADULT SOCIAL CARE,ADVANCE HEALTH CARE (UK) LTD,23/05/2022,531.98,6541-Domiciliary Care,THIRD PARTY PAYMENTS,PRIVATE CONTRACTOR,REVENUE
Walsall Council,http://opendatacommunities.org/id/metropolitan-district-council/walsall ,WC138-420,31.05.2022,ADULT SOCIAL CARE,ADVANCE HEALTH CARE (UK) LTD,23/05/2022,497.70,6541-Domiciliary Care,THIRD PARTY PAYMENTS,PRIVATE CONTRACTOR,REVENUE
Walsall Council,http://opendatacommunities.org/id/metropolitan-district-council/walsall ,WC138-421,31.05.2022,ADULT SOCIAL CARE,ADVANCE HEALTH CARE (UK) LTD,23/05/2022,442.40,6541-Domiciliary Care,THIRD PARTY PAYMENTS,PRIVATE CONTRACTOR,REVENUE
Walsall Council,http://opendatacommunities.org/id/metropolitan-district-council/walsall ,WC138-422,31.05.2022,ADULT SOCIAL CARE,ADVANCE HEALTH CARE (UK) LTD,23/05/2022,331.94,6541-Domiciliary Care,THIRD PARTY PAYMENTS,PRIVATE CONTRACTOR,REVENUE
Walsall Council,http://opendatacommunities.org/id/metropolitan-district-council/walsall ,WC138-423,31.05.2022,ADULT SOCIAL CARE,ADVANCE HEALTH CARE (UK) LTD,23/05/2022,460.88,6541-Domiciliary Care,THIRD PARTY PAYMENTS,PRIVATE CONTRACTOR,REVENUE
Walsall Council,http://opendatacommunities.org/id/metropolitan-district-council/walsall ,WC138-424,31.05.2022,ADULT SOCIAL CARE,ADVANCE HEALTH CARE (UK) LTD,23/05/2022,884.80,6541-Domiciliary Care,THIRD PARTY PAYMENTS,PRIVATE CONTRACTOR,REVENUE
Walsall Council,http://opendatacommunities.org/id/metropolitan-district-council/walsall ,WC138-425,31.05.2022,ADULT SOCIAL CARE,ADVANCE HEALTH CARE (UK) LTD,23/05/2022,497.70,6541-Domiciliary Care,THIRD PARTY PAYMENTS,PRIVATE CONTRACTOR,REVENUE
Walsall Council,http://opendatacommunities.org/id/metropolitan-district-council/walsall ,WC138-426,31.05.2022,ADULT SOCIAL CARE,ADVANCE HEALTH CARE (UK) LTD,23/05/2022,497.70,6541-Domiciliary Care,THIRD PARTY PAYMENTS,PRIVATE CONTRACTOR,REVENUE
Walsall Council,http://opendatacommunities.org/id/metropolitan-district-council/walsall ,WC138-427,31.05.2022,ADULT SOCIAL CARE,ADVANCE HEALTH CARE (UK) LTD,23/05/2022,331.80,6541-Domiciliary Care,THIRD PARTY PAYMENTS,PRIVATE CONTRACTOR,REVENUE
Walsall Council,http://opendatacommunities.org/id/metropolitan-district-council/walsall ,WC138-428,31.05.2022,ADULT SOCIAL CARE,ADVANCE HEALTH CARE (UK) LTD,23/05/2022,331.94,6541-Domiciliary Care,THIRD PARTY PAYMENTS,PRIVATE CONTRACTOR,REVENUE
Walsall Council,http://opendatacommunities.org/id/metropolitan-district-council/walsall ,WC138-429,31.05.2022,ADULT SOCIAL CARE,ADVANCE HEALTH CARE (UK) LTD,23/05/2022,497.70,6541-Domiciliary Care,THIRD PARTY PAYMENTS,PRIVATE CONTRACTOR,REVENUE
Walsall Council,http://opendatacommunities.org/id/metropolitan-district-council/walsall ,WC138-430,31.05.2022,ADULT SOCIAL CARE,ADVANCE HEALTH CARE (UK) LTD,23/05/2022,497.70,6541-Domiciliary Care,THIRD PARTY PAYMENTS,PRIVATE CONTRACTOR,REVENUE
Walsall Council,http://opendatacommunities.org/id/metropolitan-district-council/walsall ,WC138-431,31.05.2022,ADULT SOCIAL CARE,ADVANCE HEALTH CARE (UK) LTD,23/05/2022,553.00,6541-Domiciliary Care,THIRD PARTY PAYMENTS,PRIVATE CONTRACTOR,REVENUE
Walsall Council,http://opendatacommunities.org/id/metropolitan-district-council/walsall ,WC138-432,31.05.2022,ADULT SOCIAL CARE,ADVANCE HEALTH CARE (UK) LTD,23/05/2022,513.50,6541-Domiciliary Care,THIRD PARTY PAYMENTS,PRIVATE CONTRACTOR,REVENUE
Walsall Council,http://opendatacommunities.org/id/metropolitan-district-council/walsall ,WC138-433,31.05.2022,ADULT SOCIAL CARE,ADVANCE HEALTH CARE (UK) LTD,23/05/2022,497.70,6541-Domiciliary Care,THIRD PARTY PAYMENTS,PRIVATE CONTRACTOR,REVENUE
Walsall Council,http://opendatacommunities.org/id/metropolitan-district-council/walsall ,WC138-434,31.05.2022,ADULT SOCIAL CARE,ADVANCE HEALTH CARE (UK) LTD,23/05/2022,497.70,6541-Domiciliary Care,THIRD PARTY PAYMENTS,PRIVATE CONTRACTOR,REVENUE
Walsall Council,http://opendatacommunities.org/id/metropolitan-district-council/walsall ,WC138-435,31.05.2022,ADULT SOCIAL CARE,ADVANCE HEALTH CARE (UK) LTD,23/05/2022,497.70,6541-Domiciliary Care,THIRD PARTY PAYMENTS,PRIVATE CONTRACTOR,REVENUE
Walsall Council,http://opendatacommunities.org/id/metropolitan-district-council/walsall ,WC138-436,31.05.2022,ADULT SOCIAL CARE,ADVANCE HEALTH CARE (UK) LTD,23/05/2022,553.00,6541-Domiciliary Care,THIRD PARTY PAYMENTS,PRIVATE CONTRACTOR,REVENUE
Walsall Council,http://opendatacommunities.org/id/metropolitan-district-council/walsall ,WC138-437,31.05.2022,ADULT SOCIAL CARE,ADVANCE HEALTH CARE (UK) LTD,23/05/2022,490.40,6541-Domiciliary Care,THIRD PARTY PAYMENTS,PRIVATE CONTRACTOR,REVENUE
Walsall Council,http://opendatacommunities.org/id/metropolitan-district-council/walsall ,WC138-438,31.05.2022,ADULT SOCIAL CARE,ADVANCE HEALTH CARE (UK) LTD,23/05/2022,331.80,6541-Domiciliary Care,THIRD PARTY PAYMENTS,PRIVATE CONTRACTOR,REVENUE
Walsall Council,http://opendatacommunities.org/id/metropolitan-district-council/walsall ,WC138-439,31.05.2022,ADULT SOCIAL CARE,ADVANCE HEALTH CARE (UK) LTD,23/05/2022,497.70,6541-Domiciliary Care,THIRD PARTY PAYMENTS,PRIVATE CONTRACTOR,REVENUE
Walsall Council,http://opendatacommunities.org/id/metropolitan-district-council/walsall ,WC138-440,31.05.2022,ADULT SOCIAL CARE,ADVANCE HEALTH CARE (UK) LTD,23/05/2022,387.10,6541-Domiciliary Care,THIRD PARTY PAYMENTS,PRIVATE CONTRACTOR,REVENUE
Walsall Council,http://opendatacommunities.org/id/metropolitan-district-council/walsall ,WC138-441,31.05.2022,ADULT SOCIAL CARE,ADVANCE HEALTH CARE (UK) LTD,23/05/2022,497.70,6541-Domiciliary Care,THIRD PARTY PAYMENTS,PRIVATE CONTRACTOR,REVENUE
Walsall Council,http://opendatacommunities.org/id/metropolitan-district-council/walsall ,WC138-442,31.05.2022,ADULT SOCIAL CARE,ADVANCE HEALTH CARE (UK) LTD,23/05/2022,460.88,6541-Domiciliary Care,THIRD PARTY PAYMENTS,PRIVATE CONTRACTOR,REVENUE
Walsall Council,http://opendatacommunities.org/id/metropolitan-district-council/walsall ,WC138-443,31.05.2022,CHILDRENS,ADVANCED CHILD CARE ASSESSMENTS LTD,09/05/2022,"-2,406.00",6220-School Only Payments - Catering,THIRD PARTY PAYMENTS,INDEPENDENT UNIT WITHIN COUNCIL,REVENUE
Walsall Council,http://opendatacommunities.org/id/metropolitan-district-council/walsall ,WC138-444,31.05.2022,CHILDRENS,ADVANCED CHILD CARE ASSESSMENTS LTD,09/05/2022,"2,406.00",6220-School Only Payments - Catering,THIRD PARTY PAYMENTS,INDEPENDENT UNIT WITHIN COUNCIL,REVENUE
Walsall Council,http://opendatacommunities.org/id/metropolitan-district-council/walsall ,WC138-445,31.05.2022,CHILDRENS,ADVENTURELAND DAY NURSERY,30/05/2022,"2,207.25",1184-Other-Grants to Other Orgs,SUPPLIES & SERVICES,GRANTS (EXP) & SUBSCRIPTIONS,REVENUE
Walsall Council,http://opendatacommunities.org/id/metropolitan-district-council/walsall ,WC138-446,31.05.2022,CHILDRENS,ADVENTURELAND DAY NURSERY,30/05/2022,"11,031.60",1184-Other-Grants to Other Orgs,SUPPLIES & SERVICES,GRANTS (EXP) & SUBSCRIPTIONS,REVENUE
Walsall Council,http://opendatacommunities.org/id/metropolitan-district-council/walsall ,WC138-447,31.05.2022,ADULT SOCIAL CARE,ADVINIA CARE HOMES LTD - HAMMERWICH HALL CARE HOME,10/05/2022,"2,083.24",6541-Residential,THIRD PARTY PAYMENTS,PRIVATE CONTRACTOR,REVENUE
Walsall Council,http://opendatacommunities.org/id/metropolitan-district-council/walsall ,WC138-448,31.05.2022,ADULT SOCIAL CARE,ADVINIA CARE HOMES LTD - HAMMERWICH HALL CARE HOME,10/05/2022,"2,352.30",6541-Residential EMI,THIRD PARTY PAYMENTS,PRIVATE CONTRACTOR,REVENUE
Walsall Council,http://opendatacommunities.org/id/metropolitan-district-council/walsall ,WC138-449,31.05.2022,ECONOMY & ENVIRONMENT CAPITAL,AECOM LIMITED,11/05/2022,"5,000.00",7200-Consultants Fees,CAPITAL,"NEW CONSTRUCTION,CONVERSION & RENOVATION",CAPITAL
Walsall Council,http://opendatacommunities.org/id/metropolitan-district-council/walsall ,WC138-450,31.05.2022,CHILDRENS,AFGHAN COMMUNITY & WELFARE CENTRE,05/05/2022,838.58,6213-Professional Fees & Services,SUPPLIES & SERVICES,SERVICES,REVENUE
Walsall Council,http://opendatacommunities.org/id/metropolitan-district-council/walsall ,WC138-451,31.05.2022,CHILDRENS,REDACTED,04/05/2022,526.76,6223-Foster Carers Maintenance Allowance,TRANSFER PAYMENTS,CHILDREN SOCIAL SERVICES CLIENT,REVENUE
Walsall Council,http://opendatacommunities.org/id/metropolitan-district-council/walsall ,WC138-452,31.05.2022,CHILDRENS,REDACTED,04/05/2022,408.00,6223-Internal Foster Carers-Carer Fees,TRANSFER PAYMENTS,CHILDREN SOCIAL SERVICES CLIENT,REVENUE
Walsall Council,http://opendatacommunities.org/id/metropolitan-district-council/walsall ,WC138-453,31.05.2022,CHILDRENS,REDACTED,04/05/2022,584.00,6223-Foster Carers Maintenance Allowance,TRANSFER PAYMENTS,CHILDREN SOCIAL SERVICES CLIENT,REVENUE
Walsall Council,http://opendatacommunities.org/id/metropolitan-district-council/walsall ,WC138-454,31.05.2022,RESOURCES AND TRANSFORMATION CAPITAL,AGILISYS LTD,31/05/2022,"12,716.00",7300-Consultants Fees,CAPITAL,"NEW CONSTRUCTION,CONVERSION & RENOVATION",CAPITAL
Walsall Council,http://opendatacommunities.org/id/metropolitan-district-council/walsall ,WC138-455,31.05.2022,RESOURCES AND TRANSFORMATION CAPITAL,AGILISYS LTD,24/05/2022,"120,000.00",7300-Consultants Fees,CAPITAL,"NEW CONSTRUCTION,CONVERSION & RENOVATION",CAPITAL
Walsall Council,http://opendatacommunities.org/id/metropolitan-district-council/walsall ,WC138-456,31.05.2022,RESOURCES AND TRANSFORMATION CAPITAL,AGILISYS LTD,20/05/2022,"-9,713.00",7300-Consultants Fees,CAPITAL,"NEW CONSTRUCTION,CONVERSION & RENOVATION",CAPITAL
Walsall Council,http://opendatacommunities.org/id/metropolitan-district-council/walsall ,WC138-457,31.05.2022,RESOURCES AND TRANSFORMATION CAPITAL,AGILISYS LTD,20/05/2022,"9,713.00",7300-Consultants Fees,CAPITAL,"NEW CONSTRUCTION,CONVERSION & RENOVATION",CAPITAL
Walsall Council,http://opendatacommunities.org/id/metropolitan-district-council/walsall ,WC138-458,31.05.2022,RESOURCES AND TRANSFORMATION CAPITAL,AGILISYS LTD,20/05/2022,"11,681.00",7300-Consultants Fees,CAPITAL,"NEW CONSTRUCTION,CONVERSION & RENOVATION",CAPITAL
Walsall Council,http://opendatacommunities.org/id/metropolitan-district-council/walsall ,WC138-459,31.05.2022,RESOURCES AND TRANSFORMATION CAPITAL,AGILISYS LTD,20/05/2022,"-3,881.39",7300-Consultants Fees,CAPITAL,"NEW CONSTRUCTION,CONVERSION & RENOVATION",CAPITAL
Walsall Council,http://opendatacommunities.org/id/metropolitan-district-council/walsall ,WC138-460,31.05.2022,RESOURCES AND TRANSFORMATION CAPITAL,AGILISYS LTD,20/05/2022,"3,881.39",7300-Consultants Fees,CAPITAL,"NEW CONSTRUCTION,CONVERSION & RENOVATION",CAPITAL
Walsall Council,http://opendatacommunities.org/id/metropolitan-district-council/walsall ,WC138-461,31.05.2022,RESOURCES AND TRANSFORMATION CAPITAL,AGILISYS LTD,20/05/2022,"120,000.00",7300-Consultants Fees,CAPITAL,"NEW CONSTRUCTION,CONVERSION & RENOVATION",CAPITAL
Walsall Council,http://opendatacommunities.org/id/metropolitan-district-council/walsall ,WC138-462,31.05.2022,RESOURCES AND TRANSFORMATION CAPITAL,AGILISYS LTD,24/05/2022,"24,297.00",7300-Consultants Fees,CAPITAL,"NEW CONSTRUCTION,CONVERSION & RENOVATION",CAPITAL
Walsall Council,http://opendatacommunities.org/id/metropolitan-district-council/walsall ,WC138-463,31.05.2022,RESOURCES AND TRANSFORMATION CAPITAL,AGILISYS LTD,20/05/2022,"-3,881.39",7300-Consultants Fees,CAPITAL,"NEW CONSTRUCTION,CONVERSION & RENOVATION",CAPITAL
Walsall Council,http://opendatacommunities.org/id/metropolitan-district-council/walsall ,WC138-464,31.05.2022,RESOURCES AND TRANSFORMATION CAPITAL,AGILISYS LTD,20/05/2022,"3,881.39",7300-Consultants Fees,CAPITAL,"NEW CONSTRUCTION,CONVERSION & RENOVATION",CAPITAL
Walsall Council,http://opendatacommunities.org/id/metropolitan-district-council/walsall ,WC138-465,31.05.2022,RESOURCES AND TRANSFORMATION CAPITAL,AGILISYS LTD,24/05/2022,"-3,881.39",7300-Consultants Fees,CAPITAL,"NEW CONSTRUCTION,CONVERSION & RENOVATION",CAPITAL
Walsall Council,http://opendatacommunities.org/id/metropolitan-district-council/walsall ,WC138-466,31.05.2022,RESOURCES AND TRANSFORMATION CAPITAL,AGILISYS LTD,24/05/2022,"3,881.39",7300-Consultants Fees,CAPITAL,"NEW CONSTRUCTION,CONVERSION & RENOVATION",CAPITAL
Walsall Council,http://opendatacommunities.org/id/metropolitan-district-council/walsall ,WC138-467,31.05.2022,RESOURCES AND TRANSFORMATION CAPITAL,AGILISYS LTD,24/05/2022,"9,345.00",7300-Consultants Fees,CAPITAL,"NEW CONSTRUCTION,CONVERSION & RENOVATION",CAPITAL
Walsall Council,http://opendatacommunities.org/id/metropolitan-district-council/walsall ,WC138-468,31.05.2022,ADULT SOCIAL CARE,REDACTED,05/05/2022,"2,517.12",6541-Direct Payment,THIRD PARTY PAYMENTS,PRIVATE CONTRACTOR,REVENUE
Walsall Council,http://opendatacommunities.org/id/metropolitan-district-council/walsall ,WC138-469,31.05.2022,"ECONOMY, ENVIRONMENT & COMMUNITIES",ALBERT JAGGER LTD,06/05/2022,289.92,6410-Materials to Stores,SUPPLIES & SERVICES,EQUIPMENT FURNITURE & MATERIALS,REVENUE
Walsall Council,http://opendatacommunities.org/id/metropolitan-district-council/walsall ,WC138-470,31.05.2022,CHILDRENS,ALDRIDGE & BARONS LIMITED,24/05/2022,"1,108.80",6241-Hire of Vehicle with Driver,TRANSPORT,DIRECT TRANSPORT COSTS,REVENUE
Walsall Council,http://opendatacommunities.org/id/metropolitan-district-council/walsall ,WC138-471,31.05.2022,CHILDRENS,ALDRIDGE & BARONS LIMITED,24/05/2022,966.42,6241-Hire of Vehicle with Driver,TRANSPORT,DIRECT TRANSPORT COSTS,REVENUE
Walsall Council,http://opendatacommunities.org/id/metropolitan-district-council/walsall ,WC138-472,31.05.2022,CHILDRENS,ALDRIDGE & BARONS LIMITED,24/05/2022,"1,440.00",6241-Hire of Vehicle with Driver,TRANSPORT,DIRECT TRANSPORT COSTS,REVENUE
Walsall Council,http://opendatacommunities.org/id/metropolitan-district-council/walsall ,WC138-473,31.05.2022,CHILDRENS,ALDRIDGE & BARONS LIMITED,24/05/2022,778.40,6241-Hire of Vehicle with Driver,TRANSPORT,DIRECT TRANSPORT COSTS,REVENUE
Walsall Council,http://opendatacommunities.org/id/metropolitan-district-council/walsall ,WC138-474,31.05.2022,CHILDRENS,ALDRIDGE & BARONS LIMITED,24/05/2022,990.00,6241-Hire of Vehicle with Driver,TRANSPORT,DIRECT TRANSPORT COSTS,REVENUE
Walsall Council,http://opendatacommunities.org/id/metropolitan-district-council/walsall ,WC138-475,31.05.2022,CHILDRENS,ALDRIDGE & BARONS LIMITED,24/05/2022,810.00,6241-Hire of Vehicle with Driver,TRANSPORT,DIRECT TRANSPORT COSTS,REVENUE
Walsall Council,http://opendatacommunities.org/id/metropolitan-district-council/walsall ,WC138-476,31.05.2022,CHILDRENS,ALDRIDGE & BARONS LIMITED,24/05/2022,772.65,6241-Hire of Vehicle with Driver,TRANSPORT,DIRECT TRANSPORT COSTS,REVENUE
Walsall Council,http://opendatacommunities.org/id/metropolitan-district-council/walsall ,WC138-477,31.05.2022,CHILDRENS,ALDRIDGE & BARONS LIMITED,24/05/2022,"1,150.50",6241-Hire of Vehicle with Driver,TRANSPORT,DIRECT TRANSPORT COSTS,REVENUE
Walsall Council,http://opendatacommunities.org/id/metropolitan-district-council/walsall ,WC138-478,31.05.2022,CHILDRENS,ALDRIDGE & BARONS LIMITED,24/05/2022,977.20,6241-Hire of Vehicle with Driver,TRANSPORT,DIRECT TRANSPORT COSTS,REVENUE
Walsall Council,http://opendatacommunities.org/id/metropolitan-district-council/walsall ,WC138-479,31.05.2022,CHILDRENS,ALDRIDGE & BARONS LIMITED,24/05/2022,"1,042.20",6241-Hire of Vehicle with Driver,TRANSPORT,DIRECT TRANSPORT COSTS,REVENUE
Walsall Council,http://opendatacommunities.org/id/metropolitan-district-council/walsall ,WC138-480,31.05.2022,CHILDRENS,ALDRIDGE & BARONS LIMITED,24/05/2022,"1,350.00",6241-Hire of Vehicle with Driver,TRANSPORT,DIRECT TRANSPORT COSTS,REVENUE
Walsall Council,http://opendatacommunities.org/id/metropolitan-district-council/walsall ,WC138-481,31.05.2022,CHILDRENS,ALDRIDGE & BARONS LIMITED,24/05/2022,709.02,6241-Hire of Vehicle with Driver,TRANSPORT,DIRECT TRANSPORT COSTS,REVENUE
Walsall Council,http://opendatacommunities.org/id/metropolitan-district-council/walsall ,WC138-482,31.05.2022,CHILDRENS,ALDRIDGE & BARONS LIMITED,24/05/2022,764.52,6241-Hire of Vehicle with Driver,TRANSPORT,DIRECT TRANSPORT COSTS,REVENUE
Walsall Council,http://opendatacommunities.org/id/metropolitan-district-council/walsall ,WC138-483,31.05.2022,CHILDRENS,ALDRIDGE & BARONS LIMITED,24/05/2022,810.00,6241-Hire of Vehicle with Driver,TRANSPORT,DIRECT TRANSPORT COSTS,REVENUE
Walsall Council,http://opendatacommunities.org/id/metropolitan-district-council/walsall ,WC138-484,31.05.2022,CHILDRENS,ALDRIDGE & BARONS LIMITED,24/05/2022,861.30,6241-Hire of Vehicle with Driver,TRANSPORT,DIRECT TRANSPORT COSTS,REVENUE
Walsall Council,http://opendatacommunities.org/id/metropolitan-district-council/walsall ,WC138-485,31.05.2022,CHILDRENS,ALDRIDGE & BARONS LIMITED,24/05/2022,936.00,6241-Hire of Vehicle with Driver,TRANSPORT,DIRECT TRANSPORT COSTS,REVENUE
Walsall Council,http://opendatacommunities.org/id/metropolitan-district-council/walsall ,WC138-486,31.05.2022,CHILDRENS,ALDRIDGE & BARONS LIMITED,24/05/2022,794.00,6241-Hire of Vehicle with Driver,TRANSPORT,DIRECT TRANSPORT COSTS,REVENUE
Walsall Council,http://opendatacommunities.org/id/metropolitan-district-council/walsall ,WC138-487,31.05.2022,CHILDRENS,ALDRIDGE & BARONS LIMITED,24/05/2022,620.00,6241-Hire of Vehicle with Driver,TRANSPORT,DIRECT TRANSPORT COSTS,REVENUE
Walsall Council,http://opendatacommunities.org/id/metropolitan-district-council/walsall ,WC138-488,31.05.2022,CHILDRENS,ALDRIDGE & BARONS LIMITED,24/05/2022,"1,086.30",6241-Hire of Vehicle with Driver,TRANSPORT,DIRECT TRANSPORT COSTS,REVENUE
Walsall Council,http://opendatacommunities.org/id/metropolitan-district-council/walsall ,WC138-489,31.05.2022,CHILDRENS,ALDRIDGE & BARONS LIMITED,24/05/2022,290.00,6241-Hire of Vehicle with Driver,TRANSPORT,DIRECT TRANSPORT COSTS,REVENUE
Walsall Council,http://opendatacommunities.org/id/metropolitan-district-council/walsall ,WC138-490,31.05.2022,CHILDRENS,ALDRIDGE & BARONS LIMITED,24/05/2022,"1,004.40",6241-Hire of Vehicle with Driver,TRANSPORT,DIRECT TRANSPORT COSTS,REVENUE
Walsall Council,http://opendatacommunities.org/id/metropolitan-district-council/walsall ,WC138-491,31.05.2022,CHILDRENS,ALDRIDGE & BARONS LIMITED,24/05/2022,772.56,6241-Hire of Vehicle with Driver,TRANSPORT,DIRECT TRANSPORT COSTS,REVENUE
Walsall Council,http://opendatacommunities.org/id/metropolitan-district-council/walsall ,WC138-492,31.05.2022,CHILDRENS,ALDRIDGE & BARONS LIMITED,24/05/2022,774.00,6241-Hire of Vehicle with Driver,TRANSPORT,DIRECT TRANSPORT COSTS,REVENUE
Walsall Council,http://opendatacommunities.org/id/metropolitan-district-council/walsall ,WC138-493,31.05.2022,CHILDRENS,ALDRIDGE & BARONS LIMITED,24/05/2022,"1,062.00",6241-Hire of Vehicle with Driver,TRANSPORT,DIRECT TRANSPORT COSTS,REVENUE
Walsall Council,http://opendatacommunities.org/id/metropolitan-district-council/walsall ,WC138-494,31.05.2022,CHILDRENS,ALDRIDGE & BARONS LIMITED,24/05/2022,432.00,6241-Hire of Vehicle with Driver,TRANSPORT,DIRECT TRANSPORT COSTS,REVENUE
Walsall Council,http://opendatacommunities.org/id/metropolitan-district-council/walsall ,WC138-495,31.05.2022,CHILDRENS,ALDRIDGE & BARONS LIMITED,24/05/2022,936.00,6241-Hire of Vehicle with Driver,TRANSPORT,DIRECT TRANSPORT COSTS,REVENUE
Walsall Council,http://opendatacommunities.org/id/metropolitan-district-council/walsall ,WC138-496,31.05.2022,CHILDRENS,ALDRIDGE & BARONS LIMITED,24/05/2022,"1,050.40",6241-Hire of Vehicle with Driver,TRANSPORT,DIRECT TRANSPORT COSTS,REVENUE
Walsall Council,http://opendatacommunities.org/id/metropolitan-district-council/walsall ,WC138-497,31.05.2022,CHILDRENS,ALDRIDGE & BARONS LIMITED,24/05/2022,958.50,6241-Hire of Vehicle with Driver,TRANSPORT,DIRECT TRANSPORT COSTS,REVENUE
Walsall Council,http://opendatacommunities.org/id/metropolitan-district-council/walsall ,WC138-498,31.05.2022,CHILDRENS,ALDRIDGE & BARONS LIMITED,24/05/2022,673.60,6241-Hire of Vehicle with Driver,TRANSPORT,DIRECT TRANSPORT COSTS,REVENUE
Walsall Council,http://opendatacommunities.org/id/metropolitan-district-council/walsall ,WC138-499,31.05.2022,CHILDRENS,ALDRIDGE & BARONS LIMITED,24/05/2022,"1,170.00",6241-Hire of Vehicle with Driver,TRANSPORT,DIRECT TRANSPORT COSTS,REVENUE
Walsall Council,http://opendatacommunities.org/id/metropolitan-district-council/walsall ,WC138-500,31.05.2022,CHILDRENS,ALDRIDGE & BARONS LIMITED,24/05/2022,810.00,6241-Hire of Vehicle with Driver,TRANSPORT,DIRECT TRANSPORT COSTS,REVENUE
Walsall Council,http://opendatacommunities.org/id/metropolitan-district-council/walsall ,WC138-501,31.05.2022,CHILDRENS,ALDRIDGE & BARONS LIMITED,24/05/2022,990.00,6241-Hire of Vehicle with Driver,TRANSPORT,DIRECT TRANSPORT COSTS,REVENUE
Walsall Council,http://opendatacommunities.org/id/metropolitan-district-council/walsall ,WC138-502,31.05.2022,CHILDRENS,ALDRIDGE & BARONS LIMITED,24/05/2022,738.00,6241-Hire of Vehicle with Driver,TRANSPORT,DIRECT TRANSPORT COSTS,REVENUE
Walsall Council,http://opendatacommunities.org/id/metropolitan-district-council/walsall ,WC138-503,31.05.2022,RESOURCES AND TRANSFORMATION,ALDRIDGE METHODIST CHURCH 001,06/05/2022,350.00,6610-Hire of Room,SUPPLIES & SERVICES,SERVICES,REVENUE
Walsall Council,http://opendatacommunities.org/id/metropolitan-district-council/walsall ,WC138-504,31.05.2022,ADULT SOCIAL CARE,REDACTED,05/05/2022,"1,516.80",6541-Direct Payment,THIRD PARTY PAYMENTS,PRIVATE CONTRACTOR,REVENUE
Walsall Council,http://opendatacommunities.org/id/metropolitan-district-council/walsall ,WC138-505,31.05.2022,ADULT SOCIAL CARE,ALEXANDRA HOUSE CARE SERVICES LTD T/A STONEBRIDGE NURSING HOME,10/05/2022,"7,434.72",6541-Residential,THIRD PARTY PAYMENTS,PRIVATE CONTRACTOR,REVENUE
Walsall Council,http://opendatacommunities.org/id/metropolitan-district-council/walsall ,WC138-506,31.05.2022,ADULT SOCIAL CARE,REDACTED,05/05/2022,971.52,6541-Direct Payment,THIRD PARTY PAYMENTS,PRIVATE CONTRACTOR,REVENUE
Walsall Council,http://opendatacommunities.org/id/metropolitan-district-council/walsall ,WC138-507,31.05.2022,CHILDRENS,REDACTED,04/05/2022,318.68,6223-Special Guardianship Orders,TRANSFER PAYMENTS,CHILDREN SOCIAL SERVICES CLIENT,REVENUE
Walsall Council,http://opendatacommunities.org/id/metropolitan-district-council/walsall ,WC138-508,31.05.2022,CHILDRENS,ALLIANCE CARE LTD,19/05/2022,936.92,6222-Professional Services-Priv Contractor & Other Agencies,THIRD PARTY PAYMENTS,PRIVATE CONTRACTOR,REVENUE
Walsall Council,http://opendatacommunities.org/id/metropolitan-district-council/walsall ,WC138-509,31.05.2022,CHILDRENS,ALLIANCE CARE LTD,31/05/2022,"1,548.30",6222-Professional Services-Priv Contractor & Other Agencies,THIRD PARTY PAYMENTS,PRIVATE CONTRACTOR,REVENUE
Walsall Council,http://opendatacommunities.org/id/metropolitan-district-council/walsall ,WC138-510,31.05.2022,ADULT SOCIAL CARE,ALMA COURT,10/05/2022,"4,789.67",6541-Nursing EMI,THIRD PARTY PAYMENTS,PRIVATE CONTRACTOR,REVENUE
Walsall Council,http://opendatacommunities.org/id/metropolitan-district-council/walsall ,WC138-511,31.05.2022,ADULT SOCIAL CARE,ALMA COURT,10/05/2022,"4,238.25",6541-Residential,THIRD PARTY PAYMENTS,PRIVATE CONTRACTOR,REVENUE
Walsall Council,http://opendatacommunities.org/id/metropolitan-district-council/walsall ,WC138-512,31.05.2022,ADULT SOCIAL CARE,ALMA COURT,10/05/2022,"6,679.40",6541-Residential,THIRD PARTY PAYMENTS,PRIVATE CONTRACTOR,REVENUE
Walsall Council,http://opendatacommunities.org/id/metropolitan-district-council/walsall ,WC138-513,31.05.2022,ADULT SOCIAL CARE,ALMA COURT,10/05/2022,"3,651.75",6541-Nursing EMI,THIRD PARTY PAYMENTS,PRIVATE CONTRACTOR,REVENUE
Walsall Council,http://opendatacommunities.org/id/metropolitan-district-council/walsall ,WC138-514,31.05.2022,ADULT SOCIAL CARE,ALMA COURT,10/05/2022,"2,861.67",6541-Nursing EMI,THIRD PARTY PAYMENTS,PRIVATE CONTRACTOR,REVENUE
Walsall Council,http://opendatacommunities.org/id/metropolitan-district-council/walsall ,WC138-515,31.05.2022,ADULT SOCIAL CARE,ALMA COURT,10/05/2022,"1,779.71",6541-Nursing EMI,THIRD PARTY PAYMENTS,PRIVATE CONTRACTOR,REVENUE
Walsall Council,http://opendatacommunities.org/id/metropolitan-district-council/walsall ,WC138-516,31.05.2022,CHILDRENS,ALMOZENE NURSERY & CHILDRENS CENTRE,30/05/2022,"2,922.56",1184-Other-Grants to Other Orgs,SUPPLIES & SERVICES,GRANTS (EXP) & SUBSCRIPTIONS,REVENUE
Walsall Council,http://opendatacommunities.org/id/metropolitan-district-council/walsall ,WC138-517,31.05.2022,CHILDRENS,ALMOZENE NURSERY & CHILDRENS CENTRE,30/05/2022,"4,750.20",1184-Other-Grants to Other Orgs,SUPPLIES & SERVICES,GRANTS (EXP) & SUBSCRIPTIONS,REVENUE
Walsall Council,http://opendatacommunities.org/id/metropolitan-district-council/walsall ,WC138-518,31.05.2022,CHILDRENS,ALMOZENE NURSERY & CHILDRENS CENTRE,05/05/2022,531.69,6213-Professional Fees & Services,SUPPLIES & SERVICES,SERVICES,REVENUE
Walsall Council,http://opendatacommunities.org/id/metropolitan-district-council/walsall ,WC138-519,31.05.2022,"ECONOMY, ENVIRONMENT & COMMUNITIES",ALMOZENE NURSERY & CHILDRENS CENTRE,16/05/2022,844.43,6313-Grants to Other Orgs,SUPPLIES & SERVICES,GRANTS (EXP) & SUBSCRIPTIONS,REVENUE
Walsall Council,http://opendatacommunities.org/id/metropolitan-district-council/walsall ,WC138-520,31.05.2022,"ECONOMY, ENVIRONMENT & COMMUNITIES",ALMOZENE NURSERY & CHILDRENS CENTRE,25/05/2022,975.44,6313-Grants to Other Orgs,SUPPLIES & SERVICES,GRANTS (EXP) & SUBSCRIPTIONS,REVENUE
Walsall Council,http://opendatacommunities.org/id/metropolitan-district-council/walsall ,WC138-521,31.05.2022,"ECONOMY, ENVIRONMENT & COMMUNITIES",ALMOZENE NURSERY & CHILDRENS CENTRE,03/05/2022,"1,069.98",6313-Grants to Other Orgs,SUPPLIES & SERVICES,GRANTS (EXP) & SUBSCRIPTIONS,REVENUE
Walsall Council,http://opendatacommunities.org/id/metropolitan-district-council/walsall ,WC138-522,31.05.2022,ADULT SOCIAL CARE,ALPHA HEALTH CARE LTD,10/05/2022,"2,875.78",6541-Residential EMI,THIRD PARTY PAYMENTS,PRIVATE CONTRACTOR,REVENUE
Walsall Council,http://opendatacommunities.org/id/metropolitan-district-council/walsall ,WC138-523,31.05.2022,ADULT SOCIAL CARE,ALPHA HEALTH CARE LTD,10/05/2022,"2,747.75",6541-Nursing EMI,THIRD PARTY PAYMENTS,PRIVATE CONTRACTOR,REVENUE
Walsall Council,http://opendatacommunities.org/id/metropolitan-district-council/walsall ,WC138-524,31.05.2022,ADULT SOCIAL CARE,ALPHA HEALTH CARE LTD,10/05/2022,"3,116.07",6541-Nursing EMI,THIRD PARTY PAYMENTS,PRIVATE CONTRACTOR,REVENUE
Walsall Council,http://opendatacommunities.org/id/metropolitan-district-council/walsall ,WC138-525,31.05.2022,ADULT SOCIAL CARE,ALPHA HEALTH CARE LTD,10/05/2022,"7,063.75",6541-Residential,THIRD PARTY PAYMENTS,PRIVATE CONTRACTOR,REVENUE
Walsall Council,http://opendatacommunities.org/id/metropolitan-district-council/walsall ,WC138-526,31.05.2022,ADULT SOCIAL CARE,ALPHA HEALTH CARE LTD,10/05/2022,"2,352.30",6541-Residential EMI,THIRD PARTY PAYMENTS,PRIVATE CONTRACTOR,REVENUE
Walsall Council,http://opendatacommunities.org/id/metropolitan-district-council/walsall ,WC138-527,31.05.2022,ADULT SOCIAL CARE,ALPHA HEALTH CARE LTD,10/05/2022,"3,116.07",6541-Nursing EMI,THIRD PARTY PAYMENTS,PRIVATE CONTRACTOR,REVENUE
Walsall Council,http://opendatacommunities.org/id/metropolitan-district-council/walsall ,WC138-528,31.05.2022,ADULT SOCIAL CARE,ALPHA HEALTH CARE LTD,10/05/2022,"6,306.53",6541-Residential,THIRD PARTY PAYMENTS,PRIVATE CONTRACTOR,REVENUE
Walsall Council,http://opendatacommunities.org/id/metropolitan-district-council/walsall ,WC138-529,31.05.2022,ADULT SOCIAL CARE,ALPHA HEALTH CARE LTD,10/05/2022,"3,935.53",6541-Residential,THIRD PARTY PAYMENTS,PRIVATE CONTRACTOR,REVENUE
Walsall Council,http://opendatacommunities.org/id/metropolitan-district-council/walsall ,WC138-530,31.05.2022,ADULT SOCIAL CARE,ALPHA HEALTH CARE LTD,10/05/2022,"3,822.03",6541-Nursing,THIRD PARTY PAYMENTS,PRIVATE CONTRACTOR,REVENUE
Walsall Council,http://opendatacommunities.org/id/metropolitan-district-council/walsall ,WC138-531,31.05.2022,ADULT SOCIAL CARE,ALPHA HEALTH CARE LTD,10/05/2022,"4,457.14",6541-Professional Services-Priv Contractor & Other Agencies,THIRD PARTY PAYMENTS,PRIVATE CONTRACTOR,REVENUE
Walsall Council,http://opendatacommunities.org/id/metropolitan-district-council/walsall ,WC138-532,31.05.2022,ADULT SOCIAL CARE,ALPHA HEALTH CARE LTD,10/05/2022,"3,361.22",6541-Residential EMI,THIRD PARTY PAYMENTS,PRIVATE CONTRACTOR,REVENUE
Walsall Council,http://opendatacommunities.org/id/metropolitan-district-council/walsall ,WC138-533,31.05.2022,ADULT SOCIAL CARE,ALPHA HEALTH CARE LTD,10/05/2022,"3,361.22",6541-Residential EMI,THIRD PARTY PAYMENTS,PRIVATE CONTRACTOR,REVENUE
Walsall Council,http://opendatacommunities.org/id/metropolitan-district-council/walsall ,WC138-534,31.05.2022,ADULT SOCIAL CARE,ALPHA HEALTH CARE LTD,10/05/2022,"3,384.30",6541-Residential EMI,THIRD PARTY PAYMENTS,PRIVATE CONTRACTOR,REVENUE
Walsall Council,http://opendatacommunities.org/id/metropolitan-district-council/walsall ,WC138-535,31.05.2022,ADULT SOCIAL CARE,ALPHA HEALTH CARE LTD,10/05/2022,"3,074.39",6541-Nursing EMI,THIRD PARTY PAYMENTS,PRIVATE CONTRACTOR,REVENUE
Walsall Council,http://opendatacommunities.org/id/metropolitan-district-council/walsall ,WC138-536,31.05.2022,ADULT SOCIAL CARE,ALPHA HEALTH CARE LTD,10/05/2022,"5,707.51",6541-Residential,THIRD PARTY PAYMENTS,PRIVATE CONTRACTOR,REVENUE
Walsall Council,http://opendatacommunities.org/id/metropolitan-district-council/walsall ,WC138-537,31.05.2022,ADULT SOCIAL CARE,ALPHA HEALTH CARE LTD,10/05/2022,"2,747.75",6541-Nursing EMI,THIRD PARTY PAYMENTS,PRIVATE CONTRACTOR,REVENUE
Walsall Council,http://opendatacommunities.org/id/metropolitan-district-council/walsall ,WC138-538,31.05.2022,ADULT SOCIAL CARE,ALPHA HEALTH CARE LTD,10/05/2022,"7,051.75",6541-Nursing EMI,THIRD PARTY PAYMENTS,PRIVATE CONTRACTOR,REVENUE
Walsall Council,http://opendatacommunities.org/id/metropolitan-district-council/walsall ,WC138-539,31.05.2022,ADULT SOCIAL CARE,ALPHA HEALTH CARE LTD,10/05/2022,"2,747.75",6541-Nursing EMI,THIRD PARTY PAYMENTS,PRIVATE CONTRACTOR,REVENUE
Walsall Council,http://opendatacommunities.org/id/metropolitan-district-council/walsall ,WC138-540,31.05.2022,ADULT SOCIAL CARE,ALPHA HEALTH CARE LTD,10/05/2022,"2,983.75",6541-Nursing,THIRD PARTY PAYMENTS,PRIVATE CONTRACTOR,REVENUE
Walsall Council,http://opendatacommunities.org/id/metropolitan-district-council/walsall ,WC138-541,31.05.2022,ADULT SOCIAL CARE,ALPHA HEALTH CARE LTD,10/05/2022,"3,651.75",6541-Nursing EMI,THIRD PARTY PAYMENTS,PRIVATE CONTRACTOR,REVENUE
Walsall Council,http://opendatacommunities.org/id/metropolitan-district-council/walsall ,WC138-542,31.05.2022,ADULT SOCIAL CARE,ALPHA HEALTH CARE LTD,10/05/2022,"3,089.11",6541-Nursing EMI,THIRD PARTY PAYMENTS,PRIVATE CONTRACTOR,REVENUE
Walsall Council,http://opendatacommunities.org/id/metropolitan-district-council/walsall ,WC138-543,31.05.2022,ADULT SOCIAL CARE,ALPHA HEALTH CARE LTD,10/05/2022,"3,071.63",6541-Nursing,THIRD PARTY PAYMENTS,PRIVATE CONTRACTOR,REVENUE
Walsall Council,http://opendatacommunities.org/id/metropolitan-district-council/walsall ,WC138-544,31.05.2022,ADULT SOCIAL CARE,ALPHA HEALTH CARE LTD,10/05/2022,"2,752.30",6541-Residential EMI,THIRD PARTY PAYMENTS,PRIVATE CONTRACTOR,REVENUE
Walsall Council,http://opendatacommunities.org/id/metropolitan-district-council/walsall ,WC138-545,31.05.2022,ADULT SOCIAL CARE,ALPHA HEALTH CARE LTD,10/05/2022,"3,087.75",6541-Nursing EMI,THIRD PARTY PAYMENTS,PRIVATE CONTRACTOR,REVENUE
Walsall Council,http://opendatacommunities.org/id/metropolitan-district-council/walsall ,WC138-546,31.05.2022,ADULT SOCIAL CARE,ALPHA HEALTH CARE LTD,10/05/2022,"7,205.04",6541-Residential,THIRD PARTY PAYMENTS,PRIVATE CONTRACTOR,REVENUE
Walsall Council,http://opendatacommunities.org/id/metropolitan-district-council/walsall ,WC138-547,31.05.2022,ADULT SOCIAL CARE,ALPHA HEALTH CARE LTD,10/05/2022,"2,618.80",6541-Residential,THIRD PARTY PAYMENTS,PRIVATE CONTRACTOR,REVENUE
Walsall Council,http://opendatacommunities.org/id/metropolitan-district-council/walsall ,WC138-548,31.05.2022,CHILDRENS,ALPHA TRAINING ACADEMY UK LTD,03/05/2022,480.00,1187-Materials,SUPPLIES & SERVICES,EQUIPMENT FURNITURE & MATERIALS,REVENUE
Walsall Council,http://opendatacommunities.org/id/metropolitan-district-council/walsall ,WC138-549,31.05.2022,CHILDRENS,ALPHA TRAINING ACADEMY UK LTD,06/05/2022,"3,333.00",1220-Top Up Funding -Grants to Schools,SUPPLIES & SERVICES,GRANTS (EXP) & SUBSCRIPTIONS,REVENUE
Walsall Council,http://opendatacommunities.org/id/metropolitan-district-council/walsall ,WC138-550,31.05.2022,CHILDRENS,ALPHABIOLABS,04/05/2022,"1,104.00",6220-School Only Payments - Catering,THIRD PARTY PAYMENTS,INDEPENDENT UNIT WITHIN COUNCIL,REVENUE
Walsall Council,http://opendatacommunities.org/id/metropolitan-district-council/walsall ,WC138-551,31.05.2022,CHILDRENS,ALPHABIOLABS,31/05/2022,420.00,6223-Medical Specialist Reports,DIRECT EMPLOYEES,EMPLOYEE ALLOWANCES & EXPENSES,REVENUE
Walsall Council,http://opendatacommunities.org/id/metropolitan-district-council/walsall ,WC138-552,31.05.2022,CHILDRENS,ALPHABIOLABS,30/05/2022,425.00,6223-Medical Specialist Reports,DIRECT EMPLOYEES,EMPLOYEE ALLOWANCES & EXPENSES,REVENUE
Walsall Council,http://opendatacommunities.org/id/metropolitan-district-council/walsall ,WC138-553,31.05.2022,CHILDRENS,AMAH NURSERIES LIMITED T/A BANANA MOON WALSALL,30/05/2022,"6,642.19",1184-Other-Grants to Other Orgs,SUPPLIES & SERVICES,GRANTS (EXP) & SUBSCRIPTIONS,REVENUE
Walsall Council,http://opendatacommunities.org/id/metropolitan-district-council/walsall ,WC138-554,31.05.2022,CHILDRENS,AMAH NURSERIES LIMITED T/A BANANA MOON WALSALL,30/05/2022,"3,619.20",1184-Other-Grants to Other Orgs,SUPPLIES & SERVICES,GRANTS (EXP) & SUBSCRIPTIONS,REVENUE
Walsall Council,http://opendatacommunities.org/id/metropolitan-district-council/walsall ,WC138-555,31.05.2022,CHILDRENS,AMANS TRAVEL LTD,24/05/2022,700.00,6241-Hire of Vehicle with Driver,TRANSPORT,DIRECT TRANSPORT COSTS,REVENUE
Walsall Council,http://opendatacommunities.org/id/metropolitan-district-council/walsall ,WC138-556,31.05.2022,CHILDRENS,AMANS TRAVEL LTD,24/05/2022,"1,710.00",6241-Hire of Vehicle with Driver,TRANSPORT,DIRECT TRANSPORT COSTS,REVENUE
Walsall Council,http://opendatacommunities.org/id/metropolitan-district-council/walsall ,WC138-557,31.05.2022,CHILDRENS,AMANS TRAVEL LTD,24/05/2022,"1,710.00",6241-Hire of Vehicle with Driver,TRANSPORT,DIRECT TRANSPORT COSTS,REVENUE
Walsall Council,http://opendatacommunities.org/id/metropolitan-district-council/walsall ,WC138-558,31.05.2022,CHILDRENS,AMANS TRAVEL LTD,24/05/2022,"1,710.00",6241-Hire of Vehicle with Driver,TRANSPORT,DIRECT TRANSPORT COSTS,REVENUE
Walsall Council,http://opendatacommunities.org/id/metropolitan-district-council/walsall ,WC138-559,31.05.2022,ADULT SOCIAL CARE,REDACTED,05/05/2022,"1,650.88",6541-Direct Payment,THIRD PARTY PAYMENTS,PRIVATE CONTRACTOR,REVENUE
Walsall Council,http://opendatacommunities.org/id/metropolitan-district-council/walsall ,WC138-560,31.05.2022,CHILDRENS,AMG NURSING CARE SERVICES,26/05/2022,325.28,6220-Professional Fees & Services,SUPPLIES & SERVICES,SERVICES,REVENUE
Walsall Council,http://opendatacommunities.org/id/metropolitan-district-council/walsall ,WC138-561,31.05.2022,CHILDRENS,AMG NURSING CARE SERVICES,26/05/2022,697.76,6220-Professional Fees & Services,SUPPLIES & SERVICES,SERVICES,REVENUE
Walsall Council,http://opendatacommunities.org/id/metropolitan-district-council/walsall ,WC138-562,31.05.2022,ADULT SOCIAL CARE,AMG NURSING CARE SERVICES,05/05/2022,"15,434.74",6541-Community Supported Living/Supported Accommodation,THIRD PARTY PAYMENTS,PRIVATE CONTRACTOR,REVENUE
Walsall Council,http://opendatacommunities.org/id/metropolitan-district-council/walsall ,WC138-563,31.05.2022,ADULT SOCIAL CARE,AMG NURSING CARE SERVICES,05/05/2022,"3,748.74",6541-Community Supported Living/Supported Accommodation,THIRD PARTY PAYMENTS,PRIVATE CONTRACTOR,REVENUE
Walsall Council,http://opendatacommunities.org/id/metropolitan-district-council/walsall ,WC138-564,31.05.2022,ADULT SOCIAL CARE,AMG NURSING CARE SERVICES,05/05/2022,"15,564.59",6541-Community Supported Living/Supported Accommodation,THIRD PARTY PAYMENTS,PRIVATE CONTRACTOR,REVENUE
Walsall Council,http://opendatacommunities.org/id/metropolitan-district-council/walsall ,WC138-565,31.05.2022,ADULT SOCIAL CARE,AMG NURSING CARE SERVICES,05/05/2022,"3,167.54",6541-Community Supported Living/Supported Accommodation,THIRD PARTY PAYMENTS,PRIVATE CONTRACTOR,REVENUE
Walsall Council,http://opendatacommunities.org/id/metropolitan-district-council/walsall ,WC138-566,31.05.2022,CHILDRENS,AMG NURSING CARE SERVICES,17/05/2022,623.76,6220-Professional Fees & Services,SUPPLIES & SERVICES,SERVICES,REVENUE
Walsall Council,http://opendatacommunities.org/id/metropolitan-district-council/walsall ,WC138-567,31.05.2022,CHILDRENS,REDACTED,04/05/2022,340.00,6223-Internal Foster Carers-Carer Fees,TRANSFER PAYMENTS,CHILDREN SOCIAL SERVICES CLIENT,REVENUE
Walsall Council,http://opendatacommunities.org/id/metropolitan-district-council/walsall ,WC138-568,31.05.2022,CHILDRENS,REDACTED,04/05/2022,584.00,6223-Foster Carers Maintenance Allowance,TRANSFER PAYMENTS,CHILDREN SOCIAL SERVICES CLIENT,REVENUE
Walsall Council,http://opendatacommunities.org/id/metropolitan-district-council/walsall ,WC138-569,31.05.2022,ADULT SOCIAL CARE,ANCHOR CARE HOMES LTD,10/05/2022,"2,352.30",6541-Residential EMI,THIRD PARTY PAYMENTS,PRIVATE CONTRACTOR,REVENUE
Walsall Council,http://opendatacommunities.org/id/metropolitan-district-council/walsall ,WC138-570,31.05.2022,ADULT SOCIAL CARE,ANCHOR CAREHOMES LTD - HARDEN HALL,10/05/2022,"2,352.30",6541-Residential EMI,THIRD PARTY PAYMENTS,PRIVATE CONTRACTOR,REVENUE
Walsall Council,http://opendatacommunities.org/id/metropolitan-district-council/walsall ,WC138-571,31.05.2022,ADULT SOCIAL CARE,ANCHOR CAREHOMES LTD - HARDEN HALL,10/05/2022,"2,352.30",6541-Residential EMI,THIRD PARTY PAYMENTS,PRIVATE CONTRACTOR,REVENUE
Walsall Council,http://opendatacommunities.org/id/metropolitan-district-council/walsall ,WC138-572,31.05.2022,ADULT SOCIAL CARE,ANCHOR CAREHOMES LTD - HARDEN HALL,10/05/2022,"2,352.30",6541-Residential EMI,THIRD PARTY PAYMENTS,PRIVATE CONTRACTOR,REVENUE
Walsall Council,http://opendatacommunities.org/id/metropolitan-district-council/walsall ,WC138-573,31.05.2022,ADULT SOCIAL CARE,ANCHOR CAREHOMES LTD - HARDEN HALL,10/05/2022,"2,352.30",6541-Residential EMI,THIRD PARTY PAYMENTS,PRIVATE CONTRACTOR,REVENUE
Walsall Council,http://opendatacommunities.org/id/metropolitan-district-council/walsall ,WC138-574,31.05.2022,ADULT SOCIAL CARE,ANCHOR CAREHOMES LTD - HARDEN HALL,10/05/2022,"2,403.26",6541-Residential EMI,THIRD PARTY PAYMENTS,PRIVATE CONTRACTOR,REVENUE
Walsall Council,http://opendatacommunities.org/id/metropolitan-district-council/walsall ,WC138-575,31.05.2022,ADULT SOCIAL CARE,ANCHOR CAREHOMES LTD - HARDEN HALL,10/05/2022,"2,083.24",6541-Residential,THIRD PARTY PAYMENTS,PRIVATE CONTRACTOR,REVENUE
Walsall Council,http://opendatacommunities.org/id/metropolitan-district-council/walsall ,WC138-576,31.05.2022,ADULT SOCIAL CARE,ANCHOR CAREHOMES LTD - HARDEN HALL,10/05/2022,"2,352.30",6541-Residential EMI,THIRD PARTY PAYMENTS,PRIVATE CONTRACTOR,REVENUE
Walsall Council,http://opendatacommunities.org/id/metropolitan-district-council/walsall ,WC138-577,31.05.2022,ADULT SOCIAL CARE,ANCHOR CAREHOMES LTD - HARDEN HALL,10/05/2022,"2,352.30",6541-Residential EMI,THIRD PARTY PAYMENTS,PRIVATE CONTRACTOR,REVENUE
Walsall Council,http://opendatacommunities.org/id/metropolitan-district-council/walsall ,WC138-578,31.05.2022,ADULT SOCIAL CARE,ANCHOR CAREHOMES LTD - HARDEN HALL,10/05/2022,"2,315.78",6541-Residential EMI,THIRD PARTY PAYMENTS,PRIVATE CONTRACTOR,REVENUE
Walsall Council,http://opendatacommunities.org/id/metropolitan-district-council/walsall ,WC138-579,31.05.2022,ADULT SOCIAL CARE,ANCHOR CAREHOMES LTD - HARDEN HALL,10/05/2022,"2,098.80",6541-Residential EMI,THIRD PARTY PAYMENTS,PRIVATE CONTRACTOR,REVENUE
Walsall Council,http://opendatacommunities.org/id/metropolitan-district-council/walsall ,WC138-580,31.05.2022,ADULT SOCIAL CARE,ANCHOR CAREHOMES LTD - HARDEN HALL,10/05/2022,"2,712.30",6541-Residential EMI,THIRD PARTY PAYMENTS,PRIVATE CONTRACTOR,REVENUE
Walsall Council,http://opendatacommunities.org/id/metropolitan-district-council/walsall ,WC138-581,31.05.2022,ADULT SOCIAL CARE,ANCHOR CAREHOMES LTD - HARDEN HALL,10/05/2022,"1,446.64",6541-Residential EMI,THIRD PARTY PAYMENTS,PRIVATE CONTRACTOR,REVENUE
Walsall Council,http://opendatacommunities.org/id/metropolitan-district-council/walsall ,WC138-582,31.05.2022,ADULT SOCIAL CARE,ANCHOR CAREHOMES LTD - HARDEN HALL,10/05/2022,"2,352.30",6541-Residential EMI,THIRD PARTY PAYMENTS,PRIVATE CONTRACTOR,REVENUE
Walsall Council,http://opendatacommunities.org/id/metropolitan-district-council/walsall ,WC138-583,31.05.2022,ADULT SOCIAL CARE,ANCHOR CAREHOMES LTD - HARDEN HALL,10/05/2022,"2,352.30",6541-Residential EMI,THIRD PARTY PAYMENTS,PRIVATE CONTRACTOR,REVENUE
Walsall Council,http://opendatacommunities.org/id/metropolitan-district-council/walsall ,WC138-584,31.05.2022,ADULT SOCIAL CARE,ANCHOR CAREHOMES LTD - HARDEN HALL,10/05/2022,"2,352.30",6541-Residential EMI,THIRD PARTY PAYMENTS,PRIVATE CONTRACTOR,REVENUE
Walsall Council,http://opendatacommunities.org/id/metropolitan-district-council/walsall ,WC138-585,31.05.2022,ADULT SOCIAL CARE,ANCHOR CAREHOMES LTD - HARDEN HALL,10/05/2022,"2,352.30",6541-Residential EMI,THIRD PARTY PAYMENTS,PRIVATE CONTRACTOR,REVENUE
Walsall Council,http://opendatacommunities.org/id/metropolitan-district-council/walsall ,WC138-586,31.05.2022,ADULT SOCIAL CARE,ANCHOR CAREHOMES LTD - HARDEN HALL,10/05/2022,"2,083.24",6541-Residential,THIRD PARTY PAYMENTS,PRIVATE CONTRACTOR,REVENUE
Walsall Council,http://opendatacommunities.org/id/metropolitan-district-council/walsall ,WC138-587,31.05.2022,ADULT SOCIAL CARE,ANCHOR CAREHOMES LTD - HARDEN HALL,10/05/2022,"2,712.30",6541-Residential EMI,THIRD PARTY PAYMENTS,PRIVATE CONTRACTOR,REVENUE
Walsall Council,http://opendatacommunities.org/id/metropolitan-district-council/walsall ,WC138-588,31.05.2022,ADULT SOCIAL CARE,ANCHOR CAREHOMES LTD - HARDEN HALL,10/05/2022,"2,552.30",6541-Residential EMI,THIRD PARTY PAYMENTS,PRIVATE CONTRACTOR,REVENUE
Walsall Council,http://opendatacommunities.org/id/metropolitan-district-council/walsall ,WC138-589,31.05.2022,ADULT SOCIAL CARE,ANCHOR CAREHOMES LTD - HARDEN HALL,10/05/2022,389.44,6541-Residential EMI,THIRD PARTY PAYMENTS,PRIVATE CONTRACTOR,REVENUE
Walsall Council,http://opendatacommunities.org/id/metropolitan-district-council/walsall ,WC138-590,31.05.2022,ADULT SOCIAL CARE,ANCHOR CAREHOMES LTD - HARDEN HALL,10/05/2022,"2,712.30",6541-Residential EMI,THIRD PARTY PAYMENTS,PRIVATE CONTRACTOR,REVENUE
Walsall Council,http://opendatacommunities.org/id/metropolitan-district-council/walsall ,WC138-591,31.05.2022,ADULT SOCIAL CARE,ANCHOR CAREHOMES LTD - HARDEN HALL,10/05/2022,"2,712.30",6541-Residential EMI,THIRD PARTY PAYMENTS,PRIVATE CONTRACTOR,REVENUE
Walsall Council,http://opendatacommunities.org/id/metropolitan-district-council/walsall ,WC138-592,31.05.2022,ADULT SOCIAL CARE,ANCHOR CAREHOMES LTD - HARDEN HALL,10/05/2022,"2,352.30",6541-Residential EMI,THIRD PARTY PAYMENTS,PRIVATE CONTRACTOR,REVENUE
Walsall Council,http://opendatacommunities.org/id/metropolitan-district-council/walsall ,WC138-593,31.05.2022,ADULT SOCIAL CARE,ANCHOR CAREHOMES LTD - HARDEN HALL,10/05/2022,"1,979.53",6541-Residential EMI,THIRD PARTY PAYMENTS,PRIVATE CONTRACTOR,REVENUE
Walsall Council,http://opendatacommunities.org/id/metropolitan-district-council/walsall ,WC138-594,31.05.2022,CHILDRENS,REDACTED,04/05/2022,314.48,6223-Special Guardianship Orders,TRANSFER PAYMENTS,CHILDREN SOCIAL SERVICES CLIENT,REVENUE
Walsall Council,http://opendatacommunities.org/id/metropolitan-district-council/walsall ,WC138-595,31.05.2022,ADULT SOCIAL CARE,REDACTED,05/05/2022,"2,749.20",6541-Direct Payment,THIRD PARTY PAYMENTS,PRIVATE CONTRACTOR,REVENUE
Walsall Council,http://opendatacommunities.org/id/metropolitan-district-council/walsall ,WC138-596,31.05.2022,CHILDRENS CAPITAL,ANDREWS ELECTRICAL LTD,23/05/2022,"29,250.00",7150-Site Works Contractors,CAPITAL,"NEW CONSTRUCTION,CONVERSION & RENOVATION",CAPITAL
Walsall Council,http://opendatacommunities.org/id/metropolitan-district-council/walsall ,WC138-597,31.05.2022,CHILDRENS CAPITAL,ANDREWS ELECTRICAL LTD,20/05/2022,"1,515.00",7150-Site Works Contractors,CAPITAL,"NEW CONSTRUCTION,CONVERSION & RENOVATION",CAPITAL
Walsall Council,http://opendatacommunities.org/id/metropolitan-district-council/walsall ,WC138-598,31.05.2022,CHILDRENS CAPITAL,ANDREWS ELECTRICAL LTD,20/05/2022,"21,270.00",7150-Site Works Contractors,CAPITAL,"NEW CONSTRUCTION,CONVERSION & RENOVATION",CAPITAL
Walsall Council,http://opendatacommunities.org/id/metropolitan-district-council/walsall ,WC138-599,31.05.2022,RESOURCES AND TRANSFORMATION,ANDREWS ELECTRICAL LTD,20/05/2022,"1,250.00",6310-Planned Maintenance,PREMISES,REPAIRS & MAINTENANCE,REVENUE
Walsall Council,http://opendatacommunities.org/id/metropolitan-district-council/walsall ,WC138-600,31.05.2022,RESOURCES AND TRANSFORMATION,ANDREWS ELECTRICAL LTD,20/05/2022,"2,420.00",6310-Planned Maintenance,PREMISES,REPAIRS & MAINTENANCE,REVENUE
Walsall Council,http://opendatacommunities.org/id/metropolitan-district-council/walsall ,WC138-601,31.05.2022,RESOURCES AND TRANSFORMATION,ANDREWS ELECTRICAL LTD,17/05/2022,648.00,6310-Planned Maintenance,PREMISES,REPAIRS & MAINTENANCE,REVENUE
Walsall Council,http://opendatacommunities.org/id/metropolitan-district-council/walsall ,WC138-602,31.05.2022,CHILDRENS CAPITAL,ANDREWS ELECTRICAL LTD,31/05/2022,"1,630.00",7150-Site Works Contractors,CAPITAL,"NEW CONSTRUCTION,CONVERSION & RENOVATION",CAPITAL
Walsall Council,http://opendatacommunities.org/id/metropolitan-district-council/walsall ,WC138-603,31.05.2022,CHILDRENS,REDACTED,04/05/2022,363.24,6223-Special Guardianship Orders,TRANSFER PAYMENTS,CHILDREN SOCIAL SERVICES CLIENT,REVENUE
Walsall Council,http://opendatacommunities.org/id/metropolitan-district-council/walsall ,WC138-604,31.05.2022,CHILDRENS,REDACTED,04/05/2022,496.04,6223-Special Guardianship Orders,TRANSFER PAYMENTS,CHILDREN SOCIAL SERVICES CLIENT,REVENUE
Walsall Council,http://opendatacommunities.org/id/metropolitan-district-council/walsall ,WC138-605,31.05.2022,CHILDRENS,REDACTED,04/05/2022,318.36,6223-Special Guardianship Orders,TRANSFER PAYMENTS,CHILDREN SOCIAL SERVICES CLIENT,REVENUE
Walsall Council,http://opendatacommunities.org/id/metropolitan-district-council/walsall ,WC138-606,31.05.2022,CHILDRENS,ANGELS AND BUTTERFLIES CHILDMINDING,30/05/2022,531.38,1184-Other-Grants to Other Orgs,SUPPLIES & SERVICES,GRANTS (EXP) & SUBSCRIPTIONS,REVENUE
Walsall Council,http://opendatacommunities.org/id/metropolitan-district-council/walsall ,WC138-607,31.05.2022,CHILDRENS,ANGELS AND BUTTERFLIES CHILDMINDING,30/05/2022,"1,131.00",1184-Other-Grants to Other Orgs,SUPPLIES & SERVICES,GRANTS (EXP) & SUBSCRIPTIONS,REVENUE
Walsall Council,http://opendatacommunities.org/id/metropolitan-district-council/walsall ,WC138-608,31.05.2022,ADULT SOCIAL CARE,REDACTED,05/05/2022,400.80,6541-Shared Lives,THIRD PARTY PAYMENTS,PRIVATE CONTRACTOR,REVENUE
Walsall Council,http://opendatacommunities.org/id/metropolitan-district-council/walsall ,WC138-609,31.05.2022,ADULT SOCIAL CARE,REDACTED,19/05/2022,400.80,6541-Shared Lives,THIRD PARTY PAYMENTS,PRIVATE CONTRACTOR,REVENUE
Walsall Council,http://opendatacommunities.org/id/metropolitan-district-council/walsall ,WC138-610,31.05.2022,CHILDRENS,REDACTED,04/05/2022,526.76,6223-Foster Carers Maintenance Allowance,TRANSFER PAYMENTS,CHILDREN SOCIAL SERVICES CLIENT,REVENUE
Walsall Council,http://opendatacommunities.org/id/metropolitan-district-council/walsall ,WC138-611,31.05.2022,CHILDRENS,REDACTED,04/05/2022,340.00,6223-Internal Foster Carers-Carer Fees,TRANSFER PAYMENTS,CHILDREN SOCIAL SERVICES CLIENT,REVENUE
Walsall Council,http://opendatacommunities.org/id/metropolitan-district-council/walsall ,WC138-612,31.05.2022,CHILDRENS,REDACTED,04/05/2022,689.00,6223-Foster Carers Maintenance Allowance,TRANSFER PAYMENTS,CHILDREN SOCIAL SERVICES CLIENT,REVENUE
Walsall Council,http://opendatacommunities.org/id/metropolitan-district-council/walsall ,WC138-613,31.05.2022,CHILDRENS,REDACTED,04/05/2022,340.00,6223-Internal Foster Carers-Carer Fees,TRANSFER PAYMENTS,CHILDREN SOCIAL SERVICES CLIENT,REVENUE
Walsall Council,http://opendatacommunities.org/id/metropolitan-district-council/walsall ,WC138-614,31.05.2022,CHILDRENS,REDACTED,04/05/2022,448.84,6223-Special Guardianship Orders,TRANSFER PAYMENTS,CHILDREN SOCIAL SERVICES CLIENT,REVENUE
Walsall Council,http://opendatacommunities.org/id/metropolitan-district-council/walsall ,WC138-615,31.05.2022,ADULT SOCIAL CARE,ANSON COURT RESIDENTIAL HOME,10/05/2022,"2,352.30",6541-Residential EMI,THIRD PARTY PAYMENTS,PRIVATE CONTRACTOR,REVENUE
Walsall Council,http://opendatacommunities.org/id/metropolitan-district-council/walsall ,WC138-616,31.05.2022,ADULT SOCIAL CARE,ANSON COURT RESIDENTIAL HOME,10/05/2022,"2,352.30",6541-Residential EMI,THIRD PARTY PAYMENTS,PRIVATE CONTRACTOR,REVENUE
Walsall Council,http://opendatacommunities.org/id/metropolitan-district-council/walsall ,WC138-617,31.05.2022,ADULT SOCIAL CARE,ANSON COURT RESIDENTIAL HOME,10/05/2022,"2,352.30",6541-Residential EMI,THIRD PARTY PAYMENTS,PRIVATE CONTRACTOR,REVENUE
Walsall Council,http://opendatacommunities.org/id/metropolitan-district-council/walsall ,WC138-618,31.05.2022,ADULT SOCIAL CARE,ANSON COURT RESIDENTIAL HOME,10/05/2022,"2,352.30",6541-Residential EMI,THIRD PARTY PAYMENTS,PRIVATE CONTRACTOR,REVENUE
Walsall Council,http://opendatacommunities.org/id/metropolitan-district-council/walsall ,WC138-619,31.05.2022,ADULT SOCIAL CARE,ANSON COURT RESIDENTIAL HOME,10/05/2022,"2,203.24",6541-Residential,THIRD PARTY PAYMENTS,PRIVATE CONTRACTOR,REVENUE
Walsall Council,http://opendatacommunities.org/id/metropolitan-district-council/walsall ,WC138-620,31.05.2022,ADULT SOCIAL CARE,ANSON COURT RESIDENTIAL HOME,10/05/2022,"2,352.30",6541-Residential EMI,THIRD PARTY PAYMENTS,PRIVATE CONTRACTOR,REVENUE
Walsall Council,http://opendatacommunities.org/id/metropolitan-district-council/walsall ,WC138-621,31.05.2022,ADULT SOCIAL CARE,ANSON COURT RESIDENTIAL HOME,10/05/2022,"2,352.30",6541-Residential EMI,THIRD PARTY PAYMENTS,PRIVATE CONTRACTOR,REVENUE
Walsall Council,http://opendatacommunities.org/id/metropolitan-district-council/walsall ,WC138-622,31.05.2022,ADULT SOCIAL CARE,ANSON COURT RESIDENTIAL HOME,10/05/2022,"2,083.24",6541-Residential,THIRD PARTY PAYMENTS,PRIVATE CONTRACTOR,REVENUE
Walsall Council,http://opendatacommunities.org/id/metropolitan-district-council/walsall ,WC138-623,31.05.2022,ADULT SOCIAL CARE,ANSON COURT RESIDENTIAL HOME,10/05/2022,"2,352.30",6541-Residential EMI,THIRD PARTY PAYMENTS,PRIVATE CONTRACTOR,REVENUE
Walsall Council,http://opendatacommunities.org/id/metropolitan-district-council/walsall ,WC138-624,31.05.2022,ADULT SOCIAL CARE,ANSON COURT RESIDENTIAL HOME,10/05/2022,"2,352.30",6541-Residential EMI,THIRD PARTY PAYMENTS,PRIVATE CONTRACTOR,REVENUE
Walsall Council,http://opendatacommunities.org/id/metropolitan-district-council/walsall ,WC138-625,31.05.2022,ADULT SOCIAL CARE,ANSON COURT RESIDENTIAL HOME,10/05/2022,"1,098.52",6541-Residential EMI,THIRD PARTY PAYMENTS,PRIVATE CONTRACTOR,REVENUE
Walsall Council,http://opendatacommunities.org/id/metropolitan-district-council/walsall ,WC138-626,31.05.2022,ADULT SOCIAL CARE,ANSON COURT RESIDENTIAL HOME,10/05/2022,"2,352.30",6541-Residential EMI,THIRD PARTY PAYMENTS,PRIVATE CONTRACTOR,REVENUE
Walsall Council,http://opendatacommunities.org/id/metropolitan-district-council/walsall ,WC138-627,31.05.2022,ADULT SOCIAL CARE,ANSON COURT RESIDENTIAL HOME,10/05/2022,"2,083.24",6541-Short Stay Residential,THIRD PARTY PAYMENTS,PRIVATE CONTRACTOR,REVENUE
Walsall Council,http://opendatacommunities.org/id/metropolitan-district-council/walsall ,WC138-628,31.05.2022,ADULT SOCIAL CARE,ANSON COURT RESIDENTIAL HOME,10/05/2022,"2,352.30",6541-Residential EMI,THIRD PARTY PAYMENTS,PRIVATE CONTRACTOR,REVENUE
Walsall Council,http://opendatacommunities.org/id/metropolitan-district-council/walsall ,WC138-629,31.05.2022,ADULT SOCIAL CARE,ANSON COURT RESIDENTIAL HOME,10/05/2022,294.92,6541-Residential,THIRD PARTY PAYMENTS,PRIVATE CONTRACTOR,REVENUE
Walsall Council,http://opendatacommunities.org/id/metropolitan-district-council/walsall ,WC138-630,31.05.2022,ADULT SOCIAL CARE,ANSON COURT RESIDENTIAL HOME,10/05/2022,"2,352.30",6541-Residential EMI,THIRD PARTY PAYMENTS,PRIVATE CONTRACTOR,REVENUE
Walsall Council,http://opendatacommunities.org/id/metropolitan-district-council/walsall ,WC138-631,31.05.2022,ADULT SOCIAL CARE,ANSON COURT RESIDENTIAL HOME,10/05/2022,"2,352.30",6541-Residential EMI,THIRD PARTY PAYMENTS,PRIVATE CONTRACTOR,REVENUE
Walsall Council,http://opendatacommunities.org/id/metropolitan-district-council/walsall ,WC138-632,31.05.2022,ADULT SOCIAL CARE,ANSON COURT RESIDENTIAL HOME,10/05/2022,"2,083.24",6541-Residential,THIRD PARTY PAYMENTS,PRIVATE CONTRACTOR,REVENUE
Walsall Council,http://opendatacommunities.org/id/metropolitan-district-council/walsall ,WC138-633,31.05.2022,ADULT SOCIAL CARE,ANSON COURT RESIDENTIAL HOME,19/05/2022,"4,128.88",6541-Residential,THIRD PARTY PAYMENTS,PRIVATE CONTRACTOR,REVENUE
Walsall Council,http://opendatacommunities.org/id/metropolitan-district-council/walsall ,WC138-634,31.05.2022,CHILDRENS,REDACTED,04/05/2022,664.26,6223-Special Guardianship Orders,TRANSFER PAYMENTS,CHILDREN SOCIAL SERVICES CLIENT,REVENUE
Walsall Council,http://opendatacommunities.org/id/metropolitan-district-council/walsall ,WC138-635,31.05.2022,"ECONOMY, ENVIRONMENT & COMMUNITIES",APCOA PARKING SERVICES (UK) LTD,03/05/2022,"56,301.42",6411-Professional Services-Priv Contractor & Other Agencies,THIRD PARTY PAYMENTS,PRIVATE CONTRACTOR,REVENUE
Walsall Council,http://opendatacommunities.org/id/metropolitan-district-council/walsall ,WC138-636,31.05.2022,RESOURCES AND TRANSFORMATION,APCOA PARKING SERVICES (UK) LTD,05/05/2022,-760.07,6634-Oxygen Finance Rebates ,SUPPLIES & SERVICES,SERVICES,REVENUE
Walsall Council,http://opendatacommunities.org/id/metropolitan-district-council/walsall ,WC138-637,31.05.2022,CHILDRENS,APP CARZ,24/05/2022,565.50,6314-Hire of Vehicle with Driver,TRANSPORT,DIRECT TRANSPORT COSTS,REVENUE
Walsall Council,http://opendatacommunities.org/id/metropolitan-district-council/walsall ,WC138-638,31.05.2022,CHILDRENS,APP CARZ,31/05/2022,470.00,6314-Other Travel Allowances,TRANSPORT,CAR ALLOWANCES,REVENUE
Walsall Council,http://opendatacommunities.org/id/metropolitan-district-council/walsall ,WC138-639,31.05.2022,CHILDRENS,APP CARZ,24/05/2022,264.00,6241-Hire of Vehicle with Driver,TRANSPORT,DIRECT TRANSPORT COSTS,REVENUE
Walsall Council,http://opendatacommunities.org/id/metropolitan-district-council/walsall ,WC138-640,31.05.2022,CHILDRENS,APP CARZ,24/05/2022,421.00,6241-Hire of Vehicle with Driver,TRANSPORT,DIRECT TRANSPORT COSTS,REVENUE
Walsall Council,http://opendatacommunities.org/id/metropolitan-district-council/walsall ,WC138-641,31.05.2022,CHILDRENS,APP CARZ,24/05/2022,360.00,6241-Hire of Vehicle with Driver,TRANSPORT,DIRECT TRANSPORT COSTS,REVENUE
Walsall Council,http://opendatacommunities.org/id/metropolitan-district-council/walsall ,WC138-642,31.05.2022,CHILDRENS,APP CARZ,24/05/2022,810.00,6241-Hire of Vehicle with Driver,TRANSPORT,DIRECT TRANSPORT COSTS,REVENUE
Walsall Council,http://opendatacommunities.org/id/metropolitan-district-council/walsall ,WC138-643,31.05.2022,CHILDRENS,APP CARZ,24/05/2022,"1,224.00",6241-Hire of Vehicle with Driver,TRANSPORT,DIRECT TRANSPORT COSTS,REVENUE
Walsall Council,http://opendatacommunities.org/id/metropolitan-district-council/walsall ,WC138-644,31.05.2022,CHILDRENS,APP CARZ,24/05/2022,880.00,6241-Hire of Vehicle with Driver,TRANSPORT,DIRECT TRANSPORT COSTS,REVENUE
Walsall Council,http://opendatacommunities.org/id/metropolitan-district-council/walsall ,WC138-645,31.05.2022,CHILDRENS,APP CARZ,24/05/2022,384.00,6241-Hire of Vehicle with Driver,TRANSPORT,DIRECT TRANSPORT COSTS,REVENUE
Walsall Council,http://opendatacommunities.org/id/metropolitan-district-council/walsall ,WC138-646,31.05.2022,CHILDRENS,APP CARZ,24/05/2022,450.00,6241-Hire of Vehicle with Driver,TRANSPORT,DIRECT TRANSPORT COSTS,REVENUE
Walsall Council,http://opendatacommunities.org/id/metropolitan-district-council/walsall ,WC138-647,31.05.2022,CHILDRENS,APP CARZ,24/05/2022,540.00,6241-Hire of Vehicle with Driver,TRANSPORT,DIRECT TRANSPORT COSTS,REVENUE
Walsall Council,http://opendatacommunities.org/id/metropolitan-district-council/walsall ,WC138-648,31.05.2022,CHILDRENS,APP CARZ,24/05/2022,840.00,6241-Hire of Vehicle with Driver,TRANSPORT,DIRECT TRANSPORT COSTS,REVENUE
Walsall Council,http://opendatacommunities.org/id/metropolitan-district-council/walsall ,WC138-649,31.05.2022,CHILDRENS,APP CARZ,24/05/2022,765.00,6241-Hire of Vehicle with Driver,TRANSPORT,DIRECT TRANSPORT COSTS,REVENUE
Walsall Council,http://opendatacommunities.org/id/metropolitan-district-council/walsall ,WC138-650,31.05.2022,CHILDRENS,APP CARZ,24/05/2022,585.00,6241-Hire of Vehicle with Driver,TRANSPORT,DIRECT TRANSPORT COSTS,REVENUE
Walsall Council,http://opendatacommunities.org/id/metropolitan-district-council/walsall ,WC138-651,31.05.2022,CHILDRENS,APP CARZ,24/05/2022,540.00,6241-Hire of Vehicle with Driver,TRANSPORT,DIRECT TRANSPORT COSTS,REVENUE
Walsall Council,http://opendatacommunities.org/id/metropolitan-district-council/walsall ,WC138-652,31.05.2022,"ECONOMY, ENVIRONMENT & COMMUNITIES",APSE 001,17/05/2022,358.00,6410-External Training,INDIRECT EMPLOYEES,EXTERNAL TRAINING,REVENUE
Walsall Council,http://opendatacommunities.org/id/metropolitan-district-council/walsall ,WC138-653,31.05.2022,"ECONOMY, ENVIRONMENT & COMMUNITIES",AQUACULTURE EQUIPMENT LTD,13/05/2022,"3,677.00",6410-Materials,SUPPLIES & SERVICES,EQUIPMENT FURNITURE & MATERIALS,REVENUE
Walsall Council,http://opendatacommunities.org/id/metropolitan-district-council/walsall ,WC138-654,31.05.2022,"ECONOMY, ENVIRONMENT & COMMUNITIES",AQUAMO LTD,19/05/2022,345.00,6413-Materials,SUPPLIES & SERVICES,EQUIPMENT FURNITURE & MATERIALS,REVENUE
Walsall Council,http://opendatacommunities.org/id/metropolitan-district-council/walsall ,WC138-655,31.05.2022,ADULT SOCIAL CARE,ARBORETUM NURSING HOME.,10/05/2022,"11,920.00",6554-Agency Staff,DIRECT EMPLOYEES,AGENCY,REVENUE
Walsall Council,http://opendatacommunities.org/id/metropolitan-district-council/walsall ,WC138-656,31.05.2022,ADULT SOCIAL CARE,ARBORETUM NURSING HOME.,20/05/2022,"11,920.00",6554-Agency Staff,DIRECT EMPLOYEES,AGENCY,REVENUE
Walsall Council,http://opendatacommunities.org/id/metropolitan-district-council/walsall ,WC138-657,31.05.2022,ADULT SOCIAL CARE,ARBORETUM NURSING HOME.,10/05/2022,"2,441.99",6541-Nursing,THIRD PARTY PAYMENTS,PRIVATE CONTRACTOR,REVENUE
Walsall Council,http://opendatacommunities.org/id/metropolitan-district-council/walsall ,WC138-658,31.05.2022,ADULT SOCIAL CARE,ARBORETUM NURSING HOME.,10/05/2022,"-4,271.36",6541-Nursing,THIRD PARTY PAYMENTS,PRIVATE CONTRACTOR,REVENUE
Walsall Council,http://opendatacommunities.org/id/metropolitan-district-council/walsall ,WC138-659,31.05.2022,ADULT SOCIAL CARE,ARBORETUM NURSING HOME.,10/05/2022,"2,441.99",6541-Nursing,THIRD PARTY PAYMENTS,PRIVATE CONTRACTOR,REVENUE
Walsall Council,http://opendatacommunities.org/id/metropolitan-district-council/walsall ,WC138-660,31.05.2022,ADULT SOCIAL CARE,ARBORETUM NURSING HOME.,10/05/2022,"2,441.99",6541-Nursing,THIRD PARTY PAYMENTS,PRIVATE CONTRACTOR,REVENUE
Walsall Council,http://opendatacommunities.org/id/metropolitan-district-council/walsall ,WC138-661,31.05.2022,ADULT SOCIAL CARE,ARBORETUM NURSING HOME.,10/05/2022,"2,441.99",6541-Nursing,THIRD PARTY PAYMENTS,PRIVATE CONTRACTOR,REVENUE
Walsall Council,http://opendatacommunities.org/id/metropolitan-district-council/walsall ,WC138-662,31.05.2022,ADULT SOCIAL CARE,ARBORETUM NURSING HOME.,10/05/2022,425.71,6541-Residential & Nursing Care Placements,THIRD PARTY PAYMENTS,PRIVATE CONTRACTOR,REVENUE
Walsall Council,http://opendatacommunities.org/id/metropolitan-district-council/walsall ,WC138-663,31.05.2022,ADULT SOCIAL CARE,ARBORETUM NURSING HOME.,10/05/2022,"2,621.99",6541-Nursing,THIRD PARTY PAYMENTS,PRIVATE CONTRACTOR,REVENUE
Walsall Council,http://opendatacommunities.org/id/metropolitan-district-council/walsall ,WC138-664,31.05.2022,ADULT SOCIAL CARE,ARBORETUM NURSING HOME.,10/05/2022,"2,621.99",6541-Nursing,THIRD PARTY PAYMENTS,PRIVATE CONTRACTOR,REVENUE
Walsall Council,http://opendatacommunities.org/id/metropolitan-district-council/walsall ,WC138-665,31.05.2022,ADULT SOCIAL CARE,ARBORETUM NURSING HOME.,10/05/2022,"2,022.14",6541-Residential & Nursing Care Placements,THIRD PARTY PAYMENTS,PRIVATE CONTRACTOR,REVENUE
Walsall Council,http://opendatacommunities.org/id/metropolitan-district-council/walsall ,WC138-666,31.05.2022,ADULT SOCIAL CARE,ARBORETUM NURSING HOME.,10/05/2022,"2,980.00",6541-Residential & Nursing Care Placements,THIRD PARTY PAYMENTS,PRIVATE CONTRACTOR,REVENUE
Walsall Council,http://opendatacommunities.org/id/metropolitan-district-council/walsall ,WC138-667,31.05.2022,ADULT SOCIAL CARE,ARBORETUM NURSING HOME.,10/05/2022,"2,980.00",6541-Residential & Nursing Care Placements,THIRD PARTY PAYMENTS,PRIVATE CONTRACTOR,REVENUE
Walsall Council,http://opendatacommunities.org/id/metropolitan-district-council/walsall ,WC138-668,31.05.2022,ADULT SOCIAL CARE,ARBORETUM NURSING HOME.,10/05/2022,"1,392.86",6541-Residential & Nursing Care Placements,THIRD PARTY PAYMENTS,PRIVATE CONTRACTOR,REVENUE
Walsall Council,http://opendatacommunities.org/id/metropolitan-district-council/walsall ,WC138-669,31.05.2022,ADULT SOCIAL CARE,ARBORETUM NURSING HOME.,10/05/2022,"2,621.99",6541-Nursing,THIRD PARTY PAYMENTS,PRIVATE CONTRACTOR,REVENUE
Walsall Council,http://opendatacommunities.org/id/metropolitan-district-council/walsall ,WC138-670,31.05.2022,ADULT SOCIAL CARE,ARBORETUM NURSING HOME.,10/05/2022,"2,743.57",6541-Residential & Nursing Care Placements,THIRD PARTY PAYMENTS,PRIVATE CONTRACTOR,REVENUE
Walsall Council,http://opendatacommunities.org/id/metropolitan-district-council/walsall ,WC138-671,31.05.2022,ADULT SOCIAL CARE,ARBORETUM NURSING HOME.,10/05/2022,"3,157.14",6541-Residential & Nursing Care Placements,THIRD PARTY PAYMENTS,PRIVATE CONTRACTOR,REVENUE
Walsall Council,http://opendatacommunities.org/id/metropolitan-district-council/walsall ,WC138-672,31.05.2022,ADULT SOCIAL CARE,ARBORETUM NURSING HOME.,10/05/2022,"7,875.71",6541-Residential & Nursing Care Placements,THIRD PARTY PAYMENTS,PRIVATE CONTRACTOR,REVENUE
Walsall Council,http://opendatacommunities.org/id/metropolitan-district-council/walsall ,WC138-673,31.05.2022,ADULT SOCIAL CARE,ARBORETUM NURSING HOME.,10/05/2022,"2,621.99",6541-Nursing,THIRD PARTY PAYMENTS,PRIVATE CONTRACTOR,REVENUE
Walsall Council,http://opendatacommunities.org/id/metropolitan-district-council/walsall ,WC138-674,31.05.2022,ADULT SOCIAL CARE,ARBORETUM NURSING HOME.,10/05/2022,"2,621.99",6541-Nursing,THIRD PARTY PAYMENTS,PRIVATE CONTRACTOR,REVENUE
Walsall Council,http://opendatacommunities.org/id/metropolitan-district-council/walsall ,WC138-675,31.05.2022,ADULT SOCIAL CARE,ARBORETUM NURSING HOME.,10/05/2022,"-1,207.12",6541-Nursing,THIRD PARTY PAYMENTS,PRIVATE CONTRACTOR,REVENUE
Walsall Council,http://opendatacommunities.org/id/metropolitan-district-council/walsall ,WC138-676,31.05.2022,ADULT SOCIAL CARE,ARBORETUM NURSING HOME.,10/05/2022,"-5,321.42",6541-Residential & Nursing Care Placements,THIRD PARTY PAYMENTS,PRIVATE CONTRACTOR,REVENUE
Walsall Council,http://opendatacommunities.org/id/metropolitan-district-council/walsall ,WC138-677,31.05.2022,ADULT SOCIAL CARE,ARBORETUM NURSING HOME.,10/05/2022,"-4,789.29",6541-Residential & Nursing Care Placements,THIRD PARTY PAYMENTS,PRIVATE CONTRACTOR,REVENUE
Walsall Council,http://opendatacommunities.org/id/metropolitan-district-council/walsall ,WC138-678,31.05.2022,ADULT SOCIAL CARE,ARBORETUM NURSING HOME.,10/05/2022,"2,441.99",6541-Nursing,THIRD PARTY PAYMENTS,PRIVATE CONTRACTOR,REVENUE
Walsall Council,http://opendatacommunities.org/id/metropolitan-district-council/walsall ,WC138-679,31.05.2022,ADULT SOCIAL CARE,ARBORETUM NURSING HOME.,10/05/2022,"2,441.99",6541-Nursing,THIRD PARTY PAYMENTS,PRIVATE CONTRACTOR,REVENUE
Walsall Council,http://opendatacommunities.org/id/metropolitan-district-council/walsall ,WC138-680,31.05.2022,ADULT SOCIAL CARE,ARBORETUM NURSING HOME.,10/05/2022,"2,441.99",6541-Nursing,THIRD PARTY PAYMENTS,PRIVATE CONTRACTOR,REVENUE
Walsall Council,http://opendatacommunities.org/id/metropolitan-district-council/walsall ,WC138-681,31.05.2022,ADULT SOCIAL CARE,ARBORETUM NURSING HOME.,10/05/2022,"2,441.99",6541-Nursing,THIRD PARTY PAYMENTS,PRIVATE CONTRACTOR,REVENUE
Walsall Council,http://opendatacommunities.org/id/metropolitan-district-council/walsall ,WC138-682,31.05.2022,ADULT SOCIAL CARE,ARBORETUM NURSING HOME.,10/05/2022,"1,285.71",6541-Residential & Nursing Care Placements,THIRD PARTY PAYMENTS,PRIVATE CONTRACTOR,REVENUE
Walsall Council,http://opendatacommunities.org/id/metropolitan-district-council/walsall ,WC138-683,31.05.2022,ADULT SOCIAL CARE,ARBORETUM NURSING HOME.,10/05/2022,"2,621.99",6541-Nursing,THIRD PARTY PAYMENTS,PRIVATE CONTRACTOR,REVENUE
Walsall Council,http://opendatacommunities.org/id/metropolitan-district-council/walsall ,WC138-684,31.05.2022,ADULT SOCIAL CARE,ARBORETUM NURSING HOME.,10/05/2022,"2,158.34",6541-Short Stay Residential,THIRD PARTY PAYMENTS,PRIVATE CONTRACTOR,REVENUE
Walsall Council,http://opendatacommunities.org/id/metropolitan-district-council/walsall ,WC138-685,31.05.2022,RESOURCES AND TRANSFORMATION CAPITAL,ARCADIS,06/05/2022,"81,800.00",7300-Consultants Fees,CAPITAL,"NEW CONSTRUCTION,CONVERSION & RENOVATION",CAPITAL
Walsall Council,http://opendatacommunities.org/id/metropolitan-district-council/walsall ,WC138-686,31.05.2022,RESOURCES AND TRANSFORMATION CAPITAL,ARCADIS,10/05/2022,"21,913.00",7300-Consultants Fees,CAPITAL,"NEW CONSTRUCTION,CONVERSION & RENOVATION",CAPITAL
Walsall Council,http://opendatacommunities.org/id/metropolitan-district-council/walsall ,WC138-687,31.05.2022,ECONOMY & ENVIRONMENT CAPITAL,ARCADIS,25/05/2022,"8,384.20",7200-Consultants Fees,CAPITAL,"NEW CONSTRUCTION,CONVERSION & RENOVATION",CAPITAL
Walsall Council,http://opendatacommunities.org/id/metropolitan-district-council/walsall ,WC138-688,31.05.2022,ECONOMY & ENVIRONMENT CAPITAL,ARCADIS,25/05/2022,"47,676.99",7200-Project Fees,CAPITAL,"NEW CONSTRUCTION,CONVERSION & RENOVATION",CAPITAL
Walsall Council,http://opendatacommunities.org/id/metropolitan-district-council/walsall ,WC138-689,31.05.2022,ECONOMY & ENVIRONMENT CAPITAL,ARCADIS,31/05/2022,"16,480.00",7200-Project Fees,CAPITAL,"NEW CONSTRUCTION,CONVERSION & RENOVATION",CAPITAL
Walsall Council,http://opendatacommunities.org/id/metropolitan-district-council/walsall ,WC138-690,31.05.2022,ECONOMY & ENVIRONMENT CAPITAL,ARCADIS,31/05/2022,"15,500.00",7200-Project Fees,CAPITAL,"NEW CONSTRUCTION,CONVERSION & RENOVATION",CAPITAL
Walsall Council,http://opendatacommunities.org/id/metropolitan-district-council/walsall ,WC138-691,31.05.2022,RESOURCES AND TRANSFORMATION CAPITAL,ARCADIS,31/05/2022,"21,913.00",7300-Consultants Fees,CAPITAL,"NEW CONSTRUCTION,CONVERSION & RENOVATION",CAPITAL
Walsall Council,http://opendatacommunities.org/id/metropolitan-district-council/walsall ,WC138-692,31.05.2022,HOLDING ACCOUNTS,ARTHUR J GALLAGHER T/A HEATH LAMBERT LIMITED,26/05/2022,"46,980.86",2877-Insurance Premium,SUPPLIES & SERVICES,INSURANCE,REVENUE
Walsall Council,http://opendatacommunities.org/id/metropolitan-district-council/walsall ,WC138-693,31.05.2022,HOLDING ACCOUNTS,ARTHUR J GALLAGHER T/A HEATH LAMBERT LIMITED,26/05/2022,"44,602.88",2877-Insurance Premium,SUPPLIES & SERVICES,INSURANCE,REVENUE
Walsall Council,http://opendatacommunities.org/id/metropolitan-district-council/walsall ,WC138-694,31.05.2022,HOLDING ACCOUNTS,ARTHUR J GALLAGHER T/A HEATH LAMBERT LIMITED,26/05/2022,"28,089.60",2877-Insurance Premium,SUPPLIES & SERVICES,INSURANCE,REVENUE
Walsall Council,http://opendatacommunities.org/id/metropolitan-district-council/walsall ,WC138-695,31.05.2022,HOLDING ACCOUNTS,ARTHUR J GALLAGHER T/A HEATH LAMBERT LIMITED,26/05/2022,"13,720.00",2877-Insurance Premium,SUPPLIES & SERVICES,INSURANCE,REVENUE
Walsall Council,http://opendatacommunities.org/id/metropolitan-district-council/walsall ,WC138-696,31.05.2022,HOLDING ACCOUNTS,ARTHUR J GALLAGHER T/A HEATH LAMBERT LIMITED,26/05/2022,560.00,2877-Insurance Premium,SUPPLIES & SERVICES,INSURANCE,REVENUE
Walsall Council,http://opendatacommunities.org/id/metropolitan-district-council/walsall ,WC138-697,31.05.2022,HOLDING ACCOUNTS,ARTHUR J GALLAGHER T/A HEATH LAMBERT LIMITED,26/05/2022,"26,259.13",2877-Insurance Premium,SUPPLIES & SERVICES,INSURANCE,REVENUE
Walsall Council,http://opendatacommunities.org/id/metropolitan-district-council/walsall ,WC138-698,31.05.2022,HOLDING ACCOUNTS,ARTHUR J GALLAGHER T/A HEATH LAMBERT LIMITED,26/05/2022,"6,888.04",2877-Insurance Premium,SUPPLIES & SERVICES,INSURANCE,REVENUE
Walsall Council,http://opendatacommunities.org/id/metropolitan-district-council/walsall ,WC138-699,31.05.2022,HOLDING ACCOUNTS,ARTHUR J GALLAGHER T/A HEATH LAMBERT LIMITED,26/05/2022,"1,232.00",2877-Insurance Premium,SUPPLIES & SERVICES,INSURANCE,REVENUE
Walsall Council,http://opendatacommunities.org/id/metropolitan-district-council/walsall ,WC138-700,31.05.2022,HOLDING ACCOUNTS,ARTHUR J GALLAGHER T/A HEATH LAMBERT LIMITED,26/05/2022,"323,304.80",2877-Insurance Premium,SUPPLIES & SERVICES,INSURANCE,REVENUE
Walsall Council,http://opendatacommunities.org/id/metropolitan-district-council/walsall ,WC138-701,31.05.2022,CHILDRENS,ASDA STORES LIMITED,30/05/2022,400.00,6314-Housing Benefits-Transfer Payments,TRANSFER PAYMENTS,HOUSING BENEFITS,REVENUE
Walsall Council,http://opendatacommunities.org/id/metropolitan-district-council/walsall ,WC138-702,31.05.2022,ADULT SOCIAL CARE,ASH GRANGE CARE HOME,10/05/2022,"2,747.75",6541-Nursing EMI,THIRD PARTY PAYMENTS,PRIVATE CONTRACTOR,REVENUE
Walsall Council,http://opendatacommunities.org/id/metropolitan-district-council/walsall ,WC138-703,31.05.2022,ADULT SOCIAL CARE,ASH GRANGE CARE HOME,10/05/2022,"2,083.24",6541-Residential,THIRD PARTY PAYMENTS,PRIVATE CONTRACTOR,REVENUE
Walsall Council,http://opendatacommunities.org/id/metropolitan-district-council/walsall ,WC138-704,31.05.2022,ADULT SOCIAL CARE,ASH GRANGE CARE HOME,10/05/2022,"2,441.99",6541-Nursing,THIRD PARTY PAYMENTS,PRIVATE CONTRACTOR,REVENUE
Walsall Council,http://opendatacommunities.org/id/metropolitan-district-council/walsall ,WC138-705,31.05.2022,ADULT SOCIAL CARE,ASH GRANGE CARE HOME,10/05/2022,"2,441.99",6541-Nursing,THIRD PARTY PAYMENTS,PRIVATE CONTRACTOR,REVENUE
Walsall Council,http://opendatacommunities.org/id/metropolitan-district-council/walsall ,WC138-706,31.05.2022,ADULT SOCIAL CARE,ASH GRANGE CARE HOME,10/05/2022,"2,441.99",6541-Nursing,THIRD PARTY PAYMENTS,PRIVATE CONTRACTOR,REVENUE
Walsall Council,http://opendatacommunities.org/id/metropolitan-district-council/walsall ,WC138-707,31.05.2022,ADULT SOCIAL CARE,ASH GRANGE CARE HOME,10/05/2022,"2,083.24",6541-Residential,THIRD PARTY PAYMENTS,PRIVATE CONTRACTOR,REVENUE
Walsall Council,http://opendatacommunities.org/id/metropolitan-district-council/walsall ,WC138-708,31.05.2022,ADULT SOCIAL CARE,ASH GRANGE CARE HOME,10/05/2022,321.43,6541-Residential & Nursing Care Placements,THIRD PARTY PAYMENTS,PRIVATE CONTRACTOR,REVENUE
Walsall Council,http://opendatacommunities.org/id/metropolitan-district-council/walsall ,WC138-709,31.05.2022,ADULT SOCIAL CARE,ASH GRANGE CARE HOME,10/05/2022,750.00,6541-Residential & Nursing Care Placements,THIRD PARTY PAYMENTS,PRIVATE CONTRACTOR,REVENUE
Walsall Council,http://opendatacommunities.org/id/metropolitan-district-council/walsall ,WC138-710,31.05.2022,ADULT SOCIAL CARE,ASH GRANGE CARE HOME,10/05/2022,"1,214.29",6541-Residential & Nursing Care Placements,THIRD PARTY PAYMENTS,PRIVATE CONTRACTOR,REVENUE
Walsall Council,http://opendatacommunities.org/id/metropolitan-district-council/walsall ,WC138-711,31.05.2022,ADULT SOCIAL CARE,ASH GRANGE CARE HOME,10/05/2022,"2,064.29",6541-Residential & Nursing Care Placements,THIRD PARTY PAYMENTS,PRIVATE CONTRACTOR,REVENUE
Walsall Council,http://opendatacommunities.org/id/metropolitan-district-council/walsall ,WC138-712,31.05.2022,ADULT SOCIAL CARE,ASH GRANGE CARE HOME,10/05/2022,"2,747.75",6541-Nursing EMI,THIRD PARTY PAYMENTS,PRIVATE CONTRACTOR,REVENUE
Walsall Council,http://opendatacommunities.org/id/metropolitan-district-council/walsall ,WC138-713,31.05.2022,ADULT SOCIAL CARE,ASH GRANGE CARE HOME,10/05/2022,"2,820.95",6541-Nursing,THIRD PARTY PAYMENTS,PRIVATE CONTRACTOR,REVENUE
Walsall Council,http://opendatacommunities.org/id/metropolitan-district-council/walsall ,WC138-714,31.05.2022,ADULT SOCIAL CARE,ASH GRANGE CARE HOME,10/05/2022,"2,641.99",6541-Nursing,THIRD PARTY PAYMENTS,PRIVATE CONTRACTOR,REVENUE
Walsall Council,http://opendatacommunities.org/id/metropolitan-district-council/walsall ,WC138-715,31.05.2022,ADULT SOCIAL CARE,ASH GRANGE CARE HOME,10/05/2022,"2,185.71",6541-Residential & Nursing Care Placements,THIRD PARTY PAYMENTS,PRIVATE CONTRACTOR,REVENUE
Walsall Council,http://opendatacommunities.org/id/metropolitan-district-council/walsall ,WC138-716,31.05.2022,ADULT SOCIAL CARE,ASH GRANGE CARE HOME,10/05/2022,"2,571.43",6541-Residential & Nursing Care Placements,THIRD PARTY PAYMENTS,PRIVATE CONTRACTOR,REVENUE
Walsall Council,http://opendatacommunities.org/id/metropolitan-district-council/walsall ,WC138-717,31.05.2022,ADULT SOCIAL CARE,ASH GRANGE CARE HOME,10/05/2022,"2,064.29",6553-Residential & Nursing Care Placements,THIRD PARTY PAYMENTS,PRIVATE CONTRACTOR,REVENUE
Walsall Council,http://opendatacommunities.org/id/metropolitan-district-council/walsall ,WC138-718,31.05.2022,ADULT SOCIAL CARE,ASH GRANGE CARE HOME,10/05/2022,"2,441.99",6541-Nursing,THIRD PARTY PAYMENTS,PRIVATE CONTRACTOR,REVENUE
Walsall Council,http://opendatacommunities.org/id/metropolitan-district-council/walsall ,WC138-719,31.05.2022,ADULT SOCIAL CARE,ASH GRANGE CARE HOME,10/05/2022,"2,630.71",6541-Residential,THIRD PARTY PAYMENTS,PRIVATE CONTRACTOR,REVENUE
Walsall Council,http://opendatacommunities.org/id/metropolitan-district-council/walsall ,WC138-720,31.05.2022,ADULT SOCIAL CARE,ASH GRANGE CARE HOME,10/05/2022,"2,747.75",6541-Nursing EMI,THIRD PARTY PAYMENTS,PRIVATE CONTRACTOR,REVENUE
Walsall Council,http://opendatacommunities.org/id/metropolitan-district-council/walsall ,WC138-721,31.05.2022,ADULT SOCIAL CARE,ASH GRANGE CARE HOME,10/05/2022,"2,741.99",6541-Nursing,THIRD PARTY PAYMENTS,PRIVATE CONTRACTOR,REVENUE
Walsall Council,http://opendatacommunities.org/id/metropolitan-district-council/walsall ,WC138-722,31.05.2022,ADULT SOCIAL CARE,ASH GRANGE CARE HOME,10/05/2022,"2,418.80",6541-Residential,THIRD PARTY PAYMENTS,PRIVATE CONTRACTOR,REVENUE
Walsall Council,http://opendatacommunities.org/id/metropolitan-district-council/walsall ,WC138-723,31.05.2022,ADULT SOCIAL CARE,ASH GRANGE CARE HOME,10/05/2022,"3,000.00",6541-Residential & Nursing Care Placements,THIRD PARTY PAYMENTS,PRIVATE CONTRACTOR,REVENUE
Walsall Council,http://opendatacommunities.org/id/metropolitan-district-council/walsall ,WC138-724,31.05.2022,ADULT SOCIAL CARE,ASH GRANGE CARE HOME,10/05/2022,"2,418.80",6541-Residential,THIRD PARTY PAYMENTS,PRIVATE CONTRACTOR,REVENUE
Walsall Council,http://opendatacommunities.org/id/metropolitan-district-council/walsall ,WC138-725,31.05.2022,ADULT SOCIAL CARE,ASH GRANGE CARE HOME,10/05/2022,"2,218.80",6541-Residential,THIRD PARTY PAYMENTS,PRIVATE CONTRACTOR,REVENUE
Walsall Council,http://opendatacommunities.org/id/metropolitan-district-council/walsall ,WC138-726,31.05.2022,ADULT SOCIAL CARE,ASH GRANGE CARE HOME,10/05/2022,"2,641.99",6541-Nursing,THIRD PARTY PAYMENTS,PRIVATE CONTRACTOR,REVENUE
Walsall Council,http://opendatacommunities.org/id/metropolitan-district-council/walsall ,WC138-727,31.05.2022,ADULT SOCIAL CARE,ASH GRANGE CARE HOME,10/05/2022,971.43,6541-Residential & Nursing Care Placements,THIRD PARTY PAYMENTS,PRIVATE CONTRACTOR,REVENUE
Walsall Council,http://opendatacommunities.org/id/metropolitan-district-council/walsall ,WC138-728,31.05.2022,ADULT SOCIAL CARE,ASH GRANGE CARE HOME,10/05/2022,"2,064.29",6541-Residential & Nursing Care Placements,THIRD PARTY PAYMENTS,PRIVATE CONTRACTOR,REVENUE
Walsall Council,http://opendatacommunities.org/id/metropolitan-district-council/walsall ,WC138-729,31.05.2022,ADULT SOCIAL CARE,ASH GRANGE CARE HOME,09/05/2022,"21,014.29",6554-Carers One off Payment,TRANSFER PAYMENTS,ADULT SOCIAL SERVICES CLIENT,REVENUE
Walsall Council,http://opendatacommunities.org/id/metropolitan-district-council/walsall ,WC138-730,31.05.2022,ADULT SOCIAL CARE,REDACTED,05/05/2022,"1,429.72",6541-Direct Payment,THIRD PARTY PAYMENTS,PRIVATE CONTRACTOR,REVENUE
Walsall Council,http://opendatacommunities.org/id/metropolitan-district-council/walsall ,WC138-731,31.05.2022,"ECONOMY, ENVIRONMENT & COMMUNITIES",ASKEWS AND HOLTS LIBRARY SERVICES LTD,24/05/2022,"1,287.69",6414-Library Books,SUPPLIES & SERVICES,EQUIPMENT FURNITURE & MATERIALS,REVENUE
Walsall Council,http://opendatacommunities.org/id/metropolitan-district-council/walsall ,WC138-732,31.05.2022,ADULT SOCIAL CARE,REDACTED,05/05/2022,761.76,6541-Direct Payment,THIRD PARTY PAYMENTS,PRIVATE CONTRACTOR,REVENUE
Walsall Council,http://opendatacommunities.org/id/metropolitan-district-council/walsall ,WC138-733,31.05.2022,ADULT SOCIAL CARE,ASPECTS CARE LTD,05/05/2022,423.67,6541-Community Supported Living/Supported Accommodation,THIRD PARTY PAYMENTS,PRIVATE CONTRACTOR,REVENUE
Walsall Council,http://opendatacommunities.org/id/metropolitan-district-council/walsall ,WC138-734,31.05.2022,ADULT SOCIAL CARE,ASPECTS CARE LTD,05/05/2022,715.74,6541-Community Supported Living/Supported Accommodation,THIRD PARTY PAYMENTS,PRIVATE CONTRACTOR,REVENUE
Walsall Council,http://opendatacommunities.org/id/metropolitan-district-council/walsall ,WC138-735,31.05.2022,ADULT SOCIAL CARE,ASPECTS CARE LTD,05/05/2022,467.37,6541-Community Supported Living/Supported Accommodation,THIRD PARTY PAYMENTS,PRIVATE CONTRACTOR,REVENUE
Walsall Council,http://opendatacommunities.org/id/metropolitan-district-council/walsall ,WC138-736,31.05.2022,ADULT SOCIAL CARE,ASPECTS CARE LTD,05/05/2022,525.63,6541-Community Supported Living/Supported Accommodation,THIRD PARTY PAYMENTS,PRIVATE CONTRACTOR,REVENUE
Walsall Council,http://opendatacommunities.org/id/metropolitan-district-council/walsall ,WC138-737,31.05.2022,ADULT SOCIAL CARE,ASPECTS CARE LTD,05/05/2022,569.94,6541-Community Supported Living/Supported Accommodation,THIRD PARTY PAYMENTS,PRIVATE CONTRACTOR,REVENUE
Walsall Council,http://opendatacommunities.org/id/metropolitan-district-council/walsall ,WC138-738,31.05.2022,ADULT SOCIAL CARE,ASPECTS CARE LTD,05/05/2022,"1,095.39",6541-Community Supported Living/Supported Accommodation,THIRD PARTY PAYMENTS,PRIVATE CONTRACTOR,REVENUE
Walsall Council,http://opendatacommunities.org/id/metropolitan-district-council/walsall ,WC138-739,31.05.2022,ADULT SOCIAL CARE,ASPECTS CARE LTD,05/05/2022,511.18,6541-Community Supported Living/Supported Accommodation,THIRD PARTY PAYMENTS,PRIVATE CONTRACTOR,REVENUE
Walsall Council,http://opendatacommunities.org/id/metropolitan-district-council/walsall ,WC138-740,31.05.2022,ADULT SOCIAL CARE,ASPECTS CARE LTD,05/05/2022,525.44,6541-Community Supported Living/Supported Accommodation,THIRD PARTY PAYMENTS,PRIVATE CONTRACTOR,REVENUE
Walsall Council,http://opendatacommunities.org/id/metropolitan-district-council/walsall ,WC138-741,31.05.2022,ADULT SOCIAL CARE,ASPECTS CARE LTD,05/05/2022,803.28,6541-Community Supported Living/Supported Accommodation,THIRD PARTY PAYMENTS,PRIVATE CONTRACTOR,REVENUE
Walsall Council,http://opendatacommunities.org/id/metropolitan-district-council/walsall ,WC138-742,31.05.2022,ADULT SOCIAL CARE,ASPECTS CARE LTD,05/05/2022,350.50,6541-Community Supported Living/Supported Accommodation,THIRD PARTY PAYMENTS,PRIVATE CONTRACTOR,REVENUE
Walsall Council,http://opendatacommunities.org/id/metropolitan-district-council/walsall ,WC138-743,31.05.2022,RESOURCES AND TRANSFORMATION,ASSOCIATION OF ELECTORAL ADMINISTRATORS,31/05/2022,"-1,237.50",6610-Advertising Staff Vacancies,INDIRECT EMPLOYEES,ADVERTISING STAFF VACANCIES,REVENUE
Walsall Council,http://opendatacommunities.org/id/metropolitan-district-council/walsall ,WC138-744,31.05.2022,RESOURCES AND TRANSFORMATION,ASSOCIATION OF ELECTORAL ADMINISTRATORS,31/05/2022,"1,237.50",6610-Advertising Staff Vacancies,INDIRECT EMPLOYEES,ADVERTISING STAFF VACANCIES,REVENUE
Walsall Council,http://opendatacommunities.org/id/metropolitan-district-council/walsall ,WC138-745,31.05.2022,RESOURCES AND TRANSFORMATION,ASTECH CONSULTANTS LTD,24/05/2022,300.00,6623-Computer Equipment,SUPPLIES & SERVICES,COMMUNICATIONS & COMPUTING,REVENUE
Walsall Council,http://opendatacommunities.org/id/metropolitan-district-council/walsall ,WC138-746,31.05.2022,RESOURCES AND TRANSFORMATION,ASTECH CONSULTANTS LTD,24/05/2022,"1,700.00",6623-Computer Equipment,SUPPLIES & SERVICES,COMMUNICATIONS & COMPUTING,REVENUE
Walsall Council,http://opendatacommunities.org/id/metropolitan-district-council/walsall ,WC138-747,31.05.2022,RESOURCES AND TRANSFORMATION CAPITAL,ASTECH CONSULTANTS LTD,24/05/2022,"3,500.00",7300-Software,CAPITAL,INTANGIBLE FIXED ASSETS,CAPITAL
Walsall Council,http://opendatacommunities.org/id/metropolitan-district-council/walsall ,WC138-748,31.05.2022,RESOURCES AND TRANSFORMATION,ASTECH CONSULTANTS LTD,24/05/2022,"7,000.00",6623-Computer Equipment,SUPPLIES & SERVICES,COMMUNICATIONS & COMPUTING,REVENUE
Walsall Council,http://opendatacommunities.org/id/metropolitan-district-council/walsall ,WC138-749,31.05.2022,CHILDRENS CAPITAL,ASTRAL PS LTD,30/05/2022,576.00,7100-Private Grants,CAPITAL,CAPITAL GRANTS,CAPITAL GRANTS
Walsall Council,http://opendatacommunities.org/id/metropolitan-district-council/walsall ,WC138-750,31.05.2022,ADULT SOCIAL CARE,ATHOLL HOUSE MEDICAL NURSING HOME - CARAM (AH) LTD,09/05/2022,"24,000.00",6554-Professional Services-Priv Contractor & Other Agencies,THIRD PARTY PAYMENTS,PRIVATE CONTRACTOR,REVENUE
Walsall Council,http://opendatacommunities.org/id/metropolitan-district-council/walsall ,WC138-751,31.05.2022,CHILDRENS,REDACTED,04/05/2022,281.68,6223-Residents Orders,TRANSFER PAYMENTS,CHILDREN SOCIAL SERVICES CLIENT,REVENUE
Walsall Council,http://opendatacommunities.org/id/metropolitan-district-council/walsall ,WC138-752,31.05.2022,CHILDRENS,REDACTED,04/05/2022,281.68,6223-Residents Orders,TRANSFER PAYMENTS,CHILDREN SOCIAL SERVICES CLIENT,REVENUE
Walsall Council,http://opendatacommunities.org/id/metropolitan-district-council/walsall ,WC138-753,31.05.2022,ADULT SOCIAL CARE,REDACTED,05/05/2022,350.79,6541-Direct Payment,THIRD PARTY PAYMENTS,PRIVATE CONTRACTOR,REVENUE
Walsall Council,http://opendatacommunities.org/id/metropolitan-district-council/walsall ,WC138-754,31.05.2022,ADULT SOCIAL CARE,AUTISM WEST MIDLANDS,10/05/2022,"5,784.86",6541-Residential,THIRD PARTY PAYMENTS,PRIVATE CONTRACTOR,REVENUE
Walsall Council,http://opendatacommunities.org/id/metropolitan-district-council/walsall ,WC138-755,31.05.2022,ADULT SOCIAL CARE,AUTISM WEST MIDLANDS,10/05/2022,"7,485.60",6541-Residential,THIRD PARTY PAYMENTS,PRIVATE CONTRACTOR,REVENUE
Walsall Council,http://opendatacommunities.org/id/metropolitan-district-council/walsall ,WC138-756,31.05.2022,ADULT SOCIAL CARE,AUTISM WEST MIDLANDS,10/05/2022,"20,256.68",6541-Residential,THIRD PARTY PAYMENTS,PRIVATE CONTRACTOR,REVENUE
Walsall Council,http://opendatacommunities.org/id/metropolitan-district-council/walsall ,WC138-757,31.05.2022,CHILDRENS CAPITAL,AV PARTSMASTER LTD,23/05/2022,"1,495.00",7155-Purchase of Furniture & Equipment,CAPITAL,"VEHICLES,PLANT,EQUIPMENT & MACHINERY",CAPITAL
Walsall Council,http://opendatacommunities.org/id/metropolitan-district-council/walsall ,WC138-758,31.05.2022,ADULT SOCIAL CARE,AVE MARIA CARE SERVICES LTD,31/05/2022,"3,060.43",6554-Recruitment Expenses,INDIRECT EMPLOYEES,RECRUITMENT EXPENSES,REVENUE
Walsall Council,http://opendatacommunities.org/id/metropolitan-district-council/walsall ,WC138-759,31.05.2022,ADULT SOCIAL CARE,AVE MARIA CARE SERVICES LTD,31/05/2022,"33,369.57",6554-Professional Services-Priv Contractor & Other Agencies,THIRD PARTY PAYMENTS,PRIVATE CONTRACTOR,REVENUE
Walsall Council,http://opendatacommunities.org/id/metropolitan-district-council/walsall ,WC138-760,31.05.2022,ADULT SOCIAL CARE,AVE MARIA CARE SERVICES LTD,31/05/2022,"40,717.00",6554-Recruitment Expenses,INDIRECT EMPLOYEES,RECRUITMENT EXPENSES,REVENUE
Walsall Council,http://opendatacommunities.org/id/metropolitan-district-council/walsall ,WC138-761,31.05.2022,CHILDRENS,AVEC SUPPORT LTD,18/05/2022,"7,500.00",6223-Accommodation and Related Costs-Assistance to S/S Clients,TRANSFER PAYMENTS,ADULT SOCIAL SERVICES CLIENT,REVENUE
Walsall Council,http://opendatacommunities.org/id/metropolitan-district-council/walsall ,WC138-762,31.05.2022,ADULT SOCIAL CARE,AVERY HOMES NELSON LIMITED,10/05/2022,"3,418.80",6541-Residential,THIRD PARTY PAYMENTS,PRIVATE CONTRACTOR,REVENUE
Walsall Council,http://opendatacommunities.org/id/metropolitan-district-council/walsall ,WC138-763,31.05.2022,ADULT SOCIAL CARE,AVERY HOMES NELSON LIMITED,10/05/2022,"2,083.24",6541-Residential,THIRD PARTY PAYMENTS,PRIVATE CONTRACTOR,REVENUE
Walsall Council,http://opendatacommunities.org/id/metropolitan-district-council/walsall ,WC138-764,31.05.2022,ADULT SOCIAL CARE,AVERY HOMES NELSON LIMITED,10/05/2022,"2,083.24",6541-Residential,THIRD PARTY PAYMENTS,PRIVATE CONTRACTOR,REVENUE
Walsall Council,http://opendatacommunities.org/id/metropolitan-district-council/walsall ,WC138-765,31.05.2022,ADULT SOCIAL CARE,REDACTED,05/05/2022,"3,444.48",6541-Direct Payment,THIRD PARTY PAYMENTS,PRIVATE CONTRACTOR,REVENUE
Walsall Council,http://opendatacommunities.org/id/metropolitan-district-council/walsall ,WC138-766,31.05.2022,"ECONOMY, ENVIRONMENT & COMMUNITIES",B & S CHAINS LTD,25/05/2022,822.00,6410-Materials,SUPPLIES & SERVICES,EQUIPMENT FURNITURE & MATERIALS,REVENUE
Walsall Council,http://opendatacommunities.org/id/metropolitan-district-council/walsall ,WC138-767,31.05.2022,CHILDRENS,BACHES SOLICITORS,10/05/2022,"1,001.77",6220-School Only Payments - Catering,THIRD PARTY PAYMENTS,INDEPENDENT UNIT WITHIN COUNCIL,REVENUE
Walsall Council,http://opendatacommunities.org/id/metropolitan-district-council/walsall ,WC138-768,31.05.2022,RESOURCES AND TRANSFORMATION,BAILY GARNER (HEALTH & SAFETY) LTD,30/05/2022,969.60,6310-Planned Maintenance,PREMISES,REPAIRS & MAINTENANCE,REVENUE
Walsall Council,http://opendatacommunities.org/id/metropolitan-district-council/walsall ,WC138-769,31.05.2022,ADULT SOCIAL CARE,REDACTED,05/05/2022,"3,859.24",6541-Direct Payment,THIRD PARTY PAYMENTS,PRIVATE CONTRACTOR,REVENUE
Walsall Council,http://opendatacommunities.org/id/metropolitan-district-council/walsall ,WC138-770,31.05.2022,"ECONOMY, ENVIRONMENT & COMMUNITIES",BANGOR UNIVERSITY,13/05/2022,"2,800.00",6410-External Training,INDIRECT EMPLOYEES,EXTERNAL TRAINING,REVENUE
Walsall Council,http://opendatacommunities.org/id/metropolitan-district-council/walsall ,WC138-771,31.05.2022,"ECONOMY, ENVIRONMENT & COMMUNITIES",BANGOR UNIVERSITY,13/05/2022,"-1,866.67",6410-External Training,INDIRECT EMPLOYEES,EXTERNAL TRAINING,REVENUE
Walsall Council,http://opendatacommunities.org/id/metropolitan-district-council/walsall ,WC138-772,31.05.2022,CHILDRENS,BANYA FAMILY PLACEMENT AGENCY LTD,16/05/2022,"4,632.96",6223-Independent Foster Care-Oth Agency Provision,THIRD PARTY PAYMENTS,PRIVATE CONTRACTOR,REVENUE
Walsall Council,http://opendatacommunities.org/id/metropolitan-district-council/walsall ,WC138-773,31.05.2022,CHILDRENS,REDACTED,04/05/2022,340.00,6223-Internal Foster Carers-Carer Fees,TRANSFER PAYMENTS,CHILDREN SOCIAL SERVICES CLIENT,REVENUE
Walsall Council,http://opendatacommunities.org/id/metropolitan-district-council/walsall ,WC138-774,31.05.2022,CHILDRENS,BARNARDOS SERVICES LTD,26/05/2022,"12,390.00",6220-Professional Fees & Services,SUPPLIES & SERVICES,SERVICES,REVENUE
Walsall Council,http://opendatacommunities.org/id/metropolitan-district-council/walsall ,WC138-775,31.05.2022,"ECONOMY, ENVIRONMENT & COMMUNITIES",BASE 25,23/05/2022,"2,367.00",6430-Grants to Other Orgs,SUPPLIES & SERVICES,GRANTS (EXP) & SUBSCRIPTIONS,REVENUE
Walsall Council,http://opendatacommunities.org/id/metropolitan-district-council/walsall ,WC138-776,31.05.2022,"ECONOMY, ENVIRONMENT & COMMUNITIES",BASE 25,23/05/2022,"1,425.79",6430-Grants to Other Orgs,SUPPLIES & SERVICES,GRANTS (EXP) & SUBSCRIPTIONS,REVENUE
Walsall Council,http://opendatacommunities.org/id/metropolitan-district-council/walsall ,WC138-777,31.05.2022,CHILDRENS CAPITAL,BAT FABRICATIONS LTD,03/05/2022,"2,000.00",7150-Site Works Contractors,CAPITAL,"NEW CONSTRUCTION,CONVERSION & RENOVATION",CAPITAL
Walsall Council,http://opendatacommunities.org/id/metropolitan-district-council/walsall ,WC138-778,31.05.2022,CHILDRENS CAPITAL,BAT FABRICATIONS LTD,03/05/2022,"15,900.00",7150-Site Works Contractors,CAPITAL,"NEW CONSTRUCTION,CONVERSION & RENOVATION",CAPITAL
Walsall Council,http://opendatacommunities.org/id/metropolitan-district-council/walsall ,WC138-779,31.05.2022,CHILDRENS CAPITAL,BAT FABRICATIONS LTD,03/05/2022,780.00,7150-Site Works Contractors,CAPITAL,"NEW CONSTRUCTION,CONVERSION & RENOVATION",CAPITAL
Walsall Council,http://opendatacommunities.org/id/metropolitan-district-council/walsall ,WC138-780,31.05.2022,CHILDRENS CAPITAL,BAT FABRICATIONS LTD,03/05/2022,"2,000.00",7150-Site Works Contractors,CAPITAL,"NEW CONSTRUCTION,CONVERSION & RENOVATION",CAPITAL
Walsall Council,http://opendatacommunities.org/id/metropolitan-district-council/walsall ,WC138-781,31.05.2022,RESOURCES AND TRANSFORMATION CAPITAL,BAT FABRICATIONS LTD,31/05/2022,590.00,7150-Site Works Contractors,CAPITAL,"NEW CONSTRUCTION,CONVERSION & RENOVATION",CAPITAL
Walsall Council,http://opendatacommunities.org/id/metropolitan-district-council/walsall ,WC138-782,31.05.2022,RESOURCES AND TRANSFORMATION CAPITAL,BAT FABRICATIONS LTD,31/05/2022,600.00,7150-Site Works Contractors,CAPITAL,"NEW CONSTRUCTION,CONVERSION & RENOVATION",CAPITAL
Walsall Council,http://opendatacommunities.org/id/metropolitan-district-council/walsall ,WC138-783,31.05.2022,"ECONOMY, ENVIRONMENT & COMMUNITIES",BATLEYS,13/05/2022,"1,781.26",6414-Catering & Refreshments,SUPPLIES & SERVICES,CATERING,REVENUE
Walsall Council,http://opendatacommunities.org/id/metropolitan-district-council/walsall ,WC138-784,31.05.2022,ECONOMY & ENVIRONMENT CAPITAL,BDO LLP,11/05/2022,"4,903.69",7200-Consultants Fees,CAPITAL,"NEW CONSTRUCTION,CONVERSION & RENOVATION",CAPITAL
Walsall Council,http://opendatacommunities.org/id/metropolitan-district-council/walsall ,WC138-785,31.05.2022,CHILDRENS,BEACON CHILDCARE LTD,16/05/2022,"12,368.01",6223-External Residential Care-Oth Agency Provision,THIRD PARTY PAYMENTS,PRIVATE CONTRACTOR,REVENUE
Walsall Council,http://opendatacommunities.org/id/metropolitan-district-council/walsall ,WC138-786,31.05.2022,RESOURCES AND TRANSFORMATION,BEADEN POWERLEC LIMITED,20/05/2022,282.46,6310-Repair & Maintenance of Furniture & Equipment,SUPPLIES & SERVICES,EQUIPMENT FURNITURE & MATERIALS,REVENUE
Walsall Council,http://opendatacommunities.org/id/metropolitan-district-council/walsall ,WC138-787,31.05.2022,CHILDRENS,BECKYS CHILDMINDING SERVICE,30/05/2022,"1,062.75",1184-Other-Grants to Other Orgs,SUPPLIES & SERVICES,GRANTS (EXP) & SUBSCRIPTIONS,REVENUE
Walsall Council,http://opendatacommunities.org/id/metropolitan-district-council/walsall ,WC138-788,31.05.2022,CHILDRENS,BECKYS CHILDMINDING SERVICE,30/05/2022,"1,357.20",1184-Other-Grants to Other Orgs,SUPPLIES & SERVICES,GRANTS (EXP) & SUBSCRIPTIONS,REVENUE
Walsall Council,http://opendatacommunities.org/id/metropolitan-district-council/walsall ,WC138-789,31.05.2022,ADULT SOCIAL CARE,BELVIDERE COURT,10/05/2022,"2,441.99",6541-Nursing,THIRD PARTY PAYMENTS,PRIVATE CONTRACTOR,REVENUE
Walsall Council,http://opendatacommunities.org/id/metropolitan-district-council/walsall ,WC138-790,31.05.2022,ADULT SOCIAL CARE,BELVIDERE COURT,10/05/2022,"2,922.26",6541-Residential,THIRD PARTY PAYMENTS,PRIVATE CONTRACTOR,REVENUE
Walsall Council,http://opendatacommunities.org/id/metropolitan-district-council/walsall ,WC138-791,31.05.2022,ADULT SOCIAL CARE,BENEDON HEALTHCARE LTD,05/05/2022,"5,933.92",6541-Community Supported Living/Supported Accommodation,THIRD PARTY PAYMENTS,PRIVATE CONTRACTOR,REVENUE
Walsall Council,http://opendatacommunities.org/id/metropolitan-district-council/walsall ,WC138-792,31.05.2022,ADULT SOCIAL CARE,BENEDON HEALTHCARE LTD,05/05/2022,"1,403.11",6541-Community Supported Living/Supported Accommodation,THIRD PARTY PAYMENTS,PRIVATE CONTRACTOR,REVENUE
Walsall Council,http://opendatacommunities.org/id/metropolitan-district-council/walsall ,WC138-793,31.05.2022,ADULT SOCIAL CARE,REDACTED,05/05/2022,"2,922.32",6541-Direct Payment,THIRD PARTY PAYMENTS,PRIVATE CONTRACTOR,REVENUE
Walsall Council,http://opendatacommunities.org/id/metropolitan-district-council/walsall ,WC138-794,31.05.2022,CHILDRENS,BENJAMIN UK LTD,16/05/2022,"19,105.71",6223-External Residential Care-Oth Agency Provision,THIRD PARTY PAYMENTS,PRIVATE CONTRACTOR,REVENUE
Walsall Council,http://opendatacommunities.org/id/metropolitan-district-council/walsall ,WC138-795,31.05.2022,CHILDRENS,BENTLEY CHILD CARE,05/05/2022,702.00,6213-Professional Fees & Services,SUPPLIES & SERVICES,SERVICES,REVENUE
Walsall Council,http://opendatacommunities.org/id/metropolitan-district-council/walsall ,WC138-796,31.05.2022,HOLDING ACCOUNTS,BERRYMANS LACE MAWER LLP,20/05/2022,"4,450.50",2877-Insurance Payment Claims,SUPPLIES & SERVICES,INSURANCE,REVENUE
Walsall Council,http://opendatacommunities.org/id/metropolitan-district-council/walsall ,WC138-797,31.05.2022,ADULT SOCIAL CARE,REDACTED,05/05/2022,"1,959.20",6541-Direct Payment,THIRD PARTY PAYMENTS,PRIVATE CONTRACTOR,REVENUE
Walsall Council,http://opendatacommunities.org/id/metropolitan-district-council/walsall ,WC138-798,31.05.2022,CHILDRENS,BES REHAB LIMITED,17/05/2022,616.85,6220-Purchase of Furniture & Equipment,SUPPLIES & SERVICES,EQUIPMENT FURNITURE & MATERIALS,REVENUE
Walsall Council,http://opendatacommunities.org/id/metropolitan-district-council/walsall ,WC138-799,31.05.2022,CHILDRENS,BES REHAB LIMITED,20/05/2022,830.70,6220-Purchase of Furniture & Equipment,SUPPLIES & SERVICES,EQUIPMENT FURNITURE & MATERIALS,REVENUE
Walsall Council,http://opendatacommunities.org/id/metropolitan-district-council/walsall ,WC138-800,31.05.2022,"ECONOMY, ENVIRONMENT & COMMUNITIES",BESCOT STADIUM SUNDAY MARKET LTD,24/05/2022,"2,600.00",6410-Management Fees-Priv Contractor Fees,THIRD PARTY PAYMENTS,PRIVATE CONTRACTOR,REVENUE
Walsall Council,http://opendatacommunities.org/id/metropolitan-district-council/walsall ,WC138-801,31.05.2022,CHILDRENS,BESPOKE TRAINING AND EDUCATION LTD,27/05/2022,"6,493.84",1187-Materials,SUPPLIES & SERVICES,EQUIPMENT FURNITURE & MATERIALS,REVENUE
Walsall Council,http://opendatacommunities.org/id/metropolitan-district-council/walsall ,WC138-802,31.05.2022,CHILDRENS,BESPOKE TRAINING AND EDUCATION LTD,04/05/2022,"4,680.76",1187-Materials,SUPPLIES & SERVICES,EQUIPMENT FURNITURE & MATERIALS,REVENUE
Walsall Council,http://opendatacommunities.org/id/metropolitan-district-council/walsall ,WC138-803,31.05.2022,ADULT SOCIAL CARE,BESS CARE LIMITED,05/05/2022,412.76,6541-Domiciliary Care,THIRD PARTY PAYMENTS,PRIVATE CONTRACTOR,REVENUE
Walsall Council,http://opendatacommunities.org/id/metropolitan-district-council/walsall ,WC138-804,31.05.2022,ADULT SOCIAL CARE,BESS CARE LIMITED,05/05/2022,257.02,6541-Domiciliary Care,THIRD PARTY PAYMENTS,PRIVATE CONTRACTOR,REVENUE
Walsall Council,http://opendatacommunities.org/id/metropolitan-district-council/walsall ,WC138-805,31.05.2022,ADULT SOCIAL CARE,BESS CARE LIMITED,05/05/2022,354.29,6541-Domiciliary Care,THIRD PARTY PAYMENTS,PRIVATE CONTRACTOR,REVENUE
Walsall Council,http://opendatacommunities.org/id/metropolitan-district-council/walsall ,WC138-806,31.05.2022,ADULT SOCIAL CARE,BESS CARE LIMITED,05/05/2022,272.58,6541-Domiciliary Care,THIRD PARTY PAYMENTS,PRIVATE CONTRACTOR,REVENUE
Walsall Council,http://opendatacommunities.org/id/metropolitan-district-council/walsall ,WC138-807,31.05.2022,ADULT SOCIAL CARE,BESS CARE LIMITED,05/05/2022,416.57,6541-Domiciliary Care,THIRD PARTY PAYMENTS,PRIVATE CONTRACTOR,REVENUE
Walsall Council,http://opendatacommunities.org/id/metropolitan-district-council/walsall ,WC138-808,31.05.2022,ADULT SOCIAL CARE,BESS CARE LIMITED,05/05/2022,334.88,6541-Domiciliary Care,THIRD PARTY PAYMENTS,PRIVATE CONTRACTOR,REVENUE
Walsall Council,http://opendatacommunities.org/id/metropolitan-district-council/walsall ,WC138-809,31.05.2022,ADULT SOCIAL CARE,BESS CARE LIMITED,05/05/2022,323.16,6541-Domiciliary Care,THIRD PARTY PAYMENTS,PRIVATE CONTRACTOR,REVENUE
Walsall Council,http://opendatacommunities.org/id/metropolitan-district-council/walsall ,WC138-810,31.05.2022,ADULT SOCIAL CARE,BESS CARE LIMITED,05/05/2022,264.79,6541-Domiciliary Care,THIRD PARTY PAYMENTS,PRIVATE CONTRACTOR,REVENUE
Walsall Council,http://opendatacommunities.org/id/metropolitan-district-council/walsall ,WC138-811,31.05.2022,ADULT SOCIAL CARE,BESS CARE LIMITED,05/05/2022,416.57,6541-Domiciliary Care,THIRD PARTY PAYMENTS,PRIVATE CONTRACTOR,REVENUE
